Workbook

Sheet For Bill Impact(HideBeforeFile) (hidden)
A1: Summary of Rates and Rate Riders
C3: Current Rates
C5: Rate Group | D5: Commodity | E5: System Gas | F5: REDA | G5: PGTVA | H5: ADVADA | I5: Federal Carbon | J5: Facility Carbon | K5: Dist. Customer Rate | L5: Dist. Vol. Rate Tier 1 | M5: Dist. Vol. Rate Tier 2 | N5: Dist. Vol. Rate Tier 3 | O5: Dist. Capacity Rate
C6: ='B1.1 Current Distribution Rates'!C16 -> RATE 1 - General Service Rate - Residential | D6: =12.8209+0.4433 -> 13.2642 | E6: ='B1.1 Current Distribution Rates'!L16 -> 0.0435 | F6: ='C1.1 Current Rate Riders'!E16 -> 0.59 | G6: ='C1.1 Current Rate Riders'!F16 -> 0.128 | H6: ="" ->  | I6: 5.87 | J6: 0.0027 | K6: ='B1.1 Current Distribution Rates'!E16 -> 16.5 | L6: ='B1.1 Current Distribution Rates'!F16 -> 13.3814 | M6: ='B1.1 Current Distribution Rates'!G16 -> 10.7275 | N6: ="" ->  | O6: ="" -> 
C7: ='B1.1 Current Distribution Rates'!C17 -> RATE 1 - General Service Rate - Commercial | D7: =D6 -> 13.2642 | E7: ='B1.1 Current Distribution Rates'!L17 -> 0.0435 | F7: ='C1.1 Current Rate Riders'!E17 -> 0.59 | G7: ='C1.1 Current Rate Riders'!F17 -> 0.128 | H7: ="" ->  | I7: =I$6 -> 5.87 | J7: =J$6 -> 0.0027 | K7: ='B1.1 Current Distribution Rates'!E17 -> 16.5 | L7: ='B1.1 Current Distribution Rates'!F17 -> 13.3814 | M7: ='B1.1 Current Distribution Rates'!G17 -> 10.7275 | N7: ="" ->  | O7: ="" -> 
C8: ='B1.1 Current Distribution Rates'!C18 -> RATE 1 - General Service Rate - Industrial | D8: =D7 -> 13.2642 | E8: ='B1.1 Current Distribution Rates'!L18 -> 0.0435 | F8: ='C1.1 Current Rate Riders'!E18 -> 0.59 | G8: ='C1.1 Current Rate Riders'!F18 -> 0.128 | H8: ="" ->  | I8: =I$6 -> 5.87 | J8: 0.0027 | K8: ='B1.1 Current Distribution Rates'!E18 -> 16.5 | L8: ='B1.1 Current Distribution Rates'!F18 -> 13.3814 | M8: ='B1.1 Current Distribution Rates'!G18 -> 10.7275 | N8: ="" ->  | O8: ="" -> 
C9: ='B1.1 Current Distribution Rates'!C19 -> RATE 2 - Seasonal Service - Apr to Oct | D9: 13.2642 | E9: ='B1.1 Current Distribution Rates'!L19 -> 0.0435 | F9: ='C1.1 Current Rate Riders'!E19 -> 0.59 | G9: ='C1.1 Current Rate Riders'!F19 -> 0.128 | H9: ="" ->  | I9: 5.87 | J9: 0.0027 | K9: ='B1.1 Current Distribution Rates'!E19 -> 20 | L9: ='B1.1 Current Distribution Rates'!F19 -> 16.5854 | M9: ='B1.1 Current Distribution Rates'!H19 -> 8.5818 | N9: ='B1.1 Current Distribution Rates'!I19 -> 6.7868 | O9: ="" -> 
C10: ='B1.1 Current Distribution Rates'!C20 -> RATE 2 - Seasonal Service - Nov to Mar | D10: 13.2642 | E10: ='B1.1 Current Distribution Rates'!L20 -> 0.0435 | F10: ='C1.1 Current Rate Riders'!E20 -> 0.59 | G10: ='C1.1 Current Rate Riders'!F20 -> 0.128 | H10: ="" ->  | I10: 5.87 | J10: 0.0027 | K10: ='B1.1 Current Distribution Rates'!E20 -> 20 | L10: ='B1.1 Current Distribution Rates'!F20 -> 20.9056 | M10: ='B1.1 Current Distribution Rates'!H20 -> 14.2049 | N10: ='B1.1 Current Distribution Rates'!I20 -> 15.2899 | O10: ="" -> 
C11: ='B1.1 Current Distribution Rates'!C21 -> RATE 3 - Special Large Volume Contract Rate | D11: 13.2642 | E11: ='B1.1 Current Distribution Rates'!L21 -> 0.0435 | F11: ='C1.1 Current Rate Riders'!E21 -> 0.59 | G11: ='C1.1 Current Rate Riders'!F21 -> 0.128 | H11: ="" ->  | I11: 5.87 | J11: 0.0027 | K11: ='B1.1 Current Distribution Rates'!E21 -> 200 | L11: ='B1.1 Current Distribution Rates'!J21 -> 3.6011 | M11: ="" ->  | N11: ="" ->  | O11: ='B1.1 Current Distribution Rates'!K21 -> 29.0974
C12: ='B1.1 Current Distribution Rates'!C22 -> RATE 4 - General Service Peaking - Apr to Dec | D12: 13.2642 | E12: ='B1.1 Current Distribution Rates'!L22 -> 0.0435 | F12: ='C1.1 Current Rate Riders'!E22 -> 0.59 | G12: ='C1.1 Current Rate Riders'!F22 -> 0.128 | H12: ="" ->  | I12: 5.87 | J12: 0.0027 | K12: ='B1.1 Current Distribution Rates'!E22 -> 20 | L12: ='B1.1 Current Distribution Rates'!F22 -> 18.2634 | M12: ='B1.1 Current Distribution Rates'!G22 -> 11.2057 | N12: ="" ->  | O12: ="" -> 
C13: ='B1.1 Current Distribution Rates'!C23 -> RATE 4 - General Service Peaking - Jan to Mar | D13: 13.2642 | E13: ='B1.1 Current Distribution Rates'!L23 -> 0.0435 | F13: ='C1.1 Current Rate Riders'!E23 -> 0.59 | G13: ='C1.1 Current Rate Riders'!F23 -> 0.128 | H13: ="" ->  | I13: 5.87 | J13: 0.0027 | K13: ='B1.1 Current Distribution Rates'!E23 -> 20 | L13: ='B1.1 Current Distribution Rates'!F23 -> 23.299 | M13: ='B1.1 Current Distribution Rates'!G23 -> 18.004 | N13: ="" ->  | O13: ="" -> 
C14: ='B1.1 Current Distribution Rates'!C24 -> RATE 5 - Interruptible Peaking Contract Rate | D14: 13.2642 | E14: ='B1.1 Current Distribution Rates'!L24 -> 0.0435 | F14: ='C1.1 Current Rate Riders'!E24 -> 0.59 | G14: ='C1.1 Current Rate Riders'!F24 -> 0.128 | H14: ="" ->  | I14: 5.87 | J14: 0.0027 | K14: ='B1.1 Current Distribution Rates'!E24 -> 190 | L14: ='B1.1 Current Distribution Rates'!J24 -> 7.512217882 | M14: ="" ->  | N14: ="" ->  | O14: ="" -> 
C15: ='B1.1 Current Distribution Rates'!C25 -> RATE 6 - Integrated Grain Processors Co-Operative Aylmer Ethanol Production Facility | D15: ="" ->  | E15: ="" ->  | F15: ='C1.1 Current Rate Riders'!E25 -> 0.56 | G15: ='C1.1 Current Rate Riders'!G25 -> 15413.33 | H15: ="" ->  | I15: ="" ->  | J15: 0.0027 | K15: ='B1.1 Current Distribution Rates'!E25 -> 61229.92 | L15: ="" ->  | M15: ="" ->  | N15: ="" ->  | O15: ="" -> 
C17: Proposed Rates
C19: =C5 -> Rate Group | D19: =D5 -> Commodity | E19: System Gas | F19: REDA | G19: PGTVA | H19: ADVADA | I19: Federal Carbon | J19: Facility Carbon | K19: Dist. Customer Rate | L19: Dist. Vol. Rate Tier 1 | M19: Dist. Vol. Rate Tier 2 | N19: Dist. Vol. Rate Tier 3 | O19: Dist. Capacity Rate
C20: =C6 -> RATE 1 - General Service Rate - Residential | D20: =D6 -> 13.2642 | E20: ='E1.1 Proposed Dist Rates '!L16 -> 0.0435 | F20: ='F1.1 REDA'!$H$22 -> 0.7697128118 | G20: ='F1.2 PGTVA'!$G$16 -> 0.3066442063 | H20: ='F1.3 ADVADA'!$H$16 -> 0.1484182125 | I20: 5.87 | J20: 0.0027 | K20: ='E1.1 Proposed Dist Rates '!E16 -> 17.5 | L20: ='E1.1 Proposed Dist Rates '!F16 -> 13.57005773 | M20: ='E1.1 Proposed Dist Rates '!G16 -> 10.90634364 | N20: ="" ->  | O20: ="" -> 
C21: =C7 -> RATE 1 - General Service Rate - Commercial | D21: =D7 -> 13.2642 | E21: ='E1.1 Proposed Dist Rates '!L17 -> 0.0435 | F21: ='F1.1 REDA'!$H$22 -> 0.7697128118 | G21: ='F1.2 PGTVA'!$G$16 -> 0.3066442063 | H21: ='F1.3 ADVADA'!$H$16 -> 0.1484182125 | I21: =I$20 -> 5.87 | J21: =J$20 -> 0.0027 | K21: ='E1.1 Proposed Dist Rates '!E17 -> 17.5 | L21: ='E1.1 Proposed Dist Rates '!F17 -> 13.57005773 | M21: ='E1.1 Proposed Dist Rates '!G17 -> 10.90634364 | N21: ="" ->  | O21: ="" -> 
C22: RATE 1 - General Service Rate - Industrial | D22: =D8 -> 13.2642 | E22: ='E1.1 Proposed Dist Rates '!L18 -> 0.0435 | F22: ='F1.1 REDA'!$H$22 -> 0.7697128118 | G22: ='F1.2 PGTVA'!$G$16 -> 0.3066442063 | H22: ='F1.3 ADVADA'!$H$16 -> 0.1484182125 | I22: =I$20 -> 5.87 | J22: 0.0027 | K22: ='E1.1 Proposed Dist Rates '!E18 -> 17.5 | L22: ='E1.1 Proposed Dist Rates '!F18 -> 13.57005773 | M22: ='E1.1 Proposed Dist Rates '!G18 -> 10.90634364 | N22: ="" ->  | O22: ="" -> 
C23: RATE 2 - Seasonal Service - Apr to Oct | D23: 13.2642 | E23: ='E1.1 Proposed Dist Rates '!L19 -> 0.0435 | F23: ='F1.1 REDA'!$H$22 -> 0.7697128118 | G23: ='F1.2 PGTVA'!$G$16 -> 0.3066442063 | H23: ='F1.3 ADVADA'!$H$16 -> 0.1484182125 | I23: 5.87 | J23: 0.0027 | K23: ='E1.1 Proposed Dist Rates '!E19 -> 20 | L23: ='E1.1 Proposed Dist Rates '!F19 -> 17.08410381 | M23: ='E1.1 Proposed Dist Rates '!H19 -> 8.874901487 | N23: ='E1.1 Proposed Dist Rates '!I19 -> 6.918785772 | O23: ="" -> 
C24: RATE 2 - Seasonal Service - Nov to Mar | D24: 13.2642 | E24: ='E1.1 Proposed Dist Rates '!L20 -> 0.0435 | F24: ='F1.1 REDA'!$H$22 -> 0.7697128118 | G24: ='F1.2 PGTVA'!$G$16 -> 0.3066442063 | H24: ='F1.3 ADVADA'!$H$16 -> 0.1484182125 | I24: 5.87 | J24: 0.0027 | K24: ='E1.1 Proposed Dist Rates '!E20 -> 20 | L24: ='E1.1 Proposed Dist Rates '!F20 -> 21.5341957 | M24: ='E1.1 Proposed Dist Rates '!H20 -> 14.69013542 | N24: ='E1.1 Proposed Dist Rates '!I20 -> 15.58724916 | O24: ="" -> 
C25: RATE 3 - Special Large Volume Contract Rate | D25: 13.2642 | E25: ='E1.1 Proposed Dist Rates '!L21 -> 0.0435 | F25: ='F1.1 REDA'!$H$22 -> 0.7697128118 | G25: ='F1.2 PGTVA'!$G$16 -> 0.3066442063 | H25: ='F1.3 ADVADA'!$H$16 -> 0.1484182125 | I25: 5.87 | J25: 0.0027 | K25: ='E1.1 Proposed Dist Rates '!E21 -> 200 | L25: ='E1.1 Proposed Dist Rates '!J21 -> 3.917266731 | M25: ="" ->  | N25: ="" ->  | O25: ='E1.1 Proposed Dist Rates '!K21 -> 29.68056583
C26: RATE 4 - General Service Peaking - Apr to Dec | D26: 13.2642 | E26: ='E1.1 Proposed Dist Rates '!L22 -> 0.0435 | F26: ='F1.1 REDA'!$H$22 -> 0.7697128118 | G26: ='F1.2 PGTVA'!$G$16 -> 0.3066442063 | H26: ='F1.3 ADVADA'!$H$16 -> 0.1484182125 | I26: 5.87 | J26: 0.0027 | K26: ='E1.1 Proposed Dist Rates '!E22 -> 20 | L26: ='E1.1 Proposed Dist Rates '!F22 -> 18.93139285 | M26: ='E1.1 Proposed Dist Rates '!G22 -> 11.61564825 | N26: ="" ->  | O26: ="" -> 
C27: RATE 4 - General Service Peaking - Jan to Mar | D27: 13.2642 | E27: ='E1.1 Proposed Dist Rates '!L23 -> 0.0435 | F27: ='F1.1 REDA'!$H$22 -> 0.7697128118 | G27: ='F1.2 PGTVA'!$G$16 -> 0.3066442063 | H27: ='F1.3 ADVADA'!$H$16 -> 0.1484182125 | I27: 5.87 | J27: 0.0027 | K27: ='E1.1 Proposed Dist Rates '!E23 -> 20 | L27: ='E1.1 Proposed Dist Rates '!F23 -> 24.15127824 | M27: ='E1.1 Proposed Dist Rates '!G23 -> 18.66266161 | N27: ="" ->  | O27: ="" -> 
C28: RATE 5 - Interruptible Peaking Contract Rate | D28: 13.2642 | E28: ='E1.1 Proposed Dist Rates '!L24 -> 0.0435 | F28: ='F1.1 REDA'!$H$22 -> 0.7697128118 | G28: ='F1.2 PGTVA'!$G$16 -> 0.3066442063 | H28: ='F1.3 ADVADA'!$H$16 -> 0.1484182125 | I28: 5.87 | J28: 0.0027 | K28: ='E1.1 Proposed Dist Rates '!E24 -> 190 | L28: ='E1.1 Proposed Dist Rates '!J24 -> 7.802674599 | M28: ="" ->  | N28: ="" ->  | O28: ="" -> 
C29: RATE 6 - Integrated Grain Processors Co-Operative Aylmer Ethanol Production Facility | D29: ="" ->  | E29: ="" ->  | F29: ='F1.1 REDA'!$H$23 -> 0.7389105973 | G29: ="" ->  | H29: ='F1.3 ADVADA'!$H$17 -> 923.5833333 | I29: ="" ->  | J29: 0.0027 | K29: ='E1.1 Proposed Dist Rates '!E25 -> 62332.05856 | L29: ="" ->  | M29: ="" ->  | N29: ="" ->  | O29: ="" -> 
C31: Average Bill Determinant per Customer
C33: =C47 -> Rate Group | D33: Commodity | E33: System Gas | F33: REDA | G33: PGTVA | H33: ADVADA | I33: =I47 -> Federal Carbon | J33: Facility Carbon | K33: =K47 -> Dist. Customer Rate | L33: =L47 -> Dist. Vol. Rate Tier 1 | M33: =M47 -> Dist. Vol. Rate Tier 2 | N33: =N47 -> Dist. Vol. Rate Tier 3 | O33: =O47 -> Dist. Capacity Rate
C34: =C6 -> RATE 1 - General Service Rate - Residential | D34: =SUM($L34:$N34) -> 2113.059935 | E34: =SUM($L34:$N34) -> 2113.059935 | F34: =$K34 -> 12 | G34: 2113.059935 | H34: 2113.059935 | I34: =SUM($L34:$N34) -> 2113.059935 | J34: =SUM($L34:$N34) -> 2113.059935 | K34: 12 | L34: ='B1.2 Billing Determinants'!F16/'B1.2 Billing Determinants'!$E16 -> 2088.203504 | M34: ='B1.2 Billing Determinants'!G16/'B1.2 Billing Determinants'!$E16 -> 24.85643032 | N34: ="" ->  | O34: ="" -> 
C35: =C7 -> RATE 1 - General Service Rate - Commercial | D35: =SUM($L35:$N35) -> 11854.47608 | E35: 11854.47608 | F35: =$K35 -> 12 | G35: 11854.47608 | H35: 11854.47608 | I35: 11854.47608 | J35: 11854.47608 | K35: 12 | L35: ='B1.2 Billing Determinants'!F17/'B1.2 Billing Determinants'!$E17 -> 5361.868866 | M35: ='B1.2 Billing Determinants'!G17/'B1.2 Billing Determinants'!$E17 -> 6492.607216 | N35: ="" ->  | O35: ="" -> 
C36: RATE 1 - General Service Rate - Industrial | D36: 33573.7338 | E36: 33573.7338 | F36: 12 | G36: 33573.7338 | H36: 33573.7338 | I36: 33573.7338 | J36: 33573.7338 | K36: 12 | L36: ='B1.2 Billing Determinants'!F18/'B1.2 Billing Determinants'!$E18 -> 6439.239437 | M36: ='B1.2 Billing Determinants'!G18/'B1.2 Billing Determinants'!$E18 -> 27134.49437 | N36: ="" ->  | O36: ="" -> 
C37: RATE 2 - Seasonal Service - Apr to Oct | D37: 15791.5898 | E37: 15791.5898 | F37: 7 | G37: 15791.5898 | H37: 15791.5898 | I37: 15791.5898 | J37: 15791.5898 | K37: 7 | L37: ='B1.2 Billing Determinants'!F19/'B1.2 Billing Determinants'!$E19 -> 1684.881633 | M37: ='B1.2 Billing Determinants'!H19/'B1.2 Billing Determinants'!$E19 -> 12110.28776 | N37: ='B1.2 Billing Determinants'!I19/'B1.2 Billing Determinants'!$E19 -> 1996.420408 | O37: ="" -> 
C38: RATE 2 - Seasonal Service - Nov to Mar | D38: 9736.75102 | E38: 9736.75102 | F38: 5 | G38: 9736.75102 | H38: 9736.75102 | I38: 9736.75102 | J38: 9736.75102 | K38: 5 | L38: ='B1.2 Billing Determinants'!F20/'B1.2 Billing Determinants'!$E20 -> 1574.546939 | M38: ='B1.2 Billing Determinants'!H20/'B1.2 Billing Determinants'!$E20 -> 7738.465306 | N38: ='B1.2 Billing Determinants'!I20/'B1.2 Billing Determinants'!$E20 -> 423.7387755 | O38: ="" -> 
C39: RATE 3 - Special Large Volume Contract Rate | D39: 257420.7 | E39: 257420.7 | F39: 12 | G39: 257420.7 | H39: 257420.7 | I39: 257420.7 | J39: 257420.7 | K39: 12 | L39: ='B1.2 Billing Determinants'!J21/'B1.2 Billing Determinants'!E21 -> 257420.7 | M39: ="" ->  | N39: ="" ->  | O39: ='B1.2 Billing Determinants'!K21/'B1.2 Billing Determinants'!E21 -> 38737.2
C40: RATE 4 - General Service Peaking - Apr to Dec | D40: 44131.63889 | E40: 44131.63889 | F40: 9 | G40: 44131.63889 | H40: 44131.63889 | I40: 44131.63889 | J40: 44131.63889 | K40: 9 | L40: ='B1.2 Billing Determinants'!F22/'B1.2 Billing Determinants'!$E22 -> 2410.527778 | M40: ='B1.2 Billing Determinants'!G22/'B1.2 Billing Determinants'!$E22 -> 41721.11111 | N40: ="" ->  | O40: ="" -> 
C41: RATE 4 - General Service Peaking - Jan to Mar | D41: 5327.969444 | E41: 5327.969444 | F41: 3 | G41: 5327.969444 | H41: 5327.969444 | I41: 5327.969444 | J41: 5327.969444 | K41: 3 | L41: ='B1.2 Billing Determinants'!F23/'B1.2 Billing Determinants'!$E23 -> 954.2388889 | M41: ='B1.2 Billing Determinants'!G23/'B1.2 Billing Determinants'!$E23 -> 4373.730556 | N41: ="" ->  | O41: ="" -> 
C42: RATE 5 - Interruptible Peaking Contract Rate | D42: 198871.1 | E42: 198871.1 | F42: 12 | G42: 198871.1 | H42: 198871.1 | I42: 198871.1 | J42: 198871.1 | K42: 12 | L42: ='B1.2 Billing Determinants'!J24/'B1.2 Billing Determinants'!E24 -> 198871.1 | M42: ="" ->  | N42: ="" ->  | O42: ="" -> 
C43: RATE 6 - Integrated Grain Processors Co-Operative Aylmer Ethanol Production Facility | D43: ="" ->  | E43: ="" ->  | F43: 12 | G43: 12 | H43: 12 | I43: ="" ->  | J43: ='B1.2 Billing Determinants'!J25 -> 62382456 | K43: 12 | L43: ="" ->  | M43: ="" ->  | N43: ="" ->  | O43: ="" -> 
C45: Label
C47: =C19 -> Rate Group | D47: Commodity | E47: System Gas | F47: REDA | G47: PGTVA | H47: ADVADA | I47: =I19 -> Federal Carbon | J47: Facility Carbon | K47: =K19 -> Dist. Customer Rate | L47: =L19 -> Dist. Vol. Rate Tier 1 | M47: =M19 -> Dist. Vol. Rate Tier 2 | N47: =N19 -> Dist. Vol. Rate Tier 3 | O47: =O19 -> Dist. Capacity Rate
C48: =C6 -> RATE 1 - General Service Rate - Residential | D48: Commodity | E48: System Gas Charge | F48: REDA | G48: PGTVA | H48: ADVADA | I48: Federal Carbon | J48: Facility Carbon | K48: Customer (excl. Bill 32) | L48: Block 1 (First 1,000 m3 per month) | M48: Block 2 (Over 1,000 m3 per month) | N48: ="" ->  | O48: ="" -> 
C49: =C7 -> RATE 1 - General Service Rate - Commercial | D49: Commodity | E49: System Gas Charge | F49: REDA | G49: PGTVA | H49: ADVADA | I49: Federal Carbon | J49: Facility Carbon | K49: Customer (excl. Bill 32) | L49: Block 1 (First 1,000 m3 per month) | M49: Block 2 (Over 1,000 m3 per month) | N49: ="" ->  | O49: ="" -> 
C50: RATE 1 - General Service Rate - Industrial | D50: Commodity | E50: System Gas Charge | F50: REDA | G50: PGTVA | H50: ADVADA | I50: Federal Carbon | J50: Facility Carbon | K50: Customer (excl. Bill 32) | L50: Block 1 (First 1,000 m3 per month) | M50: Block 2 (Over 1,000 m3 per month) | N50: ="" ->  | O50: ="" -> 
C51: RATE 2 - Seasonal Service - Apr to Oct | D51: Commodity | E51: System Gas Charge | F51: REDA | G51: PGTVA | H51: ADVADA | I51: Federal Carbon | J51: Facility Carbon | K51: Customer (excl. Bill 32) | L51: Block 1 (First 1,000 m3 per month) | M51: Block 2 (Next 24,000 m3 per month) | N51: Block 3 (Over 25,000 m3 per month) | O51: ="" -> 
C52: RATE 2 - Seasonal Service - Nov to Mar | D52: Commodity | E52: System Gas Charge | F52: REDA | G52: PGTVA | H52: ADVADA | I52: Federal Carbon | J52: Facility Carbon | K52: Customer (excl. Bill 32) | L52: Block 1 (First 1,000 m3 per month) | M52: Block 2 (Next 24,000 m3 per month) | N52: Block 3 (Over 25,000 m3 per month) | O52: ="" -> 
C53: RATE 3 - Special Large Volume Contract Rate | D53: Commodity | E53: System Gas Charge | F53: REDA | G53: PGTVA | H53: ADVADA | I53: Federal Carbon | J53: Facility Carbon | K53: Customer (excl. Bill 32) | L53: Delivery - Firm | M53: ="" ->  | N53: ="" ->  | O53: Demand - Firm
C54: RATE 4 - General Service Peaking - Apr to Dec | D54: Commodity | E54: System Gas Charge | F54: REDA | G54: PGTVA | H54: ADVADA | I54: Federal Carbon | J54: Facility Carbon | K54: Customer (excl. Bill 32) | L54: Block 1 (First 1,000 m3 per month) | M54: Block 2 (Over 1,000 m3 per month) | N54: ="" ->  | O54: ="" -> 
C55: RATE 4 - General Service Peaking - Jan to Mar | D55: Commodity | E55: System Gas Charge | F55: REDA | G55: PGTVA | H55: ADVADA | I55: Federal Carbon | J55: Facility Carbon | K55: Customer (excl. Bill 32) | L55: Block 1 (First 1,000 m3 per month) | M55: Block 2 (Over 1,000 m3 per month) | N55: ="" ->  | O55: ="" -> 
C56: RATE 5 - Interruptible Peaking Contract Rate | D56: Commodity | E56: System Gas Charge | F56: REDA | G56: PGTVA | H56: ADVADA | I56: Federal Carbon | J56: Facility Carbon | K56: Customer (excl. Bill 32) | L56: Delivery - Firm | M56: ="" ->  | N56: ="" ->  | O56: ="" -> 
C57: RATE 6 - Integrated Grain Processors Co-Operative Aylmer Ethanol Production Facility | D57: ="" ->  | E57: ="" ->  | F57: REDA | G57: PGTVA | H57: ADVADA | I57: ="" ->  | J57: Facility Carbon | K57: Customer (excl. Bill 32) | L57: ="" ->  | M57: ="" ->  | N57: ="" ->  | O57: ="" -> 
C59: Unit
C61: =C33 -> Rate Group | D61: Commodity | E61: System Gas | F61: REDA | G61: PGTVA | H61: ADVADA | I61: =I33 -> Federal Carbon | J61: Facility Carbon | K61: =K33 -> Dist. Customer Rate | L61: =L33 -> Dist. Vol. Rate Tier 1 | M61: =M33 -> Dist. Vol. Rate Tier 2 | N61: =N33 -> Dist. Vol. Rate Tier 3 | O61: =O33 -> Dist. Capacity Rate
C62: =C20 -> RATE 1 - General Service Rate - Residential | D62: cents / m3 | E62: cents / m3 | F62: $ / month | G62: cents / m3 | H62: cents / m3 | I62: cents / m3 | J62: cents / m3 | K62: $ / month | L62: cents / m3 | M62: cents / m3 | N62: ="" ->  | O62: ="" -> 
C63: =C21 -> RATE 1 - General Service Rate - Commercial | D63: cents / m3 | E63: cents / m3 | F63: $ / month | G63: cents / m3 | H63: cents / m3 | I63: cents / m3 | J63: cents / m3 | K63: $ / month | L63: cents / m3 | M63: cents / m3 | N63: ="" ->  | O63: ="" -> 
C64: RATE 1 - General Service Rate - Industrial | D64: cents / m3 | E64: cents / m3 | F64: $ / month | G64: cents / m3 | H64: cents / m3 | I64: cents / m3 | J64: cents / m3 | K64: $ / month | L64: cents / m3 | M64: cents / m3 | N64: ="" ->  | O64: ="" -> 
C65: RATE 2 - Seasonal Service - Apr to Oct | D65: cents / m3 | E65: cents / m3 | F65: $ / month | G65: cents / m3 | H65: cents / m3 | I65: cents / m3 | J65: cents / m3 | K65: $ / month | L65: cents / m3 | M65: cents / m3 | N65: cents / m3 | O65: ="" -> 
C66: RATE 2 - Seasonal Service - Nov to Mar | D66: cents / m3 | E66: cents / m3 | F66: $ / month | G66: cents / m3 | H66: cents / m3 | I66: cents / m3 | J66: cents / m3 | K66: $ / month | L66: cents / m3 | M66: cents / m3 | N66: cents / m3 | O66: ="" -> 
C67: RATE 3 - Special Large Volume Contract Rate | D67: cents / m3 | E67: cents / m3 | F67: $ / month | G67: cents / m3 | H67: cents / m3 | I67: cents / m3 | J67: cents / m3 | K67: $ / month | L67: cents / m3 | M67: ="" ->  | N67: ="" ->  | O67: cents / m3
C68: RATE 4 - General Service Peaking - Apr to Dec | D68: cents / m3 | E68: cents / m3 | F68: $ / month | G68: cents / m3 | H68: cents / m3 | I68: cents / m3 | J68: cents / m3 | K68: $ / month | L68: cents / m3 | M68: cents / m3 | N68: ="" ->  | O68: ="" -> 
C69: RATE 4 - General Service Peaking - Jan to Mar | D69: cents / m3 | E69: cents / m3 | F69: $ / month | G69: cents / m3 | H69: cents / m3 | I69: cents / m3 | J69: cents / m3 | K69: $ / month | L69: cents / m3 | M69: cents / m3 | N69: ="" ->  | O69: ="" -> 
C70: RATE 5 - Interruptible Peaking Contract Rate | D70: cents / m3 | E70: cents / m3 | F70: $ / month | G70: cents / m3 | H70: cents / m3 | I70: cents / m3 | J70: cents / m3 | K70: $ / month | L70: cents / m3 | M70: ="" ->  | N70: ="" ->  | O70: ="" -> 
C71: RATE 6 - Integrated Grain Processors Co-Operative Aylmer Ethanol Production Facility | D71: ="" ->  | E71: ="" ->  | F71: $ / month | G71: $ / month | H71: $ / month | I71: ="" ->  | J71: cents / m3 | K71: $ / month | L71: ="" ->  | M71: ="" ->  | N71: ="" ->  | O71: ="" -> 

Sheet A1.1 Distributor Information
C3: ="Name of LDC: " &D21 -> Name of LDC: EPCOR Natural Gas Limited Partnership
C4: ="OEB Application Number: " & D23 -> OEB Application Number: EB-2020-0234 Exhibit A - 2021 IRM Application
C11: Distributor Information
C21: Distributor Name | D21: EPCOR Natural Gas Limited Partnership
C23: OEB Application Number | D23: EB-2020-0234 Exhibit A - 2021 IRM Application
C30: =MID(CELL("filename",A1),FIND("]",CELL("filename",A1))+1,255) -> A1.1 Distributor Information

Sheet B1.1 Current Distribution Rates
C2: ='A1.1 Distributor Information'!C3 -> Name of LDC: EPCOR Natural Gas Limited Partnership
C3: ='A1.1 Distributor Information'!C4 -> OEB Application Number: EB-2020-0234 Exhibit A - 2021 IRM Application
C10: Current Distribution Tariff Sheet Rates
C15: Rate Group | E15: Monthly Service Charge (excl. Bill 32) | F15: Delivery First 1,000 m3 | G15: Delivery Over 1,000 m3 | H15: Delivery Next 24,000 m3 | I15: Delivery Over 25,000 m3 | J15: Delivery - Firm | K15: Demand - Firm | L15: Commodity | M15: Delivery - Int - Lower | N15: Delivery - Int - Upper
C16: RATE 1 - General Service Rate - Residential | E16: 16.5 | F16: 13.3814 | G16: 10.7275 | L16: 0.0435
C17: RATE 1 - General Service Rate - Commercial | E17: 16.5 | F17: 13.3814 | G17: 10.7275 | L17: 0.0435
C18: RATE 1 - General Service Rate - Industrial | E18: 16.5 | F18: 13.3814 | G18: 10.7275 | L18: 0.0435
C19: RATE 2 - Seasonal Service - Apr to Oct | E19: 20 | F19: 16.5854 | H19: 8.5818 | I19: 6.7868 | L19: 0.0435
C20: RATE 2 - Seasonal Service - Nov to Mar | E20: 20 | F20: 20.9056 | H20: 14.2049 | I20: 15.2899 | L20: 0.0435
C21: RATE 3 - Special Large Volume Contract Rate | E21: 200 | J21: 3.6011 | K21: 29.0974 | L21: 0.0435 | M21: 7.6156 | N21: 10.5118
C22: RATE 4 - General Service Peaking - Apr to Dec | E22: 20 | F22: 18.2634 | G22: 11.2057 | L22: 0.0435
C23: RATE 4 - General Service Peaking - Jan to Mar | E23: 20 | F23: 23.299 | G23: 18.004 | L23: 0.0435
C24: RATE 5 - Interruptible Peaking Contract Rate | E24: 190 | J24: 7.512217882 | K24: 1 | L24: 0.0435 | M24: 5.98 | N24: 9.265
C25: RATE 6 - Integrated Grain Processors Co-Operative Aylmer Ethanol Production Facility | E25: 61229.92
C27: 1 Placeholder rate for average application
C34: =MID(CELL("filename",A1),FIND("]",CELL("filename",A1))+1,255) -> B1.1 Current Distribution Rates

Sheet B1.2 Billing Determinants
C2: ='A1.1 Distributor Information'!C3 -> Name of LDC: EPCOR Natural Gas Limited Partnership
C3: ='A1.1 Distributor Information'!C4 -> OEB Application Number: EB-2020-0234 Exhibit A - 2021 IRM Application
C10: Billing Determinants - Actuals January 1, 2019 to December 31, 2019
C15: Rate Group | E15: Monthly Service Charge | F15: Delivery First 1,000 m3 | G15: Delivery Over 1,000 m3 | H15: Delivery Next 24,000 m3 | I15: Delivery Over 25,000 m3 | J15: Delivery - Firm | K15: Demand - Firm | L15: Commodity | M15: Delivery - Int - Lower | N15: Delivery - Int - Upper
C16: RATE 1 - General Service Rate - Residential | E16: 8561 | F16: 17877110.2 | G16: 212795.9 | L16: 18063122.9
C17: RATE 1 - General Service Rate - Commercial | E17: 485 | F17: 2600506.4 | G17: 3148914.5 | L17: 5070409.4
C18: RATE 1 - General Service Rate - Industrial | E18: 71 | F18: 457186 | G18: 1926549.1 | L18: 2195898
C19: RATE 2 - Seasonal Service - Apr to Oct | E19: 49 | F19: 82559.2 | H19: 593404.1 | I19: 97824.6 | L19: 773787.9
C20: RATE 2 - Seasonal Service - Nov to Mar | E20: 49 | F20: 77152.8 | H20: 379184.8 | I20: 20763.2 | L20: 477100.8
C21: RATE 3 - Special Large Volume Contract Rate | E21: 6 | J21: 1544524.2 | K21: 232423.2 | L21: 1163879.6
C22: RATE 4 - General Service Peaking - Apr to Dec | E22: 36 | F22: 86779 | G22: 1501960 | L22: 1587048.6
C23: RATE 4 - General Service Peaking - Jan to Mar | E23: 36 | F23: 34352.6 | G23: 157454.3 | L23: 175801.2
C24: RATE 5 - Interruptible Peaking Contract Rate | E24: 4 | J24: 795484.4 | L24: 795484.4
C25: RATE 6 - Integrated Grain Processors Co-Operative Aylmer Ethanol Production Facility | E25: 1 | J25: 62382456
E26: =SUM(E16:E19,E21:E22,E24:E25) -> 9213 | F26: =SUM(F16:F25) -> 21215646.2 | G26: 6947673.8 | H26: 972588.9 | I26: 118587.8 | J26: 64722464.6 | K26: 232423.2 | L26: 30302532.8 | M26: =SUM(M16:M25) -> 0 | N26: =SUM(N16:N25) -> 0
C30: =MID(CELL("filename",A1),FIND("]",CELL("filename",A1))+1,255) -> B1.2 Billing Determinants

Sheet B1.3 Current Rev From Rates
C2: ='A1.1 Distributor Information'!C3 -> Name of LDC: EPCOR Natural Gas Limited Partnership
C3: ='A1.1 Distributor Information'!C4 -> OEB Application Number: EB-2020-0234 Exhibit A - 2021 IRM Application
C10: Revenue from Current Rates
C15: Rate Group | E15: Monthly Service Charge | F15: Delivery First 1,000 m3 | G15: Delivery Over 1,000 m3 | H15: Delivery Next 24,000 m3 | I15: Delivery Over 25,000 m3 | J15: Demand - Firm | K15: Delivery - Firm | L15: Commodity | M15: Delivery - Int - Lower | N15: Delivery - Int - Upper | O15: Total
C16: RATE 1 - General Service Rate - Residential | E16: ='B1.1 Current Distribution Rates'!E16*'B1.2 Billing Determinants'!E16*12 -> 1695078 | F16: ='B1.1 Current Distribution Rates'!F16*'B1.2 Billing Determinants'!F16/100 -> 2392207.624 | G16: ='B1.1 Current Distribution Rates'!G16*'B1.2 Billing Determinants'!G16/100 -> 22827.68017 | H16: ='B1.1 Current Distribution Rates'!H16*'B1.2 Billing Determinants'!H16/100 -> 0 | I16: ='B1.1 Current Distribution Rates'!I16*'B1.2 Billing Determinants'!I16/100 -> 0 | J16: ='B1.1 Current Distribution Rates'!J16*'B1.2 Billing Determinants'!J16/100 -> 0 | K16: ='B1.1 Current Distribution Rates'!K16*'B1.2 Billing Determinants'!K16/100 -> 0 | L16: ='B1.1 Current Distribution Rates'!L16*'B1.2 Billing Determinants'!L16/100 -> 7857.458461 | M16: ='B1.1 Current Distribution Rates'!M16*'B1.2 Billing Determinants'!M16/100 -> 0 | N16: ='B1.1 Current Distribution Rates'!N16*'B1.2 Billing Determinants'!N16/100 -> 0 | O16: =SUM(E16:N16) -> 4117970.763
C17: RATE 1 - General Service Rate - Commercial | E17: ='B1.1 Current Distribution Rates'!E17*'B1.2 Billing Determinants'!E17*12 -> 96030 | F17: ='B1.1 Current Distribution Rates'!F17*'B1.2 Billing Determinants'!F17/100 -> 347984.1634 | G17: ='B1.1 Current Distribution Rates'!G17*'B1.2 Billing Determinants'!G17/100 -> 337799.803 | H17: ='B1.1 Current Distribution Rates'!H17*'B1.2 Billing Determinants'!H17/100 -> 0 | I17: ='B1.1 Current Distribution Rates'!I17*'B1.2 Billing Determinants'!I17/100 -> 0 | J17: ='B1.1 Current Distribution Rates'!J17*'B1.2 Billing Determinants'!J17/100 -> 0 | K17: ='B1.1 Current Distribution Rates'!K17*'B1.2 Billing Determinants'!K17/100 -> 0 | L17: ='B1.1 Current Distribution Rates'!L17*'B1.2 Billing Determinants'!L17/100 -> 2205.628089 | M17: ='B1.1 Current Distribution Rates'!M17*'B1.2 Billing Determinants'!M17/100 -> 0 | N17: ='B1.1 Current Distribution Rates'!N17*'B1.2 Billing Determinants'!N17/100 -> 0 | O17: =SUM(E17:N17) -> 784019.5945
C18: RATE 1 - General Service Rate - Industrial | E18: ='B1.1 Current Distribution Rates'!E18*'B1.2 Billing Determinants'!E18*12 -> 14058 | F18: ='B1.1 Current Distribution Rates'!F18*'B1.2 Billing Determinants'!F18/100 -> 61177.8874 | G18: ='B1.1 Current Distribution Rates'!G18*'B1.2 Billing Determinants'!G18/100 -> 206670.5547 | H18: ='B1.1 Current Distribution Rates'!H18*'B1.2 Billing Determinants'!H18/100 -> 0 | I18: ='B1.1 Current Distribution Rates'!I18*'B1.2 Billing Determinants'!I18/100 -> 0 | J18: ='B1.1 Current Distribution Rates'!J18*'B1.2 Billing Determinants'!J18/100 -> 0 | K18: ='B1.1 Current Distribution Rates'!K18*'B1.2 Billing Determinants'!K18/100 -> 0 | L18: ='B1.1 Current Distribution Rates'!L18*'B1.2 Billing Determinants'!L18/100 -> 955.21563 | M18: ='B1.1 Current Distribution Rates'!M18*'B1.2 Billing Determinants'!M18/100 -> 0 | N18: ='B1.1 Current Distribution Rates'!N18*'B1.2 Billing Determinants'!N18/100 -> 0 | O18: 282861.6577
C19: RATE 2 - Seasonal Service - Apr to Oct | E19: ='B1.1 Current Distribution Rates'!E19*'B1.2 Billing Determinants'!E19*7 -> 6860 | F19: ='B1.1 Current Distribution Rates'!F19*'B1.2 Billing Determinants'!F19/100 -> 13692.77356 | G19: ='B1.1 Current Distribution Rates'!G19*'B1.2 Billing Determinants'!G19/100 -> 0 | H19: ='B1.1 Current Distribution Rates'!H19*'B1.2 Billing Determinants'!H19/100 -> 50924.75305 | I19: ='B1.1 Current Distribution Rates'!I19*'B1.2 Billing Determinants'!I19/100 -> 6639.159953 | J19: ='B1.1 Current Distribution Rates'!J19*'B1.2 Billing Determinants'!J19/100 -> 0 | K19: ='B1.1 Current Distribution Rates'!K19*'B1.2 Billing Determinants'!K19/100 -> 0 | L19: ='B1.1 Current Distribution Rates'!L19*'B1.2 Billing Determinants'!L19/100 -> 336.5977365 | M19: ='B1.1 Current Distribution Rates'!M19*'B1.2 Billing Determinants'!M19/100 -> 0 | N19: ='B1.1 Current Distribution Rates'!N19*'B1.2 Billing Determinants'!N19/100 -> 0 | O19: 78453.2843
C20: RATE 2 - Seasonal Service - Nov to Mar | E20: ='B1.1 Current Distribution Rates'!E20*'B1.2 Billing Determinants'!E20*5 -> 4900 | F20: ='B1.1 Current Distribution Rates'!F20*'B1.2 Billing Determinants'!F20/100 -> 16129.25576 | G20: ='B1.1 Current Distribution Rates'!G20*'B1.2 Billing Determinants'!G20/100 -> 0 | H20: ='B1.1 Current Distribution Rates'!H20*'B1.2 Billing Determinants'!H20/100 -> 53862.82166 | I20: ='B1.1 Current Distribution Rates'!I20*'B1.2 Billing Determinants'!I20/100 -> 3174.672517 | J20: ='B1.1 Current Distribution Rates'!J20*'B1.2 Billing Determinants'!J20/100 -> 0 | K20: ='B1.1 Current Distribution Rates'!K20*'B1.2 Billing Determinants'!K20/100 -> 0 | L20: ='B1.1 Current Distribution Rates'!L20*'B1.2 Billing Determinants'!L20/100 -> 207.538848 | M20: ='B1.1 Current Distribution Rates'!M20*'B1.2 Billing Determinants'!M20/100 -> 0 | N20: ='B1.1 Current Distribution Rates'!N20*'B1.2 Billing Determinants'!N20/100 -> 0 | O20: 78274.28878
C21: RATE 3 - Special Large Volume Contract Rate | E21: ='B1.1 Current Distribution Rates'!E21*'B1.2 Billing Determinants'!E21*12 -> 14400 | F21: ='B1.1 Current Distribution Rates'!F21*'B1.2 Billing Determinants'!F21/100 -> 0 | G21: ='B1.1 Current Distribution Rates'!G21*'B1.2 Billing Determinants'!G21/100 -> 0 | H21: ='B1.1 Current Distribution Rates'!H21*'B1.2 Billing Determinants'!H21/100 -> 0 | I21: ='B1.1 Current Distribution Rates'!I21*'B1.2 Billing Determinants'!I21/100 -> 0 | J21: ='B1.1 Current Distribution Rates'!J21*'B1.2 Billing Determinants'!J21/100 -> 55619.86097 | K21: ='B1.1 Current Distribution Rates'!K21*'B1.2 Billing Determinants'!K21/100 -> 67629.1082 | L21: ='B1.1 Current Distribution Rates'!L21*'B1.2 Billing Determinants'!L21/100 -> 506.287626 | M21: ='B1.1 Current Distribution Rates'!M21*'B1.2 Billing Determinants'!M21/100 -> 0 | N21: ='B1.1 Current Distribution Rates'!N21*'B1.2 Billing Determinants'!N21/100 -> 0 | O21: 138155.2568
C22: RATE 4 - General Service Peaking - Apr to Dec | E22: ='B1.1 Current Distribution Rates'!E22*'B1.2 Billing Determinants'!E22*9 -> 6480 | F22: ='B1.1 Current Distribution Rates'!F22*'B1.2 Billing Determinants'!F22/100 -> 15848.79589 | G22: ='B1.1 Current Distribution Rates'!G22*'B1.2 Billing Determinants'!G22/100 -> 168305.1317 | H22: ='B1.1 Current Distribution Rates'!H22*'B1.2 Billing Determinants'!H22/100 -> 0 | I22: ='B1.1 Current Distribution Rates'!I22*'B1.2 Billing Determinants'!I22/100 -> 0 | J22: ='B1.1 Current Distribution Rates'!J22*'B1.2 Billing Determinants'!J22/100 -> 0 | K22: ='B1.1 Current Distribution Rates'!K22*'B1.2 Billing Determinants'!K22/100 -> 0 | L22: ='B1.1 Current Distribution Rates'!L22*'B1.2 Billing Determinants'!L22/100 -> 690.366141 | M22: ='B1.1 Current Distribution Rates'!M22*'B1.2 Billing Determinants'!M22/100 -> 0 | N22: ='B1.1 Current Distribution Rates'!N22*'B1.2 Billing Determinants'!N22/100 -> 0 | O22: 191324.2937
C23: RATE 4 - General Service Peaking - Jan to Mar | E23: ='B1.1 Current Distribution Rates'!E23*'B1.2 Billing Determinants'!E23*3 -> 2160 | F23: ='B1.1 Current Distribution Rates'!F23*'B1.2 Billing Determinants'!F23/100 -> 8003.812274 | G23: ='B1.1 Current Distribution Rates'!G23*'B1.2 Billing Determinants'!G23/100 -> 28348.07217 | H23: ='B1.1 Current Distribution Rates'!H23*'B1.2 Billing Determinants'!H23/100 -> 0 | I23: ='B1.1 Current Distribution Rates'!I23*'B1.2 Billing Determinants'!I23/100 -> 0 | J23: ='B1.1 Current Distribution Rates'!J23*'B1.2 Billing Determinants'!J23/100 -> 0 | K23: ='B1.1 Current Distribution Rates'!K23*'B1.2 Billing Determinants'!K23/100 -> 0 | L23: ='B1.1 Current Distribution Rates'!L23*'B1.2 Billing Determinants'!L23/100 -> 76.473522 | M23: ='B1.1 Current Distribution Rates'!M23*'B1.2 Billing Determinants'!M23/100 -> 0 | N23: ='B1.1 Current Distribution Rates'!N23*'B1.2 Billing Determinants'!N23/100 -> 0 | O23: 38588.35797
C24: RATE 5 - Interruptible Peaking Contract Rate | E24: ='B1.1 Current Distribution Rates'!E24*'B1.2 Billing Determinants'!E24*12 -> 9120 | F24: ='B1.1 Current Distribution Rates'!F24*'B1.2 Billing Determinants'!F24/100 -> 0 | G24: ='B1.1 Current Distribution Rates'!G24*'B1.2 Billing Determinants'!G24/100 -> 0 | H24: ='B1.1 Current Distribution Rates'!H24*'B1.2 Billing Determinants'!H24/100 -> 0 | I24: ='B1.1 Current Distribution Rates'!I24*'B1.2 Billing Determinants'!I24/100 -> 0 | J24: ='B1.1 Current Distribution Rates'!J24*'B1.2 Billing Determinants'!J24/100 -> 59758.52135 | K24: ='B1.1 Current Distribution Rates'!K24*'B1.2 Billing Determinants'!K24/100 -> 0 | L24: ='B1.1 Current Distribution Rates'!L24*'B1.2 Billing Determinants'!L24/100 -> 346.035714 | M24: ='B1.1 Current Distribution Rates'!M24*'B1.2 Billing Determinants'!M24/100 -> 0 | N24: ='B1.1 Current Distribution Rates'!N24*'B1.2 Billing Determinants'!N24/100 -> 0 | O24: 69224.55706
C25: RATE 6 - Integrated Grain Processors Co-Operative Aylmer Ethanol Production Facility | E25: ='B1.1 Current Distribution Rates'!E25*'B1.2 Billing Determinants'!E25*12 -> 734759.04 | F25: ='B1.1 Current Distribution Rates'!F25*'B1.2 Billing Determinants'!F25/100 -> 0 | G25: ='B1.1 Current Distribution Rates'!G25*'B1.2 Billing Determinants'!G25/100 -> 0 | H25: ='B1.1 Current Distribution Rates'!H25*'B1.2 Billing Determinants'!H25/100 -> 0 | I25: ='B1.1 Current Distribution Rates'!I25*'B1.2 Billing Determinants'!I25/100 -> 0 | J25: ='B1.1 Current Distribution Rates'!J25*'B1.2 Billing Determinants'!J25/100 -> 0 | K25: ='B1.1 Current Distribution Rates'!K25*'B1.2 Billing Determinants'!K25/100 -> 0 | L25: ='B1.1 Current Distribution Rates'!L25*'B1.2 Billing Determinants'!L25/100 -> 0 | M25: ='B1.1 Current Distribution Rates'!M25*'B1.2 Billing Determinants'!M25/100 -> 0 | N25: ='B1.1 Current Distribution Rates'!N25*'B1.2 Billing Determinants'!N25/100 -> 0 | O25: 734759.04
E26: =SUM(E16:E25) -> 2583845.04 | F26: =SUM(F16:F25) -> 2855044.313 | G26: 763951.2418 | H26: 104787.5747 | I26: 9813.83247 | J26: 115378.3823 | K26: 67629.1082 | L26: 13181.60177 | M26: 0 | N26: 0 | O26: 6513631.094
C29: =MID(CELL("filename",A1),FIND("]",CELL("filename",A1))+1,255) -> B1.3 Current Rev From Rates

Sheet D1.1 Rate 1 Adjustment
C2: ='A1.1 Distributor Information'!C3 -> Name of LDC: EPCOR Natural Gas Limited Partnership
C3: ='A1.1 Distributor Information'!C4 -> OEB Application Number: EB-2020-0234 Exhibit A - 2021 IRM Application
C8: Rate 1 Price Cap Adjustment
C11: GDP-IPI | E11: 0.022
C12: Less Productivity | E12: 0
C13: Less Stretch Factor | E13: 0.004
C14: Price Cap Adjustment | E14: =E11-E12-E13 -> 0.018
E16: Current Rate (excl. Bill 32) | F16: 2020 Rate including previously disallowed ratebase | G16: Price Cap | H16: Adjusted Rates (excl. Bill 32) | I16: Billing Determinants | J16: Revenue | L16: Balanced Rates | M16: Revenue
C17: Monthly Service Charge | E17: ='B1.1 Current Distribution Rates'!E16 -> 16.5 | F17: 16.5 | G17: =E14 -> 0.018 | H17: =F17*(1+G17) -> 16.797 | I17: =SUM('B1.2 Billing Determinants'!E16:E18) -> 9117 | J17: =H17*I17*12 -> 1837658.988 | K17: Change | L17: =E17+1 -> 17.5 | M17: =I17*L17*12 -> 1914570
C18: Delivery First 1,000 m3 | E18: ='B1.1 Current Distribution Rates'!F16 -> 13.3814 | F18: 13.6301 | G18: =E14 -> 0.018 | H18: =F18*(1+G18) -> 13.8754418 | I18: =SUM('B1.2 Billing Determinants'!F16:F18) -> 20934802.6 | J18: =H18*I18/100 -> 2904796.351 | K18: Change | L18: =M18/I18*100 -> 13.57005773 | M18: =(J$21-M$17-M$20)*J18/(J$21-J$17-J$20) -> 2840864.799
C19: Delivery Over 1,000 m3 | E19: ='B1.1 Current Distribution Rates'!G16 -> 10.7275 | F19: 10.9546 | G19: =E14 -> 0.018 | H19: 11.1517828 | I19: =SUM('B1.2 Billing Determinants'!G16:G18) -> 5288259.5 | J19: =H19*I19/100 -> 589735.2133 | K19: Change | L19: =M19/I19*100 -> 10.90634364 | M19: =(J$21-M$17-M$20)*J19/(J$21-J$17-J$20) -> 576755.7535
C20: Commodity | E20: ='B1.1 Current Distribution Rates'!L16 -> 0.0435 | F20: =E20 -> 0.0435 | G20: 0 | H20: 0.0435 | I20: =SUM('B1.2 Billing Determinants'!L16:L18) -> 25329430.3 | J20: 11018.30218 | K20: No Change | L20: =E20 -> 0.0435 | M20: =I20*L20/100 -> 11018.30218
J21: =SUM(J17:J20) -> 5343208.854 | M21: =SUM(M17:M20) -> 5343208.854
M23: =(I17*L17)*12+SUMPRODUCT(I18:I20,L18:L20)/100-M21 -> 0
C30: =MID(CELL("filename",A1),FIND("]",CELL("filename",A1))+1,255) -> D1.1 Rate 1 Adjustment

Sheet D1.2 Rate 2 Adjustment
C2: ='A1.1 Distributor Information'!C3 -> Name of LDC: EPCOR Natural Gas Limited Partnership
C3: ='A1.1 Distributor Information'!C4 -> OEB Application Number: EB-2020-0234 Exhibit A - 2021 IRM Application
C8: Rate 2 Price Cap Adjustment
C11: GDP-IPI | E11: ='D1.1 Rate 1 Adjustment'!E11 -> 0.022
C12: Less Productivity | E12: ='D1.1 Rate 1 Adjustment'!E12 -> 0
C13: Less Stretch Factor | E13: ='D1.1 Rate 1 Adjustment'!E13 -> 0.004
C14: Price Cap Adjustment | E14: =E11-E12-E13 -> 0.018
E16: Current Rate (excl. Bill 32) | F16: ='D1.1 Rate 1 Adjustment'!F16 -> 2020 Rate including previously disallowed ratebase | G16: Price Cap | H16: Adjusted Rates (excl. Bill 32) | I16: Billing Determinants | J16: Revenue | L16: Balanced Rates | M16: Revenue
C17: Monthly Service Charge | E17: ='B1.1 Current Distribution Rates'!E19 -> 20 | F17: 20 | G17: =$E$14 -> 0.018 | H17: =F17*(1+G17) -> 20.36 | I17: ='B1.2 Billing Determinants'!E19 -> 49 | J17: =H17*I17*12 -> 11971.68 | K17: No Change | L17: =E17+I11 -> 20 | M17: =I17*L17*12 -> 11760
C18: Delivery First 1,000 m3 - Apr To Oct | E18: ='B1.1 Current Distribution Rates'!F19 -> 16.5854 | F18: 16.7582 | G18: =$E$14 -> 0.018 | H18: =F18*(1+G18) -> 17.0598476 | I18: ='B1.2 Billing Determinants'!F19 -> 82559.2 | J18: =H18*I18/100 -> 14084.4737 | K18: Change | L18: =M18/I18*100 -> 17.08410381 | M18: =(J$25-M$17-M$24)*J18/(J$25-J$17-J$24) -> 14104.49943
C19: Delivery Next 24,000 m3 - Apr To Oct | E19: ='B1.1 Current Distribution Rates'!H19 -> 8.5818 | F19: 8.7056 | G19: 0.018 | H19: 8.8623008 | I19: ='B1.2 Billing Determinants'!H19 -> 593404.1 | J19: =H19*I19/100 -> 52589.2563 | K19: Change | L19: =M19/I19*100 -> 8.874901487 | M19: =(J$25-M$17-M$24)*J19/(J$25-J$17-J$24) -> 52664.0293
C20: Delivery Over 25,000 m3 - Apr To Oct | E20: ='B1.1 Current Distribution Rates'!I19 -> 6.7868 | F20: 6.7868 | G20: 0.018 | H20: 6.9089624 | I20: ='B1.2 Billing Determinants'!I19 -> 97824.6 | J20: 6758.664832 | K20: Change | L20: 6.918785772 | M20: 6768.274506
C21: Delivery First 1,000 m3 - Nov To Mar | E21: ='B1.1 Current Distribution Rates'!F20 -> 20.9056 | F21: 21.1234 | G21: 0.018 | H21: 21.5036212 | I21: ='B1.2 Billing Determinants'!F20 -> 77152.8 | J21: 16590.64586 | K21: Change | L21: 21.5341957 | M21: 16614.23494
C22: Delivery Next 24,000 m3 - Nov To Mar | E22: ='B1.1 Current Distribution Rates'!H20 -> 14.2049 | F22: 14.4099 | G22: 0.018 | H22: 14.6692782 | I22: ='B1.2 Billing Determinants'!H20 -> 379184.8 | J22: 55623.6732 | K22: Change | L22: 14.69013542 | M22: 55702.76063
C23: Delivery Over 25,000 m3 - Nov To Mar | E23: ='B1.1 Current Distribution Rates'!I20 -> 15.2899 | F23: 15.2899 | G23: 0.018 | H23: 15.5651182 | I23: ='B1.2 Billing Determinants'!I20 -> 20763.2 | J23: 3231.816622 | K23: Change | L23: 15.58724916 | M23: 3236.411717
C24: Commodity | E24: ='B1.1 Current Distribution Rates'!L19 -> 0.0435 | F24: =E24 -> 0.0435 | G24: 0 | H24: 0.0435 | I24: =SUM('B1.2 Billing Determinants'!L19:L20) -> 1250888.7 | J24: 544.1365845 | K24: No Change | L24: =E24 -> 0.0435 | M24: =I24*L24/100 -> 544.1365845
J25: =SUM(J17:J24) -> 161394.3471 | M25: =SUM(M17:M24) -> 161394.3471
M27: =(I17*L17)*12+SUMPRODUCT(I18:I24,L18:L24)/100-M25 -> 0
C31: =MID(CELL("filename",A1),FIND("]",CELL("filename",A1))+1,255) -> D1.2 Rate 2 Adjustment

Sheet D1.3 Rate 3 Adjustment
C2: ='A1.1 Distributor Information'!C3 -> Name of LDC: EPCOR Natural Gas Limited Partnership
C3: ='A1.1 Distributor Information'!C4 -> OEB Application Number: EB-2020-0234 Exhibit A - 2021 IRM Application
C8: Rate 3 Price Cap Adjustment
C11: GDP-IPI | E11: ='D1.1 Rate 1 Adjustment'!E11 -> 0.022
C12: Less Productivity | E12: ='D1.1 Rate 1 Adjustment'!E12 -> 0
C13: Less Stretch Factor | E13: ='D1.1 Rate 1 Adjustment'!E13 -> 0.004
C14: Price Cap Adjustment | E14: =E11-E12-E13 -> 0.018
E16: Current Rate (excl. Bill 32) | F16: ='D1.1 Rate 1 Adjustment'!F16 -> 2020 Rate including previously disallowed ratebase | G16: Price Cap | H16: Adjusted Rates (excl. Bill 32) | I16: Billing Determinants | J16: Revenue | L16: Balanced Rates | M16: Revenue
C17: Monthly Service Charge | E17: ='B1.1 Current Distribution Rates'!E21 -> 200 | F17: 200 | G17: =E14 -> 0.018 | H17: =F17*(1+G17) -> 203.6 | I17: ='B1.2 Billing Determinants'!E21 -> 6 | J17: =H17*I17*12 -> 14659.2 | K17: No Change | L17: =E17+I11 -> 200 | M17: =I17*L17*12 -> 14400
C18: Delivery Firm | E18: ='B1.1 Current Distribution Rates'!J21 -> 3.6011 | F18: 3.8403 | G18: =E14 -> 0.018 | H18: =F18*(1+G18) -> 3.9094254 | I18: ='B1.2 Billing Determinants'!J21 -> 1544524.2 | J18: =H18*I18/100 -> 60382.02138 | K18: Change | L18: =M18/I18*100 -> 3.917266731 | M18: =(J$21-M$17-M$20)*J18/(J$21-J$17-J$20) -> 60503.13264
C19: Demand Firm | E19: ='B1.1 Current Distribution Rates'!K21 -> 29.0974 | F19: 29.0974 | G19: =E14 -> 0.018 | H19: 29.6211532 | I19: ='B1.2 Billing Determinants'!K21 -> 232423.2 | J19: =H19*I19/100 -> 68846.43214 | K19: Change | L19: =M19/I19*100 -> 29.68056583 | M19: =(J$21-M$17-M$20)*J19/(J$21-J$17-J$20) -> 68984.52089
C20: Commodity | E20: ='B1.1 Current Distribution Rates'!L21 -> 0.0435 | F20: =E20 -> 0.0435 | G20: 0 | H20: 0.0435 | I20: ='B1.2 Billing Determinants'!L21 -> 1163879.6 | J20: 506.287626 | K20: No Change | L20: =E20 -> 0.0435 | M20: =I20*L20/100 -> 506.287626
J21: =SUM(J17:J20) -> 144393.9412 | M21: =SUM(M17:M20) -> 144393.9412
M23: =(I17*L17)*12+SUMPRODUCT(I18:I20,L18:L20)/100-M21 -> 0
C26: =MID(CELL("filename",A1),FIND("]",CELL("filename",A1))+1,255) -> D1.3 Rate 3 Adjustment

Sheet D1.4 Rate 4 Adjustment
C2: ='A1.1 Distributor Information'!C3 -> Name of LDC: EPCOR Natural Gas Limited Partnership
C3: ='A1.1 Distributor Information'!C4 -> OEB Application Number: EB-2020-0234 Exhibit A - 2021 IRM Application
C8: Rate 4 Price Cap Adjustment
C11: GDP-IPI | E11: ='D1.1 Rate 1 Adjustment'!E11 -> 0.022
C12: Less Productivity | E12: ='D1.1 Rate 1 Adjustment'!E12 -> 0
C13: Less Stretch Factor | E13: ='D1.1 Rate 1 Adjustment'!E13 -> 0.004
C14: Price Cap Adjustment | E14: =E11-E12-E13 -> 0.018
E16: Current Rate (excl. Bill 32) | F16: ='D1.1 Rate 1 Adjustment'!F16 -> 2020 Rate including previously disallowed ratebase | G16: Price Cap | H16: Adjusted Rates (excl. Bill 32) | I16: Billing Determinants | J16: Revenue | L16: Balanced Rates | M16: Revenue
C17: Monthly Service Charge | E17: ='B1.1 Current Distribution Rates'!E22 -> 20 | F17: 20 | G17: =$E$14 -> 0.018 | H17: =F17*(1+G17) -> 20.36 | I17: ='B1.2 Billing Determinants'!E22 -> 36 | J17: =H17*I17*12 -> 8795.52 | K17: No Change | L17: =E17 -> 20 | M17: =I17*L17*12 -> 8640
C18: Delivery First 1,000 m3 - Apr To Dec | E18: ='B1.1 Current Distribution Rates'!F22 -> 18.2634 | F18: 18.584 | G18: =$E$14 -> 0.018 | H18: =F18*(1+G18) -> 18.918512 | I18: ='B1.2 Billing Determinants'!F22 -> 86779 | J18: =H18*I18/100 -> 16417.29553 | K18: Change | L18: =M18/I18*100 -> 18.93139285 | M18: =(J$23-M$17-M$22)*J18/(J$23-J$17-J$22) -> 16428.4734
C19: Delivery Over 1,000 m3 - Apr To Dec | E19: ='B1.1 Current Distribution Rates'!G22 -> 11.2057 | F19: 11.4025 | G19: 0.018 | H19: 11.607745 | I19: ='B1.2 Billing Determinants'!G22 -> 1501960 | J19: =H19*I19/100 -> 174343.6868 | K19: Change | L19: =M19/I19*100 -> 11.61564825 | M19: =(J$23-M$17-M$22)*J19/(J$23-J$17-J$22) -> 174462.3904
C20: Delivery First 1,000 m3 - Jan To Mar | E20: ='B1.1 Current Distribution Rates'!F23 -> 23.299 | F20: 23.7081 | G20: 0.018 | H20: 24.1348458 | I20: ='B1.2 Billing Determinants'!F23 -> 34352.6 | J20: 8290.947038 | K20: Change | L20: 24.15127824 | M20: 8296.59201
C21: Delivery Over 1,000 m3 - Jan To Mar | E21: ='B1.1 Current Distribution Rates'!G23 -> 18.004 | F21: 18.3202 | G21: 0.018 | H21: 18.6499636 | I21: ='B1.2 Billing Determinants'!G23 -> 157454.3 | J21: 29365.16964 | K21: Change | L21: =M21/I21*100 -> 18.66266161 | M21: 29385.1632
C22: Commodity | E22: ='B1.1 Current Distribution Rates'!L22 -> 0.0435 | F22: =E22 -> 0.0435 | G22: 0 | H22: 0.0435 | I22: =SUM('B1.2 Billing Determinants'!L22:L23) -> 1762849.8 | J22: 766.839663 | K22: No Change | L22: =E22 -> 0.0435 | M22: =I22*L22/100 -> 766.839663
J23: =SUM(J17:J22) -> 237979.4587 | M23: =SUM(M17:M22) -> 237979.4587
M25: =(I17*L17)*12+SUMPRODUCT(I18:I22,L18:L22)/100-M23 -> 0
C28: =MID(CELL("filename",A1),FIND("]",CELL("filename",A1))+1,255) -> D1.4 Rate 4 Adjustment

Sheet D1.5 Rate 5 Adjustment
C2: ='A1.1 Distributor Information'!C3 -> Name of LDC: EPCOR Natural Gas Limited Partnership
C3: ='A1.1 Distributor Information'!C4 -> OEB Application Number: EB-2020-0234 Exhibit A - 2021 IRM Application
C8: Rate 5 Price Cap Adjustment
C11: GDP-IPI | E11: ='D1.1 Rate 1 Adjustment'!E11 -> 0.022
C12: Less Productivity | E12: ='D1.1 Rate 1 Adjustment'!E12 -> 0
C13: Less Stretch Factor | E13: ='D1.1 Rate 1 Adjustment'!E13 -> 0.004
C14: Price Cap Adjustment | E14: =E11-E12-E13 -> 0.018
E16: Current Rate (excl. Bill 32) | F16: ='D1.1 Rate 1 Adjustment'!F16 -> 2020 Rate including previously disallowed ratebase | G16: Price Cap | H16: Adjusted Rates (excl. Bill 32) | I16: Billing Determinants | J16: Revenue | L16: Balanced Rates | M16: Revenue
C17: Monthly Service Charge | E17: ='B1.1 Current Distribution Rates'!E24 -> 190 | F17: 190 | G17: =E14 -> 0.018 | H17: =F17*(1+G17) -> 193.42 | I17: ='B1.2 Billing Determinants'!E24 -> 4 | J17: =H17*I17*12 -> 9284.16 | K17: No Change | L17: =E17+I11 -> 190 | M17: =I17*L17*12 -> 9120
C18: Delivery Firm | E18: ='B1.1 Current Distribution Rates'!J24 -> 7.512217882 | F18: =8.2908/8.1474*E18 -> 7.644438228 | G18: =E14 -> 0.018 | H18: =F18*(1+G18) -> 7.782038116 | I18: ='B1.2 Billing Determinants'!J24 -> 795484.4 | J18: =H18*I18/100 -> 61904.89922 | K18: Change | L18: =M18/I18*100 -> 7.802674599 | M18: =J20-M17-M19 -> 62069.05922
C19: Commodity | E19: ='B1.1 Current Distribution Rates'!L24 -> 0.0435 | F19: =E19 -> 0.0435 | G19: 0 | H19: 0.0435 | I19: ='B1.2 Billing Determinants'!L24 -> 795484.4 | J19: =H19*I19/100 -> 346.035714 | K19: No Change | L19: =E19 -> 0.0435 | M19: =I19*L19/100 -> 346.035714
J20: =SUM(J17:J19) -> 71535.09493 | M20: =SUM(M17:M19) -> 71535.09493
M22: =(I17*L17)*12+SUMPRODUCT(I18:I19,L18:L19)/100-M20 -> 0
C26: =MID(CELL("filename",A1),FIND("]",CELL("filename",A1))+1,255) -> D1.5 Rate 5 Adjustment

Sheet D1.6 Rate 6 Adjustment
C2: ='A1.1 Distributor Information'!C3 -> Name of LDC: EPCOR Natural Gas Limited Partnership
C3: ='A1.1 Distributor Information'!C4 -> OEB Application Number: EB-2020-0234 Exhibit A - 2021 IRM Application
C8: Rate 6 Price Cap Adjustment
C11: GDP-IPI | E11: ='D1.1 Rate 1 Adjustment'!E11 -> 0.022
C12: Less Productivity | E12: ='D1.1 Rate 1 Adjustment'!E12 -> 0
C13: Less Stretch Factor | E13: ='D1.1 Rate 1 Adjustment'!E13 -> 0.004
C14: Price Cap Adjustment | E14: =E11-E12-E13 -> 0.018
E16: Current Rate (excl. Bill 32) | F16: ='D1.1 Rate 1 Adjustment'!F16 -> 2020 Rate including previously disallowed ratebase | G16: Price Cap | H16: Adjusted Rates (excl. Bill 32) | I16: Billing Determinants | J16: Revenue | L16: Balanced Rates | M16: Revenue
C17: Monthly Service Charge | E17: ='B1.1 Current Distribution Rates'!E25 -> 61229.92 | F17: 61229.92 | G17: =E14 -> 0.018 | H17: =F17*(1+G17) -> 62332.05856 | I17: ='B1.2 Billing Determinants'!E25 -> 1 | J17: =H17*I17*12 -> 747984.7027 | K17: Change | L17: =H17 -> 62332.05856 | M17: =I17*L17*12 -> 747984.7027
C18: Delivery Firm | E18: ='B1.1 Current Distribution Rates'!J25 -> 0 | G18: =E14 -> 0.018 | H18: =F18*(1+G18) -> 0 | I18: ='B1.2 Billing Determinants'!J25 -> 62382456 | J18: =H18*I18/100 -> 0 | K18: No Change | M18: =J20-M17-M19 -> 0
C19: Demand Firm | E19: ='B1.1 Current Distribution Rates'!K25 -> 0 | G19: =E14 -> 0.018 | H19: 0 | I19: ='B1.2 Billing Determinants'!K25 -> 0 | J19: =H19*I19/100 -> 0 | K19: No Change | M19: =I19*L19/100 -> 0
J20: =SUM(J17:J19) -> 747984.7027 | M20: =SUM(M17:M19) -> 747984.7027
M22: =J20-M20 -> 0
C24: =MID(CELL("filename",A1),FIND("]",CELL("filename",A1))+1,255) -> D1.6 Rate 6 Adjustment

Sheet E1.1 Proposed Dist Rates
C2: ='A1.1 Distributor Information'!C3 -> Name of LDC: EPCOR Natural Gas Limited Partnership
C3: ='A1.1 Distributor Information'!C4 -> OEB Application Number: EB-2020-0234 Exhibit A - 2021 IRM Application
C10: Proposed Distribution Tariff Sheet Rates
C15: Rate Group | E15: Monthly Service Charge (excl. Bill 32) | F15: Delivery First 1,000 m3 | G15: Delivery Over 1,000 m3 | H15: Delivery Next 24,000 m3 | I15: Delivery Over 25,000 m3 | J15: Delivery - Firm | K15: Demand - Firm | L15: Commodity | M15: Delivery - Int - Lower | N15: Delivery - Int - Upper
C16: RATE 1 - General Service Rate - Residential | E16: ='D1.1 Rate 1 Adjustment'!L17 -> 17.5 | F16: ='D1.1 Rate 1 Adjustment'!L18 -> 13.57005773 | G16: ='D1.1 Rate 1 Adjustment'!L19 -> 10.90634364 | L16: ='D1.1 Rate 1 Adjustment'!L20 -> 0.0435
C17: RATE 1 - General Service Rate - Commercial | E17: ='D1.1 Rate 1 Adjustment'!L17 -> 17.5 | F17: ='D1.1 Rate 1 Adjustment'!L18 -> 13.57005773 | G17: ='D1.1 Rate 1 Adjustment'!L19 -> 10.90634364 | L17: ='D1.1 Rate 1 Adjustment'!L20 -> 0.0435
C18: RATE 1 - General Service Rate - Industrial | E18: ='D1.1 Rate 1 Adjustment'!L17 -> 17.5 | F18: ='D1.1 Rate 1 Adjustment'!L18 -> 13.57005773 | G18: ='D1.1 Rate 1 Adjustment'!L19 -> 10.90634364 | L18: ='D1.1 Rate 1 Adjustment'!L20 -> 0.0435
C19: RATE 2 - Seasonal Service - Apr to Oct | E19: ='D1.2 Rate 2 Adjustment'!L17 -> 20 | F19: ='D1.2 Rate 2 Adjustment'!L18 -> 17.08410381 | H19: ='D1.2 Rate 2 Adjustment'!L19 -> 8.874901487 | I19: ='D1.2 Rate 2 Adjustment'!L20 -> 6.918785772 | L19: ='D1.2 Rate 2 Adjustment'!L24 -> 0.0435
C20: RATE 2 - Seasonal Service - Nov to Mar | E20: ='D1.2 Rate 2 Adjustment'!L17 -> 20 | F20: ='D1.2 Rate 2 Adjustment'!L21 -> 21.5341957 | H20: ='D1.2 Rate 2 Adjustment'!L22 -> 14.69013542 | I20: ='D1.2 Rate 2 Adjustment'!L23 -> 15.58724916 | L20: ='D1.2 Rate 2 Adjustment'!L24 -> 0.0435
C21: RATE 3 - Special Large Volume Contract Rate | E21: ='D1.3 Rate 3 Adjustment'!L17 -> 200 | J21: ='D1.3 Rate 3 Adjustment'!L18 -> 3.917266731 | K21: ='D1.3 Rate 3 Adjustment'!L19 -> 29.68056583 | L21: ='D1.3 Rate 3 Adjustment'!L20 -> 0.0435 | M21: ='B1.1 Current Distribution Rates'!M21*(1+'D1.3 Rate 3 Adjustment'!$E$14) -> 7.7526808 | N21: ='B1.1 Current Distribution Rates'!N21*(1+'D1.3 Rate 3 Adjustment'!$E$14) -> 10.7010124
C22: RATE 4 - General Service Peaking - Apr to Dec | E22: ='D1.4 Rate 4 Adjustment'!L17 -> 20 | F22: ='D1.4 Rate 4 Adjustment'!L18 -> 18.93139285 | G22: ='D1.4 Rate 4 Adjustment'!L19 -> 11.61564825 | L22: ='D1.4 Rate 4 Adjustment'!L22 -> 0.0435
C23: RATE 4 - General Service Peaking - Jan to Mar | E23: ='D1.4 Rate 4 Adjustment'!L17 -> 20 | F23: ='D1.4 Rate 4 Adjustment'!L20 -> 24.15127824 | G23: ='D1.4 Rate 4 Adjustment'!L21 -> 18.66266161 | L23: ='D1.4 Rate 4 Adjustment'!L22 -> 0.0435
C24: RATE 5 - Interruptible Peaking Contract Rate | E24: ='D1.5 Rate 5 Adjustment'!L17 -> 190 | J24: ='D1.5 Rate 5 Adjustment'!L18 -> 7.802674599 | K24: 1 | L24: ='D1.5 Rate 5 Adjustment'!L19 -> 0.0435 | M24: ='B1.1 Current Distribution Rates'!M24*(1+'D1.3 Rate 3 Adjustment'!$E$14) -> 6.08764 | N24: ='B1.1 Current Distribution Rates'!N24*(1+'D1.3 Rate 3 Adjustment'!$E$14) -> 9.43177
C25: RATE 6 - Integrated Grain Processors Co-Operative Aylmer Ethanol Production Facility | E25: ='D1.6 Rate 6 Adjustment'!L17 -> 62332.05856 | J25: ='D1.6 Rate 6 Adjustment'!L18 -> 0 | K25: ='D1.6 Rate 6 Adjustment'!L19 -> 0 | M25: ='B1.1 Current Distribution Rates'!M25 -> 0 | N25: ='B1.1 Current Distribution Rates'!N25 -> 0
C27: 1 Placeholder rate for average application
C30: =MID(CELL("filename",A1),FIND("]",CELL("filename",A1))+1,255) -> E1.1 Proposed Dist Rates

Sheet E1.2 Billing Determinants
C2: ='A1.1 Distributor Information'!C3 -> Name of LDC: EPCOR Natural Gas Limited Partnership
C3: ='A1.1 Distributor Information'!C4 -> OEB Application Number: EB-2020-0234 Exhibit A - 2021 IRM Application
C10: ='B1.2 Billing Determinants'!C10 -> Billing Determinants - Actuals January 1, 2019 to December 31, 2019
C15: Rate Group | E15: Monthly Service Charge | F15: Delivery First 1,000 m3 | G15: Delivery Over 1,000 m3 | H15: Delivery Next 24,000 m3 | I15: Delivery Over 25,000 m3 | J15: Delivery - Firm | K15: Demand - Firm | L15: Commodity | M15: Delivery - Int - Lower | N15: Delivery - Int - Upper
C16: RATE 1 - General Service Rate - Residential | E16: ='B1.2 Billing Determinants'!E16 -> 8561 | F16: ='B1.2 Billing Determinants'!F16 -> 17877110.2 | G16: ='B1.2 Billing Determinants'!G16 -> 212795.9 | H16: ='B1.2 Billing Determinants'!H16 -> 0 | I16: ='B1.2 Billing Determinants'!I16 -> 0 | J16: ='B1.2 Billing Determinants'!J16 -> 0 | K16: ='B1.2 Billing Determinants'!K16 -> 0 | L16: ='B1.2 Billing Determinants'!L16 -> 18063122.9 | M16: ='B1.2 Billing Determinants'!M16 -> 0 | N16: ='B1.2 Billing Determinants'!N16 -> 0
C17: RATE 1 - General Service Rate - Commercial | E17: ='B1.2 Billing Determinants'!E17 -> 485 | F17: ='B1.2 Billing Determinants'!F17 -> 2600506.4 | G17: ='B1.2 Billing Determinants'!G17 -> 3148914.5 | H17: ='B1.2 Billing Determinants'!H17 -> 0 | I17: ='B1.2 Billing Determinants'!I17 -> 0 | J17: ='B1.2 Billing Determinants'!J17 -> 0 | K17: ='B1.2 Billing Determinants'!K17 -> 0 | L17: ='B1.2 Billing Determinants'!L17 -> 5070409.4 | M17: ='B1.2 Billing Determinants'!M17 -> 0 | N17: ='B1.2 Billing Determinants'!N17 -> 0
C18: RATE 1 - General Service Rate - Industrial | E18: ='B1.2 Billing Determinants'!E18 -> 71 | F18: ='B1.2 Billing Determinants'!F18 -> 457186 | G18: ='B1.2 Billing Determinants'!G18 -> 1926549.1 | H18: ='B1.2 Billing Determinants'!H18 -> 0 | I18: ='B1.2 Billing Determinants'!I18 -> 0 | J18: ='B1.2 Billing Determinants'!J18 -> 0 | K18: ='B1.2 Billing Determinants'!K18 -> 0 | L18: ='B1.2 Billing Determinants'!L18 -> 2195898 | M18: ='B1.2 Billing Determinants'!M18 -> 0 | N18: ='B1.2 Billing Determinants'!N18 -> 0
C19: RATE 2 - Seasonal Service - Apr to Oct | E19: ='B1.2 Billing Determinants'!E19 -> 49 | F19: ='B1.2 Billing Determinants'!F19 -> 82559.2 | G19: ='B1.2 Billing Determinants'!G19 -> 0 | H19: ='B1.2 Billing Determinants'!H19 -> 593404.1 | I19: ='B1.2 Billing Determinants'!I19 -> 97824.6 | J19: ='B1.2 Billing Determinants'!J19 -> 0 | K19: ='B1.2 Billing Determinants'!K19 -> 0 | L19: ='B1.2 Billing Determinants'!L19 -> 773787.9 | M19: ='B1.2 Billing Determinants'!M19 -> 0 | N19: ='B1.2 Billing Determinants'!N19 -> 0
C20: RATE 2 - Seasonal Service - Nov to Mar | E20: ='B1.2 Billing Determinants'!E20 -> 49 | F20: ='B1.2 Billing Determinants'!F20 -> 77152.8 | G20: ='B1.2 Billing Determinants'!G20 -> 0 | H20: ='B1.2 Billing Determinants'!H20 -> 379184.8 | I20: ='B1.2 Billing Determinants'!I20 -> 20763.2 | J20: ='B1.2 Billing Determinants'!J20 -> 0 | K20: ='B1.2 Billing Determinants'!K20 -> 0 | L20: ='B1.2 Billing Determinants'!L20 -> 477100.8 | M20: ='B1.2 Billing Determinants'!M20 -> 0 | N20: ='B1.2 Billing Determinants'!N20 -> 0
C21: RATE 3 - Special Large Volume Contract Rate | E21: ='B1.2 Billing Determinants'!E21 -> 6 | F21: ='B1.2 Billing Determinants'!F21 -> 0 | G21: ='B1.2 Billing Determinants'!G21 -> 0 | H21: ='B1.2 Billing Determinants'!H21 -> 0 | I21: ='B1.2 Billing Determinants'!I21 -> 0 | J21: ='B1.2 Billing Determinants'!J21 -> 1544524.2 | K21: ='B1.2 Billing Determinants'!K21 -> 232423.2 | L21: ='B1.2 Billing Determinants'!L21 -> 1163879.6 | M21: ='B1.2 Billing Determinants'!M21 -> 0 | N21: ='B1.2 Billing Determinants'!N21 -> 0
C22: RATE 4 - General Service Peaking - Apr to Dec | E22: ='B1.2 Billing Determinants'!E22 -> 36 | F22: ='B1.2 Billing Determinants'!F22 -> 86779 | G22: ='B1.2 Billing Determinants'!G22 -> 1501960 | H22: ='B1.2 Billing Determinants'!H22 -> 0 | I22: ='B1.2 Billing Determinants'!I22 -> 0 | J22: ='B1.2 Billing Determinants'!J22 -> 0 | K22: ='B1.2 Billing Determinants'!K22 -> 0 | L22: ='B1.2 Billing Determinants'!L22 -> 1587048.6 | M22: ='B1.2 Billing Determinants'!M22 -> 0 | N22: ='B1.2 Billing Determinants'!N22 -> 0
C23: RATE 4 - General Service Peaking - Jan to Mar | E23: ='B1.2 Billing Determinants'!E23 -> 36 | F23: ='B1.2 Billing Determinants'!F23 -> 34352.6 | G23: ='B1.2 Billing Determinants'!G23 -> 157454.3 | H23: ='B1.2 Billing Determinants'!H23 -> 0 | I23: ='B1.2 Billing Determinants'!I23 -> 0 | J23: ='B1.2 Billing Determinants'!J23 -> 0 | K23: ='B1.2 Billing Determinants'!K23 -> 0 | L23: ='B1.2 Billing Determinants'!L23 -> 175801.2 | M23: ='B1.2 Billing Determinants'!M23 -> 0 | N23: ='B1.2 Billing Determinants'!N23 -> 0
C24: RATE 5 - Interruptible Peaking Contract Rate | E24: ='B1.2 Billing Determinants'!E24 -> 4 | F24: ='B1.2 Billing Determinants'!F24 -> 0 | G24: ='B1.2 Billing Determinants'!G24 -> 0 | H24: ='B1.2 Billing Determinants'!H24 -> 0 | I24: ='B1.2 Billing Determinants'!I24 -> 0 | J24: ='B1.2 Billing Determinants'!J24 -> 795484.4 | K24: ='B1.2 Billing Determinants'!K24 -> 0 | L24: ='B1.2 Billing Determinants'!L24 -> 795484.4 | M24: ='B1.2 Billing Determinants'!M24 -> 0 | N24: ='B1.2 Billing Determinants'!N24 -> 0
C25: RATE 6 - Integrated Grain Processors Co-Operative Aylmer Ethanol Production Facility | E25: ='B1.2 Billing Determinants'!E25 -> 1 | F25: ='B1.2 Billing Determinants'!F25 -> 0 | G25: ='B1.2 Billing Determinants'!G25 -> 0 | H25: ='B1.2 Billing Determinants'!H25 -> 0 | I25: ='B1.2 Billing Determinants'!I25 -> 0 | J25: ='B1.2 Billing Determinants'!J25 -> 62382456 | K25: ='B1.2 Billing Determinants'!K25 -> 0 | L25: ='B1.2 Billing Determinants'!L25 -> 0 | M25: ='B1.2 Billing Determinants'!M25 -> 0 | N25: ='B1.2 Billing Determinants'!N25 -> 0
E26: =SUM(E16:E19,E21:E22,E24:E25) -> 9213 | F26: =SUM(F16:F25) -> 21215646.2 | G26: 6947673.8 | H26: 972588.9 | I26: 118587.8 | J26: 64722464.6 | K26: 232423.2 | L26: 30302532.8 | M26: 0 | N26: 0
C30: =MID(CELL("filename",A1),FIND("]",CELL("filename",A1))+1,255) -> E1.2 Billing Determinants

Sheet E1.3 Proposed Rev From Rate
C2: ='A1.1 Distributor Information'!C3 -> Name of LDC: EPCOR Natural Gas Limited Partnership
C3: ='A1.1 Distributor Information'!C4 -> OEB Application Number: EB-2020-0234 Exhibit A - 2021 IRM Application
C10: Proposed Revenue from Rates
C15: Rate Group | E15: Monthly Service Charge | F15: Delivery First 1,000 m3 | G15: Delivery Over 1,000 m3 | H15: Delivery Next 24,000 m3 | I15: Delivery Over 25,000 m3 | J15: Demand - Firm | K15: Delivery - Firm | L15: Commodity | M15: Delivery - Int - Lower | N15: Delivery - Int - Upper | O15: Total
C16: RATE 1 - General Service Rate - Residential | E16: ='E1.1 Proposed Dist Rates '!E16*'E1.2 Billing Determinants'!E16*12 -> 1797810 | F16: ='E1.1 Proposed Dist Rates '!F16*'E1.2 Billing Determinants'!F16/100 -> 2425934.175 | G16: ='E1.1 Proposed Dist Rates '!G16*'E1.2 Billing Determinants'!G16/100 -> 23208.2521 | H16: ='E1.1 Proposed Dist Rates '!H16*'E1.2 Billing Determinants'!H16/100 -> 0 | I16: ='E1.1 Proposed Dist Rates '!I16*'E1.2 Billing Determinants'!I16/100 -> 0 | J16: ='E1.1 Proposed Dist Rates '!J16*'E1.2 Billing Determinants'!J16/100 -> 0 | K16: ='E1.1 Proposed Dist Rates '!K16*'E1.2 Billing Determinants'!K16/100 -> 0 | L16: ='E1.1 Proposed Dist Rates '!L16*'E1.2 Billing Determinants'!L16/100 -> 7857.458461 | M16: ='E1.1 Proposed Dist Rates '!M16*'E1.2 Billing Determinants'!M16/100 -> 0 | N16: ='E1.1 Proposed Dist Rates '!N16*'E1.2 Billing Determinants'!N16/100 -> 0 | O16: =SUM(E16:N16) -> 4254809.885
C17: RATE 1 - General Service Rate - Commercial | E17: ='E1.1 Proposed Dist Rates '!E17*'E1.2 Billing Determinants'!E17*12 -> 101850 | F17: ='E1.1 Proposed Dist Rates '!F17*'E1.2 Billing Determinants'!F17/100 -> 352890.2198 | G17: ='E1.1 Proposed Dist Rates '!G17*'E1.2 Billing Determinants'!G17/100 -> 343431.4362 | H17: ='E1.1 Proposed Dist Rates '!H17*'E1.2 Billing Determinants'!H17/100 -> 0 | I17: ='E1.1 Proposed Dist Rates '!I17*'E1.2 Billing Determinants'!I17/100 -> 0 | J17: ='E1.1 Proposed Dist Rates '!J17*'E1.2 Billing Determinants'!J17/100 -> 0 | K17: ='E1.1 Proposed Dist Rates '!K17*'E1.2 Billing Determinants'!K17/100 -> 0 | L17: ='E1.1 Proposed Dist Rates '!L17*'E1.2 Billing Determinants'!L17/100 -> 2205.628089 | M17: ='E1.1 Proposed Dist Rates '!M17*'E1.2 Billing Determinants'!M17/100 -> 0 | N17: ='E1.1 Proposed Dist Rates '!N17*'E1.2 Billing Determinants'!N17/100 -> 0 | O17: =SUM(E17:N17) -> 800377.2841
C18: RATE 1 - General Service Rate - Industrial | E18: ='E1.1 Proposed Dist Rates '!E18*'E1.2 Billing Determinants'!E18*12 -> 14910 | F18: ='E1.1 Proposed Dist Rates '!F18*'E1.2 Billing Determinants'!F18/100 -> 62040.40413 | G18: ='E1.1 Proposed Dist Rates '!G18*'E1.2 Billing Determinants'!G18/100 -> 210116.0652 | H18: ='E1.1 Proposed Dist Rates '!H18*'E1.2 Billing Determinants'!H18/100 -> 0 | I18: ='E1.1 Proposed Dist Rates '!I18*'E1.2 Billing Determinants'!I18/100 -> 0 | J18: ='E1.1 Proposed Dist Rates '!J18*'E1.2 Billing Determinants'!J18/100 -> 0 | K18: ='E1.1 Proposed Dist Rates '!K18*'E1.2 Billing Determinants'!K18/100 -> 0 | L18: ='E1.1 Proposed Dist Rates '!L18*'E1.2 Billing Determinants'!L18/100 -> 955.21563 | M18: ='E1.1 Proposed Dist Rates '!M18*'E1.2 Billing Determinants'!M18/100 -> 0 | N18: ='E1.1 Proposed Dist Rates '!N18*'E1.2 Billing Determinants'!N18/100 -> 0 | O18: 288021.685
C19: RATE 2 - Seasonal Service - Apr to Oct | E19: ='E1.1 Proposed Dist Rates '!E19*'E1.2 Billing Determinants'!E19*7 -> 6860 | F19: ='E1.1 Proposed Dist Rates '!F19*'E1.2 Billing Determinants'!F19/100 -> 14104.49943 | G19: ='E1.1 Proposed Dist Rates '!G19*'E1.2 Billing Determinants'!G19/100 -> 0 | H19: ='E1.1 Proposed Dist Rates '!H19*'E1.2 Billing Determinants'!H19/100 -> 52664.0293 | I19: ='E1.1 Proposed Dist Rates '!I19*'E1.2 Billing Determinants'!I19/100 -> 6768.274506 | J19: ='E1.1 Proposed Dist Rates '!J19*'E1.2 Billing Determinants'!J19/100 -> 0 | K19: ='E1.1 Proposed Dist Rates '!K19*'E1.2 Billing Determinants'!K19/100 -> 0 | L19: ='E1.1 Proposed Dist Rates '!L19*'E1.2 Billing Determinants'!L19/100 -> 336.5977365 | M19: ='E1.1 Proposed Dist Rates '!M19*'E1.2 Billing Determinants'!M19/100 -> 0 | N19: ='E1.1 Proposed Dist Rates '!N19*'E1.2 Billing Determinants'!N19/100 -> 0 | O19: 80733.40097
C20: RATE 2 - Seasonal Service - Nov to Mar | E20: ='E1.1 Proposed Dist Rates '!E20*'E1.2 Billing Determinants'!E20*5 -> 4900 | F20: ='E1.1 Proposed Dist Rates '!F20*'E1.2 Billing Determinants'!F20/100 -> 16614.23494 | G20: ='E1.1 Proposed Dist Rates '!G20*'E1.2 Billing Determinants'!G20/100 -> 0 | H20: ='E1.1 Proposed Dist Rates '!H20*'E1.2 Billing Determinants'!H20/100 -> 55702.76063 | I20: ='E1.1 Proposed Dist Rates '!I20*'E1.2 Billing Determinants'!I20/100 -> 3236.411717 | J20: ='E1.1 Proposed Dist Rates '!J20*'E1.2 Billing Determinants'!J20/100 -> 0 | K20: ='E1.1 Proposed Dist Rates '!K20*'E1.2 Billing Determinants'!K20/100 -> 0 | L20: ='E1.1 Proposed Dist Rates '!L20*'E1.2 Billing Determinants'!L20/100 -> 207.538848 | M20: ='E1.1 Proposed Dist Rates '!M20*'E1.2 Billing Determinants'!M20/100 -> 0 | N20: ='E1.1 Proposed Dist Rates '!N20*'E1.2 Billing Determinants'!N20/100 -> 0 | O20: 80660.94613
C21: RATE 3 - Special Large Volume Contract Rate | E21: ='E1.1 Proposed Dist Rates '!E21*'E1.2 Billing Determinants'!E21*12 -> 14400 | F21: ='E1.1 Proposed Dist Rates '!F21*'E1.2 Billing Determinants'!F21/100 -> 0 | G21: ='E1.1 Proposed Dist Rates '!G21*'E1.2 Billing Determinants'!G21/100 -> 0 | H21: ='E1.1 Proposed Dist Rates '!H21*'E1.2 Billing Determinants'!H21/100 -> 0 | I21: ='E1.1 Proposed Dist Rates '!I21*'E1.2 Billing Determinants'!I21/100 -> 0 | J21: ='E1.1 Proposed Dist Rates '!J21*'E1.2 Billing Determinants'!J21/100 -> 60503.13264 | K21: ='E1.1 Proposed Dist Rates '!K21*'E1.2 Billing Determinants'!K21/100 -> 68984.52089 | L21: ='E1.1 Proposed Dist Rates '!L21*'E1.2 Billing Determinants'!L21/100 -> 506.287626 | M21: ='E1.1 Proposed Dist Rates '!M21*'E1.2 Billing Determinants'!M21/100 -> 0 | N21: ='E1.1 Proposed Dist Rates '!N21*'E1.2 Billing Determinants'!N21/100 -> 0 | O21: 144393.9412
C22: RATE 4 - General Service Peaking - Apr to Dec | E22: ='E1.1 Proposed Dist Rates '!E22*'E1.2 Billing Determinants'!E22*9 -> 6480 | F22: ='E1.1 Proposed Dist Rates '!F22*'E1.2 Billing Determinants'!F22/100 -> 16428.4734 | G22: ='E1.1 Proposed Dist Rates '!G22*'E1.2 Billing Determinants'!G22/100 -> 174462.3904 | H22: ='E1.1 Proposed Dist Rates '!H22*'E1.2 Billing Determinants'!H22/100 -> 0 | I22: ='E1.1 Proposed Dist Rates '!I22*'E1.2 Billing Determinants'!I22/100 -> 0 | J22: ='E1.1 Proposed Dist Rates '!J22*'E1.2 Billing Determinants'!J22/100 -> 0 | K22: ='E1.1 Proposed Dist Rates '!K22*'E1.2 Billing Determinants'!K22/100 -> 0 | L22: ='E1.1 Proposed Dist Rates '!L22*'E1.2 Billing Determinants'!L22/100 -> 690.366141 | M22: ='E1.1 Proposed Dist Rates '!M22*'E1.2 Billing Determinants'!M22/100 -> 0 | N22: ='E1.1 Proposed Dist Rates '!N22*'E1.2 Billing Determinants'!N22/100 -> 0 | O22: 198061.2299
C23: RATE 4 - General Service Peaking - Jan to Mar | E23: ='E1.1 Proposed Dist Rates '!E23*'E1.2 Billing Determinants'!E23*3 -> 2160 | F23: ='E1.1 Proposed Dist Rates '!F23*'E1.2 Billing Determinants'!F23/100 -> 8296.59201 | G23: ='E1.1 Proposed Dist Rates '!G23*'E1.2 Billing Determinants'!G23/100 -> 29385.1632 | H23: ='E1.1 Proposed Dist Rates '!H23*'E1.2 Billing Determinants'!H23/100 -> 0 | I23: ='E1.1 Proposed Dist Rates '!I23*'E1.2 Billing Determinants'!I23/100 -> 0 | J23: ='E1.1 Proposed Dist Rates '!J23*'E1.2 Billing Determinants'!J23/100 -> 0 | K23: ='E1.1 Proposed Dist Rates '!K23*'E1.2 Billing Determinants'!K23/100 -> 0 | L23: ='E1.1 Proposed Dist Rates '!L23*'E1.2 Billing Determinants'!L23/100 -> 76.473522 | M23: ='E1.1 Proposed Dist Rates '!M23*'E1.2 Billing Determinants'!M23/100 -> 0 | N23: ='E1.1 Proposed Dist Rates '!N23*'E1.2 Billing Determinants'!N23/100 -> 0 | O23: 39918.22873
C24: RATE 5 - Interruptible Peaking Contract Rate | E24: ='E1.1 Proposed Dist Rates '!E24*'E1.2 Billing Determinants'!E24*12 -> 9120 | F24: ='E1.1 Proposed Dist Rates '!F24*'E1.2 Billing Determinants'!F24/100 -> 0 | G24: ='E1.1 Proposed Dist Rates '!G24*'E1.2 Billing Determinants'!G24/100 -> 0 | H24: ='E1.1 Proposed Dist Rates '!H24*'E1.2 Billing Determinants'!H24/100 -> 0 | I24: ='E1.1 Proposed Dist Rates '!I24*'E1.2 Billing Determinants'!I24/100 -> 0 | J24: ='E1.1 Proposed Dist Rates '!J24*'E1.2 Billing Determinants'!J24/100 -> 62069.05922 | K24: ='E1.1 Proposed Dist Rates '!K24*'E1.2 Billing Determinants'!K24/100 -> 0 | L24: ='E1.1 Proposed Dist Rates '!L24*'E1.2 Billing Determinants'!L24/100 -> 346.035714 | M24: ='E1.1 Proposed Dist Rates '!M24*'E1.2 Billing Determinants'!M24/100 -> 0 | N24: ='E1.1 Proposed Dist Rates '!N24*'E1.2 Billing Determinants'!N24/100 -> 0 | O24: 71535.09493
C25: RATE 6 - Integrated Grain Processors Co-Operative Aylmer Ethanol Production Facility | E25: ='E1.1 Proposed Dist Rates '!E25*'E1.2 Billing Determinants'!E25*12 -> 747984.7027 | F25: ='E1.1 Proposed Dist Rates '!F25*'E1.2 Billing Determinants'!F25/100 -> 0 | G25: ='E1.1 Proposed Dist Rates '!G25*'E1.2 Billing Determinants'!G25/100 -> 0 | H25: ='E1.1 Proposed Dist Rates '!H25*'E1.2 Billing Determinants'!H25/100 -> 0 | I25: ='E1.1 Proposed Dist Rates '!I25*'E1.2 Billing Determinants'!I25/100 -> 0 | J25: ='E1.1 Proposed Dist Rates '!J25*'E1.2 Billing Determinants'!J25/100 -> 0 | K25: ='E1.1 Proposed Dist Rates '!K25*'E1.2 Billing Determinants'!K25/100 -> 0 | L25: ='E1.1 Proposed Dist Rates '!L25*'E1.2 Billing Determinants'!L25/100 -> 0 | M25: ='E1.1 Proposed Dist Rates '!M25*'E1.2 Billing Determinants'!M25/100 -> 0 | N25: ='E1.1 Proposed Dist Rates '!N25*'E1.2 Billing Determinants'!N25/100 -> 0 | O25: 747984.7027
E26: =SUM(E16:E25) -> 2706474.703 | F26: =SUM(F16:F25) -> 2896308.598 | G26: 780603.3071 | H26: 108366.7899 | I26: 10004.68622 | J26: 122572.1919 | K26: 68984.52089 | L26: 13181.60177 | M26: 0 | N26: 0 | O26: 6706496.399
K28: =13.36/13 -> 1.027692308 | N28: Proposed Revenue | O28: =O26 -> 6706496.399
N29: Current Revenue | O29: ='B1.3 Current Rev From Rates'!O26 -> 6513631.094
N30: Change | O30: =O28-O29 -> 192865.305
O31: =O30/O29 -> 0.02960949158
C33: =MID(CELL("filename",A1),FIND("]",CELL("filename",A1))+1,255) -> E1.3 Proposed Rev From Rate

Sheet F1.1 REDA
C2: ='A1.1 Distributor Information'!C3 -> Name of LDC: EPCOR Natural Gas Limited Partnership
C3: ='A1.1 Distributor Information'!C4 -> OEB Application Number: EB-2020-0234 Exhibit A - 2021 IRM Application
C10: REDA
C15: REDA Cost Type | D15: Number of Customers to Allocate | F15: Disposition Amount ($) | H15: Disposition Rate ($ / customer / month)
C16: REDA (excl. DSM) | D16: ='E1.2 Billing Determinants'!E26 -> 9213 | F16: 81691 | H16: =F16/D16/12 -> 0.7389105973
C17: DSM | D17: ='E1.2 Billing Determinants'!E26-'E1.2 Billing Determinants'!E25 -> 9212 | F17: 3405 | H17: =F17/D17/12 -> 0.0308022145
C21: Rate Class | H21: Proposed Rate Rider ($ / customer / month)
C22: Rates 1 - 5 | H22: =H16+H17 -> 0.7697128118
C23: Rate 6 | H23: =H16 -> 0.7389105973
C28: =MID(CELL("filename",A1),FIND("]",CELL("filename",A1))+1,255) -> F1.1 REDA

Sheet F1.2 PGTVA
C2: ='A1.1 Distributor Information'!C3 -> Name of LDC: EPCOR Natural Gas Limited Partnership
C3: ='A1.1 Distributor Information'!C4 -> OEB Application Number: EB-2020-0234 Exhibit A - 2021 IRM Application
C10: PGTVA Rates 1 - 5
C15: Volume (m3) | E15: Disposition Amount ($) | G15: Proposed Rate Rider (cents / m3)
C16: =SUM('E1.2 Billing Determinants'!F16:J24) -> 31594505.3 | E16: 96882.72 | G16: =E16/C16*100 -> 0.3066442063
C21: =MID(CELL("filename",A1),FIND("]",CELL("filename",A1))+1,255) -> F1.2 PGTVA

Sheet F1.3 ADVADA
D2: ='A1.1 Distributor Information'!C3 -> Name of LDC: EPCOR Natural Gas Limited Partnership
D3: ='A1.1 Distributor Information'!C4 -> OEB Application Number: EB-2020-0234 Exhibit A - 2021 IRM Application
C10: ADVADA
C15: Rate Class | D15: Number of Customers | E15: Volume (m3) | F15: Disposition Amount ($) | G15: Rate Rider Unit | H15: Proposed Rate Rider
C16: Rate 1 - 5 | D16: ='E1.2 Billing Determinants'!E26-'E1.2 Billing Determinants'!E25 -> 9212 | E16: =SUM('E1.2 Billing Determinants'!F16:J24) -> 31594505.3 | F16: =-2276+980-1215+3187+213+56732+794+75-22+131+29-8976+(-7704+4944)*1 -> 46892 | G16: cents / m3 | H16: =F16/E16*100 -> 0.1484182125
C17: Rate 6 | D17: ='E1.2 Billing Determinants'!E25 -> 1 | F17: =10475+608+(-7704+4944)*0/SUM(D16:D17) -> 11083 | G17: $ / customer / month | H17: =F17/D17/12 -> 923.5833333
C21: =MID(CELL("filename",A1),FIND("]",CELL("filename",A1))+1,255) -> F1.3 ADVADA

Sheet F1.4 Proposed Rate Riders
C2: ='A1.1 Distributor Information'!C3 -> Name of LDC: EPCOR Natural Gas Limited Partnership
C3: ='A1.1 Distributor Information'!C4 -> OEB Application Number: EB-2020-0234 Exhibit A - 2021 IRM Application
C7: Proposed Rate Riders
C9: Description | E9: REDA | F9: PGTVA | G9: ADVADA Rate 1 - 5 | H9: ADVADA Rate 6 | J9: Deferred Revenue Recovery
E10: Effective for 12 months | F10: Effective for 12 months | G10: Effective for 12 months | H10: Effective for 12 months | J10: September 30, 2014
E11: $ per Customer Per Month | F11: cents per m3 | G11: cents per m3 | H11: $ per Customer Per Month | J11: Per Customer Per Month
C12: Rate Group
C13: RATE 1 - General Service Rate - Residential | E13: ='F1.1 REDA'!$H$22 -> 0.7697128118 | F13: ='F1.2 PGTVA'!$G$16 -> 0.3066442063 | G13: ='F1.3 ADVADA'!$H$16 -> 0.1484182125 | J13: =#REF! -> 
C14: RATE 1 - General Service Rate - Commercial | E14: ='F1.1 REDA'!$H$22 -> 0.7697128118 | F14: ='F1.2 PGTVA'!$G$16 -> 0.3066442063 | G14: ='F1.3 ADVADA'!$H$16 -> 0.1484182125 | J14: =J13 -> 
C15: RATE 1 - General Service Rate - Industrial | E15: ='F1.1 REDA'!$H$22 -> 0.7697128118 | F15: ='F1.2 PGTVA'!$G$16 -> 0.3066442063 | G15: ='F1.3 ADVADA'!$H$16 -> 0.1484182125 | J15: =J14 -> 
C16: RATE 2 - Seasonal Service - Apr to Oct | E16: ='F1.1 REDA'!$H$22 -> 0.7697128118 | F16: ='F1.2 PGTVA'!$G$16 -> 0.3066442063 | G16: ='F1.3 ADVADA'!$H$16 -> 0.1484182125 | J16: =#REF! -> 
C17: RATE 2 - Seasonal Service - Nov to Mar | E17: ='F1.1 REDA'!$H$22 -> 0.7697128118 | F17: ='F1.2 PGTVA'!$G$16 -> 0.3066442063 | G17: ='F1.3 ADVADA'!$H$16 -> 0.1484182125 | J17: =J16 -> 
C18: RATE 3 - Special Large Volume Contract Rate | E18: ='F1.1 REDA'!$H$22 -> 0.7697128118 | F18: ='F1.2 PGTVA'!$G$16 -> 0.3066442063 | G18: ='F1.3 ADVADA'!$H$16 -> 0.1484182125 | J18: =#REF! -> 
C19: RATE 4 - General Service Peaking - Apr to Dec | E19: ='F1.1 REDA'!$H$22 -> 0.7697128118 | F19: ='F1.2 PGTVA'!$G$16 -> 0.3066442063 | G19: ='F1.3 ADVADA'!$H$16 -> 0.1484182125 | J19: =#REF! -> 
C20: RATE 4 - General Service Peaking - Jan to Mar | E20: ='F1.1 REDA'!$H$22 -> 0.7697128118 | F20: ='F1.2 PGTVA'!$G$16 -> 0.3066442063 | G20: ='F1.3 ADVADA'!$H$16 -> 0.1484182125 | J20: =J19 -> 
C21: RATE 5 - Interruptible Peaking Contract Rate | E21: ='F1.1 REDA'!$H$22 -> 0.7697128118 | F21: ='F1.2 PGTVA'!$G$16 -> 0.3066442063 | G21: ='F1.3 ADVADA'!$H$16 -> 0.1484182125 | J21: =#REF! -> 
C22: RATE 6 - Integrated Grain Processors Co-Operative Aylmer Ethanol Production Facility | E22: ='F1.1 REDA'!$H$23 -> 0.7389105973 | H22: ='F1.3 ADVADA'!H17 -> 923.5833333 | J22: =#REF! -> 
C28: =MID(CELL("filename",A15),FIND("]",CELL("filename",A15))+1,255) -> F1.4 Proposed Rate Riders

Sheet C1.1 Current Rate Riders
C2: ='A1.1 Distributor Information'!C3 -> Name of LDC: EPCOR Natural Gas Limited Partnership
C3: ='A1.1 Distributor Information'!C4 -> OEB Application Number: EB-2020-0234 Exhibit A - 2021 IRM Application
C10: Current Rate Riders
C12: Description | E12: REDA | F12: PGTVA Rate Classes 1 - 5 | G12: PGTVA Rate Class 6
C13: Effective Until | E13: 2020-12-31 | F13: 2020-12-31 | G13: 2020-12-31
E14: $ / customer / month | F14: cents / m3 | G14: $ / customer / month
C15: Rate Group
C16: RATE 1 - General Service Rate - Residential | E16: 0.59 | F16: 0.128
C17: RATE 1 - General Service Rate - Commercial | E17: 0.59 | F17: 0.128
C18: RATE 1 - General Service Rate - Industrial | E18: 0.59 | F18: 0.128
C19: RATE 2 - Seasonal Service - Apr to Oct | E19: 0.59 | F19: 0.128
C20: RATE 2 - Seasonal Service - Nov to Mar | E20: 0.59 | F20: 0.128
C21: RATE 3 - Special Large Volume Contract Rate | E21: 0.59 | F21: 0.128
C22: RATE 4 - General Service Peaking - Apr to Dec | E22: 0.59 | F22: 0.128
C23: RATE 4 - General Service Peaking - Jan to Mar | E23: 0.59 | F23: 0.128
C24: RATE 5 - Interruptible Peaking Contract Rate | E24: 0.59 | F24: 0.128
C25: RATE 6 - Integrated Grain Processors Co-Operative Aylmer Ethanol Production Facility | E25: 0.56 | G25: 15413.33
C29: =MID(CELL("filename",A1),FIND("]",CELL("filename",A1))+1,255) -> C1.1 Current Rate Riders

Sheet G1.1 Rate 1 Bill Impact
C2: ='A1.1 Distributor Information'!C3 -> Name of LDC: EPCOR Natural Gas Limited Partnership
C3: ='A1.1 Distributor Information'!C4 -> OEB Application Number: EB-2020-0234 Exhibit A - 2021 IRM Application
C7: Rate 1 Delivery Bill Impact
C10: ='For Bill Impact(HideBeforeFile)'!C6 -> RATE 1 - General Service Rate - Residential | F10: Current | H10: Proposed | J10: Bill Determinant | O10: Look-up
C14: =INDEX('For Bill Impact(HideBeforeFile)'!$D$48:$O$57,MATCH(C10,'For Bill Impact(HideBeforeFile)'!$C$62:$C$71,0),MATCH($O14,'For Bill Impact(HideBeforeFile)'!$D$61:$O$61,0)) -> Commodity | D14: =INDEX('For Bill Impact(HideBeforeFile)'!$D$62:$O$71,MATCH(C10,'For Bill Impact(HideBeforeFile)'!$C$62:$C$71,0),MATCH($O14,'For Bill Impact(HideBeforeFile)'!$D$61:$O$61,0)) -> cents / m3 | F14: =INDEX('For Bill Impact(HideBeforeFile)'!$D$6:$O$15,MATCH(C10,'For Bill Impact(HideBeforeFile)'!$C$62:$C$71,0),MATCH($O14,'For Bill Impact(HideBeforeFile)'!$D$61:$O$61,0)) -> 13.2642 | H14: =INDEX('For Bill Impact(HideBeforeFile)'!$D$20:$O$29,MATCH(C10,'For Bill Impact(HideBeforeFile)'!$C$62:$C$71,0),MATCH($O14,'For Bill Impact(HideBeforeFile)'!$D$61:$O$61,0)) -> 13.2642 | J14: =INDEX('For Bill Impact(HideBeforeFile)'!$D$34:$O$43,MATCH(C10,'For Bill Impact(HideBeforeFile)'!$C$62:$C$71,0),MATCH($O14,'For Bill Impact(HideBeforeFile)'!$D$61:$O$61,0)) -> 2113.059935 | O14: ='For Bill Impact(HideBeforeFile)'!$D$5 -> Commodity
C16: =INDEX('For Bill Impact(HideBeforeFile)'!$D$48:$O$57,MATCH(C10,'For Bill Impact(HideBeforeFile)'!$C$62:$C$71,0),MATCH($O16,'For Bill Impact(HideBeforeFile)'!$D$61:$O$61,0)) -> Customer (excl. Bill 32) | D16: =INDEX('For Bill Impact(HideBeforeFile)'!$D$62:$O$71,MATCH(C10,'For Bill Impact(HideBeforeFile)'!$C$62:$C$71,0),MATCH($O16,'For Bill Impact(HideBeforeFile)'!$D$61:$O$61,0)) -> $ / month | F16: =INDEX('For Bill Impact(HideBeforeFile)'!$D$6:$O$15,MATCH(C10,'For Bill Impact(HideBeforeFile)'!$C$62:$C$71,0),MATCH($O16,'For Bill Impact(HideBeforeFile)'!$D$61:$O$61,0)) -> 16.5 | H16: =INDEX('For Bill Impact(HideBeforeFile)'!$D$20:$O$29,MATCH(C10,'For Bill Impact(HideBeforeFile)'!$C$62:$C$71,0),MATCH($O16,'For Bill Impact(HideBeforeFile)'!$D$61:$O$61,0)) -> 17.5 | J16: =INDEX('For Bill Impact(HideBeforeFile)'!$D$34:$O$43,MATCH(C10,'For Bill Impact(HideBeforeFile)'!$C$62:$C$71,0),MATCH($O16,'For Bill Impact(HideBeforeFile)'!$D$61:$O$61,0)) -> 12 | O16: ='For Bill Impact(HideBeforeFile)'!$K$5 -> Dist. Customer Rate
C17: =INDEX('For Bill Impact(HideBeforeFile)'!$D$48:$O$57,MATCH(C10,'For Bill Impact(HideBeforeFile)'!$C$62:$C$71,0),MATCH($O17,'For Bill Impact(HideBeforeFile)'!$D$61:$O$61,0)) -> Block 1 (First 1,000 m3 per month) | D17: =INDEX('For Bill Impact(HideBeforeFile)'!$D$62:$O$71,MATCH(C10,'For Bill Impact(HideBeforeFile)'!$C$62:$C$71,0),MATCH($O17,'For Bill Impact(HideBeforeFile)'!$D$61:$O$61,0)) -> cents / m3 | F17: =INDEX('For Bill Impact(HideBeforeFile)'!$D$6:$O$15,MATCH(C10,'For Bill Impact(HideBeforeFile)'!$C$62:$C$71,0),MATCH($O17,'For Bill Impact(HideBeforeFile)'!$D$61:$O$61,0)) -> 13.3814 | H17: =INDEX('For Bill Impact(HideBeforeFile)'!$D$20:$O$29,MATCH(C10,'For Bill Impact(HideBeforeFile)'!$C$62:$C$71,0),MATCH($O17,'For Bill Impact(HideBeforeFile)'!$D$61:$O$61,0)) -> 13.57005773 | J17: =INDEX('For Bill Impact(HideBeforeFile)'!$D$34:$O$43,MATCH(C10,'For Bill Impact(HideBeforeFile)'!$C$62:$C$71,0),MATCH($O17,'For Bill Impact(HideBeforeFile)'!$D$61:$O$61,0)) -> 2088.203504 | O17: ='For Bill Impact(HideBeforeFile)'!$L$5 -> Dist. Vol. Rate Tier 1
C18: =INDEX('For Bill Impact(HideBeforeFile)'!$D$48:$O$57,MATCH(C10,'For Bill Impact(HideBeforeFile)'!$C$62:$C$71,0),MATCH($O18,'For Bill Impact(HideBeforeFile)'!$D$61:$O$61,0)) -> Block 2 (Over 1,000 m3 per month) | D18: =INDEX('For Bill Impact(HideBeforeFile)'!$D$62:$O$71,MATCH(C10,'For Bill Impact(HideBeforeFile)'!$C$62:$C$71,0),MATCH($O18,'For Bill Impact(HideBeforeFile)'!$D$61:$O$61,0)) -> cents / m3 | F18: =INDEX('For Bill Impact(HideBeforeFile)'!$D$6:$O$15,MATCH(C10,'For Bill Impact(HideBeforeFile)'!$C$62:$C$71,0),MATCH($O18,'For Bill Impact(HideBeforeFile)'!$D$61:$O$61,0)) -> 10.7275 | H18: =INDEX('For Bill Impact(HideBeforeFile)'!$D$20:$O$29,MATCH(C10,'For Bill Impact(HideBeforeFile)'!$C$62:$C$71,0),MATCH($O18,'For Bill Impact(HideBeforeFile)'!$D$61:$O$61,0)) -> 10.90634364 | J18: =INDEX('For Bill Impact(HideBeforeFile)'!$D$34:$O$43,MATCH(C10,'For Bill Impact(HideBeforeFile)'!$C$62:$C$71,0),MATCH($O18,'For Bill Impact(HideBeforeFile)'!$D$61:$O$61,0)) -> 24.85643032 | O18: ='For Bill Impact(HideBeforeFile)'!$M$5 -> Dist. Vol. Rate Tier 2
C19: =INDEX('For Bill Impact(HideBeforeFile)'!$D$48:$O$57,MATCH(C10,'For Bill Impact(HideBeforeFile)'!$C$62:$C$71,0),MATCH($O19,'For Bill Impact(HideBeforeFile)'!$D$61:$O$61,0)) ->  | D19: =INDEX('For Bill Impact(HideBeforeFile)'!$D$62:$O$71,MATCH(C10,'For Bill Impact(HideBeforeFile)'!$C$62:$C$71,0),MATCH($O19,'For Bill Impact(HideBeforeFile)'!$D$61:$O$61,0)) ->  | F19: =INDEX('For Bill Impact(HideBeforeFile)'!$D$6:$O$15,MATCH(C10,'For Bill Impact(HideBeforeFile)'!$C$62:$C$71,0),MATCH($O19,'For Bill Impact(HideBeforeFile)'!$D$61:$O$61,0)) ->  | H19: =INDEX('For Bill Impact(HideBeforeFile)'!$D$20:$O$29,MATCH(C10,'For Bill Impact(HideBeforeFile)'!$C$62:$C$71,0),MATCH($O19,'For Bill Impact(HideBeforeFile)'!$D$61:$O$61,0)) ->  | J19: =INDEX('For Bill Impact(HideBeforeFile)'!$D$34:$O$43,MATCH(C10,'For Bill Impact(HideBeforeFile)'!$C$62:$C$71,0),MATCH($O19,'For Bill Impact(HideBeforeFile)'!$D$61:$O$61,0)) ->  | O19: ='For Bill Impact(HideBeforeFile)'!$N$5 -> Dist. Vol. Rate Tier 3
C20: =INDEX('For Bill Impact(HideBeforeFile)'!$D$48:$O$57,MATCH(C10,'For Bill Impact(HideBeforeFile)'!$C$62:$C$71,0),MATCH($O20,'For Bill Impact(HideBeforeFile)'!$D$61:$O$61,0)) ->  | D20: =INDEX('For Bill Impact(HideBeforeFile)'!$D$62:$O$71,MATCH(C10,'For Bill Impact(HideBeforeFile)'!$C$62:$C$71,0),MATCH($O20,'For Bill Impact(HideBeforeFile)'!$D$61:$O$61,0)) ->  | F20: =INDEX('For Bill Impact(HideBeforeFile)'!$D$6:$O$15,MATCH(C10,'For Bill Impact(HideBeforeFile)'!$C$62:$C$71,0),MATCH($O20,'For Bill Impact(HideBeforeFile)'!$D$61:$O$61,0)) ->  | H20: =INDEX('For Bill Impact(HideBeforeFile)'!$D$20:$O$29,MATCH(C10,'For Bill Impact(HideBeforeFile)'!$C$62:$C$71,0),MATCH($O20,'For Bill Impact(HideBeforeFile)'!$D$61:$O$61,0)) ->  | J20: =INDEX('For Bill Impact(HideBeforeFile)'!$D$34:$O$43,MATCH(C10,'For Bill Impact(HideBeforeFile)'!$C$62:$C$71,0),MATCH($O20,'For Bill Impact(HideBeforeFile)'!$D$61:$O$61,0)) ->  | O20: ='For Bill Impact(HideBeforeFile)'!$O$5 -> Dist. Capacity Rate
C21: =INDEX('For Bill Impact(HideBeforeFile)'!$D$48:$O$57,MATCH(C10,'For Bill Impact(HideBeforeFile)'!$C$62:$C$71,0),MATCH($O21,'For Bill Impact(HideBeforeFile)'!$D$61:$O$61,0)) -> System Gas Charge | D21: =INDEX('For Bill Impact(HideBeforeFile)'!$D$62:$O$71,MATCH(C10,'For Bill Impact(HideBeforeFile)'!$C$62:$C$71,0),MATCH($O21,'For Bill Impact(HideBeforeFile)'!$D$61:$O$61,0)) -> cents / m3 | F21: =INDEX('For Bill Impact(HideBeforeFile)'!$D$6:$O$15,MATCH(C10,'For Bill Impact(HideBeforeFile)'!$C$62:$C$71,0),MATCH($O21,'For Bill Impact(HideBeforeFile)'!$D$61:$O$61,0)) -> 0.0435 | H21: =INDEX('For Bill Impact(HideBeforeFile)'!$D$20:$O$29,MATCH(C10,'For Bill Impact(HideBeforeFile)'!$C$62:$C$71,0),MATCH($O21,'For Bill Impact(HideBeforeFile)'!$D$61:$O$61,0)) -> 0.0435 | J21: =INDEX('For Bill Impact(HideBeforeFile)'!$D$34:$O$43,MATCH(C10,'For Bill Impact(HideBeforeFile)'!$C$62:$C$71,0),MATCH($O21,'For Bill Impact(HideBeforeFile)'!$D$61:$O$61,0)) -> 2113.059935 | O21: ='For Bill Impact(HideBeforeFile)'!$E$5 -> System Gas
C23: =INDEX('For Bill Impact(HideBeforeFile)'!$D$48:$O$57,MATCH(C10,'For Bill Impact(HideBeforeFile)'!$C$62:$C$71,0),MATCH($O23,'For Bill Impact(HideBeforeFile)'!$D$61:$O$61,0)) -> REDA | D23: =INDEX('For Bill Impact(HideBeforeFile)'!$D$62:$O$71,MATCH(C10,'For Bill Impact(HideBeforeFile)'!$C$62:$C$71,0),MATCH($O23,'For Bill Impact(HideBeforeFile)'!$D$61:$O$61,0)) -> $ / month | F23: =INDEX('For Bill Impact(HideBeforeFile)'!$D$6:$O$15,MATCH(C10,'For Bill Impact(HideBeforeFile)'!$C$62:$C$71,0),MATCH($O23,'For Bill Impact(HideBeforeFile)'!$D$61:$O$61,0)) -> 0.59 | H23: =INDEX('For Bill Impact(HideBeforeFile)'!$D$20:$O$29,MATCH(C10,'For Bill Impact(HideBeforeFile)'!$C$62:$C$71,0),MATCH($O23,'For Bill Impact(HideBeforeFile)'!$D$61:$O$61,0)) -> 0.7697128118 | J23: =INDEX('For Bill Impact(HideBeforeFile)'!$D$34:$O$43,MATCH(C10,'For Bill Impact(HideBeforeFile)'!$C$62:$C$71,0),MATCH($O23,'For Bill Impact(HideBeforeFile)'!$D$61:$O$61,0)) -> 12 | O23: ='For Bill Impact(HideBeforeFile)'!$F$5 -> REDA
C24: =INDEX('For Bill Impact(HideBeforeFile)'!$D$48:$O$57,MATCH(C10,'For Bill Impact(HideBeforeFile)'!$C$62:$C$71,0),MATCH($O24,'For Bill Impact(HideBeforeFile)'!$D$61:$O$61,0)) -> PGTVA | D24: =INDEX('For Bill Impact(HideBeforeFile)'!$D$62:$O$71,MATCH(C10,'For Bill Impact(HideBeforeFile)'!$C$62:$C$71,0),MATCH($O24,'For Bill Impact(HideBeforeFile)'!$D$61:$O$61,0)) -> cents / m3 | F24: =INDEX('For Bill Impact(HideBeforeFile)'!$D$6:$O$15,MATCH(C10,'For Bill Impact(HideBeforeFile)'!$C$62:$C$71,0),MATCH($O24,'For Bill Impact(HideBeforeFile)'!$D$61:$O$61,0)) -> 0.128 | H24: =INDEX('For Bill Impact(HideBeforeFile)'!$D$20:$O$29,MATCH(C10,'For Bill Impact(HideBeforeFile)'!$C$62:$C$71,0),MATCH($O24,'For Bill Impact(HideBeforeFile)'!$D$61:$O$61,0)) -> 0.3066442063 | J24: =INDEX('For Bill Impact(HideBeforeFile)'!$D$34:$O$43,MATCH(C10,'For Bill Impact(HideBeforeFile)'!$C$62:$C$71,0),MATCH($O24,'For Bill Impact(HideBeforeFile)'!$D$61:$O$61,0)) -> 2113.059935 | O24: ='For Bill Impact(HideBeforeFile)'!$G$5 -> PGTVA
C25: =INDEX('For Bill Impact(HideBeforeFile)'!$D$48:$O$57,MATCH(C10,'For Bill Impact(HideBeforeFile)'!$C$62:$C$71,0),MATCH($O25,'For Bill Impact(HideBeforeFile)'!$D$61:$O$61,0)) -> ADVADA | D25: =INDEX('For Bill Impact(HideBeforeFile)'!$D$62:$O$71,MATCH(C10,'For Bill Impact(HideBeforeFile)'!$C$62:$C$71,0),MATCH($O25,'For Bill Impact(HideBeforeFile)'!$D$61:$O$61,0)) -> cents / m3 | F25: =INDEX('For Bill Impact(HideBeforeFile)'!$D$6:$O$15,MATCH(C10,'For Bill Impact(HideBeforeFile)'!$C$62:$C$71,0),MATCH($O25,'For Bill Impact(HideBeforeFile)'!$D$61:$O$61,0)) ->  | H25: =INDEX('For Bill Impact(HideBeforeFile)'!$D$20:$O$29,MATCH(C10,'For Bill Impact(HideBeforeFile)'!$C$62:$C$71,0),MATCH($O25,'For Bill Impact(HideBeforeFile)'!$D$61:$O$61,0)) -> 0.1484182125 | J25: =INDEX('For Bill Impact(HideBeforeFile)'!$D$34:$O$43,MATCH(C10,'For Bill Impact(HideBeforeFile)'!$C$62:$C$71,0),MATCH($O25,'For Bill Impact(HideBeforeFile)'!$D$61:$O$61,0)) -> 2113.059935 | O25: ='For Bill Impact(HideBeforeFile)'!$H$5 -> ADVADA
C27: =INDEX('For Bill Impact(HideBeforeFile)'!$D$48:$O$57,MATCH(C10,'For Bill Impact(HideBeforeFile)'!$C$62:$C$71,0),MATCH($O27,'For Bill Impact(HideBeforeFile)'!$D$61:$O$61,0)) -> Federal Carbon | D27: =INDEX('For Bill Impact(HideBeforeFile)'!$D$62:$O$71,MATCH(C10,'For Bill Impact(HideBeforeFile)'!$C$62:$C$71,0),MATCH($O27,'For Bill Impact(HideBeforeFile)'!$D$61:$O$61,0)) -> cents / m3 | F27: =INDEX('For Bill Impact(HideBeforeFile)'!$D$6:$O$15,MATCH(C10,'For Bill Impact(HideBeforeFile)'!$C$62:$C$71,0),MATCH($O27,'For Bill Impact(HideBeforeFile)'!$D$61:$O$61,0)) -> 5.87 | H27: =INDEX('For Bill Impact(HideBeforeFile)'!$D$20:$O$29,MATCH(C10,'For Bill Impact(HideBeforeFile)'!$C$62:$C$71,0),MATCH($O27,'For Bill Impact(HideBeforeFile)'!$D$61:$O$61,0)) -> 5.87 | J27: =INDEX('For Bill Impact(HideBeforeFile)'!$D$34:$O$43,MATCH(C10,'For Bill Impact(HideBeforeFile)'!$C$62:$C$71,0),MATCH($O27,'For Bill Impact(HideBeforeFile)'!$D$61:$O$61,0)) -> 2113.059935 | O27: ='For Bill Impact(HideBeforeFile)'!$I$5 -> Federal Carbon
C28: =INDEX('For Bill Impact(HideBeforeFile)'!$D$48:$O$57,MATCH(C10,'For Bill Impact(HideBeforeFile)'!$C$62:$C$71,0),MATCH($O28,'For Bill Impact(HideBeforeFile)'!$D$61:$O$61,0)) -> Facility Carbon | D28: =INDEX('For Bill Impact(HideBeforeFile)'!$D$62:$O$71,MATCH(C10,'For Bill Impact(HideBeforeFile)'!$C$62:$C$71,0),MATCH($O28,'For Bill Impact(HideBeforeFile)'!$D$61:$O$61,0)) -> cents / m3 | F28: =INDEX('For Bill Impact(HideBeforeFile)'!$D$6:$O$15,MATCH(C10,'For Bill Impact(HideBeforeFile)'!$C$62:$C$71,0),MATCH($O28,'For Bill Impact(HideBeforeFile)'!$D$61:$O$61,0)) -> 0.0027 | H28: =INDEX('For Bill Impact(HideBeforeFile)'!$D$20:$O$29,MATCH(C10,'For Bill Impact(HideBeforeFile)'!$C$62:$C$71,0),MATCH($O28,'For Bill Impact(HideBeforeFile)'!$D$61:$O$61,0)) -> 0.0027 | J28: =INDEX('For Bill Impact(HideBeforeFile)'!$D$34:$O$43,MATCH(C10,'For Bill Impact(HideBeforeFile)'!$C$62:$C$71,0),MATCH($O28,'For Bill Impact(HideBeforeFile)'!$D$61:$O$61,0)) -> 2113.059935 | O28: ='For Bill Impact(HideBeforeFile)'!$J$5 -> Facility Carbon
C31: Commodity | F31: Current | H31: Proposed | J31: Change $ | L31: Change %
F32: =F14*$J14/100 -> 280.2804958 | H32: =H14*$J14/100 -> 280.2804958 | J32: =H32-F32 -> 0 | L32: =IFERROR(J32/F32,"") -> 0 | O32: ='For Bill Impact(HideBeforeFile)'!$D$5 -> Commodity
C34: Delivery | F34: Current Rate | H34: Proposed Rate | J34: Change $ | L34: Change %
C35: =IF(C16<>"",C16,"") -> Customer (excl. Bill 32) | F35: =F16*$J16 -> 198 | H35: =H16*$J16 -> 210 | J35: =IFERROR(H35-F35,"") -> 12 | L35: =IFERROR(J35/F35,"") -> 0.06060606061 | O35: ='For Bill Impact(HideBeforeFile)'!$K$5 -> Dist. Customer Rate
C36: Bill 32 | F36: 12 | H36: 12 | J36: =IFERROR(H36-F36,"") -> 0 | L36: =IFERROR(J36/F36,"") -> 0
C37: =IF(C17<>"",C17,"") -> Block 1 (First 1,000 m3 per month) | F37: =IFERROR(F17*$J17/100,"") -> 279.4308637 | H37: =IFERROR(H17*$J17/100,"") -> 283.3704211 | J37: =IFERROR(H37-F37,"") -> 3.939557335 | L37: =IFERROR(J37/F37,"") -> 0.01409850466 | O37: ='For Bill Impact(HideBeforeFile)'!$L$5 -> Dist. Vol. Rate Tier 1
C38: =IF(C18<>"",C18,"") -> Block 2 (Over 1,000 m3 per month) | F38: =IFERROR(F18*$J18/100,"") -> 2.666473563 | H38: =IFERROR(H18*$J18/100,"") -> 2.710927707 | J38: 0.04445414412 | L38: 0.01667151129 | O38: ='For Bill Impact(HideBeforeFile)'!$M$5 -> Dist. Vol. Rate Tier 2
C39: =IF(C19<>"",C19,"") ->  | F39: =IFERROR(F19*$J19/100,"") ->  | H39: =IFERROR(H19*$J19/100,"") ->  | O39: ='For Bill Impact(HideBeforeFile)'!$N$5 -> Dist. Vol. Rate Tier 3
C40: =IF(C20<>"",C20,"") ->  | F40: =IFERROR(F20*$J20/100,"") ->  | H40: =IFERROR(H20*$J20/100,"") ->  | O40: ='For Bill Impact(HideBeforeFile)'!$O$5 -> Dist. Capacity Rate
C41: =IF(C21<>"",C21,"") -> System Gas Charge | F41: =IFERROR(F21*$J21/100,"") -> 0.9191810715 | H41: =IFERROR(H21*$J21/100,"") -> 0.9191810715 | J41: 0 | L41: 0 | O41: ='For Bill Impact(HideBeforeFile)'!$E$5 -> System Gas
C42: Total Delivery | F42: =SUM(F35:F41) -> 493.0165184 | H42: =SUM(H35:H41) -> 509.0005298 | J42: =H42-F42 -> 15.98401148 | L42: =IF(ISERROR(J42/F42),0,J42/F42) -> 0.03242084369
C44: Rate Riders
C46: Rate Riders | F46: Current Rate | H46: Proposed Rate | J46: Change $ | L46: Change %
C47: REDA | F47: =F23*$J23 -> 7.08 | H47: =H23*$J23 -> 9.236553742 | J47: =IFERROR(H47-F47,"") -> 2.156553742 | L47: =IFERROR(J47/F47,"") -> 0.3045979862 | O47: ='For Bill Impact(HideBeforeFile)'!$F$5 -> REDA
C48: PGTVA | F48: =IFERROR(F24*$J24/100,"") -> 2.704716716 | H48: =IFERROR(H24*$J24/100,"") -> 6.479575864 | J48: =IFERROR(H48-F48,"") -> 3.774859148 | L48: 1.395657861 | O48: ='For Bill Impact(HideBeforeFile)'!$G$5 -> PGTVA
C49: ADVADA | F49: =IFERROR(F25*$J25/100,"") ->  | H49: =IFERROR(H25*$J25/100,"") -> 3.136165783 | J49: =H49 -> 3.136165783 | L49: =J49/H49 -> 1 | O49: ='For Bill Impact(HideBeforeFile)'!$H$5 -> ADVADA
C50: Total Rate Riders | F50: =SUM(F47:F49) -> 9.784716716 | H50: =SUM(H47:H49) -> 18.85229539 | J50: =SUM(J47:J49) -> 9.067578673 | L50: =IF(ISERROR(J50/F50),0,J50/F50) -> 0.926708349
C52: Carbon Tax
C53: Federal Carbon | F53: =F27*$J27/100 -> 124.0366182 | H53: =H27*$J27/100 -> 124.0366182 | J53: =IFERROR(H53-F53,"") -> 0 | L53: =IFERROR(J53/F53,"") -> 0
C54: Facility Carbon | F54: =F28*$J28/100 -> 0.05705261823 | H54: =H28*$J28/100 -> 0.05705261823 | J54: =IFERROR(H54-F54,"") -> 0 | L54: 0
C55: Total Carbon Tax | F55: =SUM(F53:F54) -> 124.0936708 | H55: =SUM(H53:H54) -> 124.0936708 | J55: =SUM(J53:J54) -> 0 | L55: =IF(ISERROR(J55/F55),0,J55/F55) -> 0
C57: Total Bill Impact | F57: =SUM(F32,F42,F50,F55) -> 907.1754017 | H57: =SUM(H32,H42,H50,H55) -> 932.2269918 | J57: =SUM(J32,J42,J50,J55) -> 25.05159015 | L57: =IFERROR(J57/F57,"") -> 0.02761493544
C60: =MID(CELL("filename",A1),FIND("]",CELL("filename",A1))+1,255) -> G1.1 Rate 1 Bill Impact
C62: ='For Bill Impact(HideBeforeFile)'!C7 -> RATE 1 - General Service Rate - Commercial | F62: Current | H62: Proposed | J62: Bill Determinant | O62: Look-up
C66: =INDEX('For Bill Impact(HideBeforeFile)'!$D$48:$O$57,MATCH(C62,'For Bill Impact(HideBeforeFile)'!$C$62:$C$71,0),MATCH($O66,'For Bill Impact(HideBeforeFile)'!$D$61:$O$61,0)) -> Commodity | D66: =INDEX('For Bill Impact(HideBeforeFile)'!$D$62:$O$71,MATCH(C62,'For Bill Impact(HideBeforeFile)'!$C$62:$C$71,0),MATCH($O66,'For Bill Impact(HideBeforeFile)'!$D$61:$O$61,0)) -> cents / m3 | F66: =INDEX('For Bill Impact(HideBeforeFile)'!$D$6:$O$15,MATCH(C62,'For Bill Impact(HideBeforeFile)'!$C$62:$C$71,0),MATCH($O66,'For Bill Impact(HideBeforeFile)'!$D$61:$O$61,0)) -> 13.2642 | H66: =INDEX('For Bill Impact(HideBeforeFile)'!$D$20:$O$29,MATCH(C62,'For Bill Impact(HideBeforeFile)'!$C$62:$C$71,0),MATCH($O66,'For Bill Impact(HideBeforeFile)'!$D$61:$O$61,0)) -> 13.2642 | J66: =INDEX('For Bill Impact(HideBeforeFile)'!$D$34:$O$43,MATCH(C62,'For Bill Impact(HideBeforeFile)'!$C$62:$C$71,0),MATCH($O66,'For Bill Impact(HideBeforeFile)'!$D$61:$O$61,0)) -> 11854.47608 | O66: ='For Bill Impact(HideBeforeFile)'!$D$5 -> Commodity
C68: =INDEX('For Bill Impact(HideBeforeFile)'!$D$48:$O$57,MATCH(C62,'For Bill Impact(HideBeforeFile)'!$C$62:$C$71,0),MATCH($O68,'For Bill Impact(HideBeforeFile)'!$D$61:$O$61,0)) -> Customer (excl. Bill 32) | D68: =INDEX('For Bill Impact(HideBeforeFile)'!$D$62:$O$71,MATCH(C62,'For Bill Impact(HideBeforeFile)'!$C$62:$C$71,0),MATCH($O68,'For Bill Impact(HideBeforeFile)'!$D$61:$O$61,0)) -> $ / month | F68: =INDEX('For Bill Impact(HideBeforeFile)'!$D$6:$O$15,MATCH(C62,'For Bill Impact(HideBeforeFile)'!$C$62:$C$71,0),MATCH($O68,'For Bill Impact(HideBeforeFile)'!$D$61:$O$61,0)) -> 16.5 | H68: =INDEX('For Bill Impact(HideBeforeFile)'!$D$20:$O$29,MATCH(C62,'For Bill Impact(HideBeforeFile)'!$C$62:$C$71,0),MATCH($O68,'For Bill Impact(HideBeforeFile)'!$D$61:$O$61,0)) -> 17.5 | J68: =INDEX('For Bill Impact(HideBeforeFile)'!$D$34:$O$43,MATCH(C62,'For Bill Impact(HideBeforeFile)'!$C$62:$C$71,0),MATCH($O68,'For Bill Impact(HideBeforeFile)'!$D$61:$O$61,0)) -> 12 | O68: ='For Bill Impact(HideBeforeFile)'!$K$5 -> Dist. Customer Rate
C69: =INDEX('For Bill Impact(HideBeforeFile)'!$D$48:$O$57,MATCH(C62,'For Bill Impact(HideBeforeFile)'!$C$62:$C$71,0),MATCH($O69,'For Bill Impact(HideBeforeFile)'!$D$61:$O$61,0)) -> Block 1 (First 1,000 m3 per month) | D69: =INDEX('For Bill Impact(HideBeforeFile)'!$D$62:$O$71,MATCH(C62,'For Bill Impact(HideBeforeFile)'!$C$62:$C$71,0),MATCH($O69,'For Bill Impact(HideBeforeFile)'!$D$61:$O$61,0)) -> cents / m3 | F69: =INDEX('For Bill Impact(HideBeforeFile)'!$D$6:$O$15,MATCH(C62,'For Bill Impact(HideBeforeFile)'!$C$62:$C$71,0),MATCH($O69,'For Bill Impact(HideBeforeFile)'!$D$61:$O$61,0)) -> 13.3814 | H69: =INDEX('For Bill Impact(HideBeforeFile)'!$D$20:$O$29,MATCH(C62,'For Bill Impact(HideBeforeFile)'!$C$62:$C$71,0),MATCH($O69,'For Bill Impact(HideBeforeFile)'!$D$61:$O$61,0)) -> 13.57005773 | J69: =INDEX('For Bill Impact(HideBeforeFile)'!$D$34:$O$43,MATCH(C62,'For Bill Impact(HideBeforeFile)'!$C$62:$C$71,0),MATCH($O69,'For Bill Impact(HideBeforeFile)'!$D$61:$O$61,0)) -> 5361.868866 | O69: ='For Bill Impact(HideBeforeFile)'!$L$5 -> Dist. Vol. Rate Tier 1
C70: =INDEX('For Bill Impact(HideBeforeFile)'!$D$48:$O$57,MATCH(C62,'For Bill Impact(HideBeforeFile)'!$C$62:$C$71,0),MATCH($O70,'For Bill Impact(HideBeforeFile)'!$D$61:$O$61,0)) -> Block 2 (Over 1,000 m3 per month) | D70: =INDEX('For Bill Impact(HideBeforeFile)'!$D$62:$O$71,MATCH(C62,'For Bill Impact(HideBeforeFile)'!$C$62:$C$71,0),MATCH($O70,'For Bill Impact(HideBeforeFile)'!$D$61:$O$61,0)) -> cents / m3 | F70: =INDEX('For Bill Impact(HideBeforeFile)'!$D$6:$O$15,MATCH(C62,'For Bill Impact(HideBeforeFile)'!$C$62:$C$71,0),MATCH($O70,'For Bill Impact(HideBeforeFile)'!$D$61:$O$61,0)) -> 10.7275 | H70: =INDEX('For Bill Impact(HideBeforeFile)'!$D$20:$O$29,MATCH(C62,'For Bill Impact(HideBeforeFile)'!$C$62:$C$71,0),MATCH($O70,'For Bill Impact(HideBeforeFile)'!$D$61:$O$61,0)) -> 10.90634364 | J70: =INDEX('For Bill Impact(HideBeforeFile)'!$D$34:$O$43,MATCH(C62,'For Bill Impact(HideBeforeFile)'!$C$62:$C$71,0),MATCH($O70,'For Bill Impact(HideBeforeFile)'!$D$61:$O$61,0)) -> 6492.607216 | O70: ='For Bill Impact(HideBeforeFile)'!$M$5 -> Dist. Vol. Rate Tier 2
C71: =INDEX('For Bill Impact(HideBeforeFile)'!$D$48:$O$57,MATCH(C62,'For Bill Impact(HideBeforeFile)'!$C$62:$C$71,0),MATCH($O71,'For Bill Impact(HideBeforeFile)'!$D$61:$O$61,0)) ->  | D71: =INDEX('For Bill Impact(HideBeforeFile)'!$D$62:$O$71,MATCH(C62,'For Bill Impact(HideBeforeFile)'!$C$62:$C$71,0),MATCH($O71,'For Bill Impact(HideBeforeFile)'!$D$61:$O$61,0)) ->  | F71: =INDEX('For Bill Impact(HideBeforeFile)'!$D$6:$O$15,MATCH(C62,'For Bill Impact(HideBeforeFile)'!$C$62:$C$71,0),MATCH($O71,'For Bill Impact(HideBeforeFile)'!$D$61:$O$61,0)) ->  | H71: =INDEX('For Bill Impact(HideBeforeFile)'!$D$20:$O$29,MATCH(C62,'For Bill Impact(HideBeforeFile)'!$C$62:$C$71,0),MATCH($O71,'For Bill Impact(HideBeforeFile)'!$D$61:$O$61,0)) ->  | J71: =INDEX('For Bill Impact(HideBeforeFile)'!$D$34:$O$43,MATCH(C62,'For Bill Impact(HideBeforeFile)'!$C$62:$C$71,0),MATCH($O71,'For Bill Impact(HideBeforeFile)'!$D$61:$O$61,0)) ->  | O71: ='For Bill Impact(HideBeforeFile)'!$N$5 -> Dist. Vol. Rate Tier 3
C72: =INDEX('For Bill Impact(HideBeforeFile)'!$D$48:$O$57,MATCH(C62,'For Bill Impact(HideBeforeFile)'!$C$62:$C$71,0),MATCH($O72,'For Bill Impact(HideBeforeFile)'!$D$61:$O$61,0)) ->  | D72: =INDEX('For Bill Impact(HideBeforeFile)'!$D$62:$O$71,MATCH(C62,'For Bill Impact(HideBeforeFile)'!$C$62:$C$71,0),MATCH($O72,'For Bill Impact(HideBeforeFile)'!$D$61:$O$61,0)) ->  | F72: =INDEX('For Bill Impact(HideBeforeFile)'!$D$6:$O$15,MATCH(C62,'For Bill Impact(HideBeforeFile)'!$C$62:$C$71,0),MATCH($O72,'For Bill Impact(HideBeforeFile)'!$D$61:$O$61,0)) ->  | H72: =INDEX('For Bill Impact(HideBeforeFile)'!$D$20:$O$29,MATCH(C62,'For Bill Impact(HideBeforeFile)'!$C$62:$C$71,0),MATCH($O72,'For Bill Impact(HideBeforeFile)'!$D$61:$O$61,0)) ->  | J72: =INDEX('For Bill Impact(HideBeforeFile)'!$D$34:$O$43,MATCH(C62,'For Bill Impact(HideBeforeFile)'!$C$62:$C$71,0),MATCH($O72,'For Bill Impact(HideBeforeFile)'!$D$61:$O$61,0)) ->  | O72: ='For Bill Impact(HideBeforeFile)'!$O$5 -> Dist. Capacity Rate
C73: =INDEX('For Bill Impact(HideBeforeFile)'!$D$48:$O$57,MATCH(C62,'For Bill Impact(HideBeforeFile)'!$C$62:$C$71,0),MATCH($O73,'For Bill Impact(HideBeforeFile)'!$D$61:$O$61,0)) -> System Gas Charge | D73: =INDEX('For Bill Impact(HideBeforeFile)'!$D$62:$O$71,MATCH(C62,'For Bill Impact(HideBeforeFile)'!$C$62:$C$71,0),MATCH($O73,'For Bill Impact(HideBeforeFile)'!$D$61:$O$61,0)) -> cents / m3 | F73: =INDEX('For Bill Impact(HideBeforeFile)'!$D$6:$O$15,MATCH(C62,'For Bill Impact(HideBeforeFile)'!$C$62:$C$71,0),MATCH($O73,'For Bill Impact(HideBeforeFile)'!$D$61:$O$61,0)) -> 0.0435 | H73: =INDEX('For Bill Impact(HideBeforeFile)'!$D$20:$O$29,MATCH(C62,'For Bill Impact(HideBeforeFile)'!$C$62:$C$71,0),MATCH($O73,'For Bill Impact(HideBeforeFile)'!$D$61:$O$61,0)) -> 0.0435 | J73: =INDEX('For Bill Impact(HideBeforeFile)'!$D$34:$O$43,MATCH(C62,'For Bill Impact(HideBeforeFile)'!$C$62:$C$71,0),MATCH($O73,'For Bill Impact(HideBeforeFile)'!$D$61:$O$61,0)) -> 11854.47608 | O73: ='For Bill Impact(HideBeforeFile)'!$E$5 -> System Gas
C75: =INDEX('For Bill Impact(HideBeforeFile)'!$D$48:$O$57,MATCH(C62,'For Bill Impact(HideBeforeFile)'!$C$62:$C$71,0),MATCH($O75,'For Bill Impact(HideBeforeFile)'!$D$61:$O$61,0)) -> REDA | D75: =INDEX('For Bill Impact(HideBeforeFile)'!$D$62:$O$71,MATCH(C62,'For Bill Impact(HideBeforeFile)'!$C$62:$C$71,0),MATCH($O75,'For Bill Impact(HideBeforeFile)'!$D$61:$O$61,0)) -> $ / month | F75: =INDEX('For Bill Impact(HideBeforeFile)'!$D$6:$O$15,MATCH(C62,'For Bill Impact(HideBeforeFile)'!$C$62:$C$71,0),MATCH($O75,'For Bill Impact(HideBeforeFile)'!$D$61:$O$61,0)) -> 0.59 | H75: =INDEX('For Bill Impact(HideBeforeFile)'!$D$20:$O$29,MATCH(C62,'For Bill Impact(HideBeforeFile)'!$C$62:$C$71,0),MATCH($O75,'For Bill Impact(HideBeforeFile)'!$D$61:$O$61,0)) -> 0.7697128118 | J75: =INDEX('For Bill Impact(HideBeforeFile)'!$D$34:$O$43,MATCH(C62,'For Bill Impact(HideBeforeFile)'!$C$62:$C$71,0),MATCH($O75,'For Bill Impact(HideBeforeFile)'!$D$61:$O$61,0)) -> 12 | O75: ='For Bill Impact(HideBeforeFile)'!$F$5 -> REDA
C76: =INDEX('For Bill Impact(HideBeforeFile)'!$D$48:$O$57,MATCH(C62,'For Bill Impact(HideBeforeFile)'!$C$62:$C$71,0),MATCH($O76,'For Bill Impact(HideBeforeFile)'!$D$61:$O$61,0)) -> PGTVA | D76: =INDEX('For Bill Impact(HideBeforeFile)'!$D$62:$O$71,MATCH(C62,'For Bill Impact(HideBeforeFile)'!$C$62:$C$71,0),MATCH($O76,'For Bill Impact(HideBeforeFile)'!$D$61:$O$61,0)) -> cents / m3 | F76: =INDEX('For Bill Impact(HideBeforeFile)'!$D$6:$O$15,MATCH(C62,'For Bill Impact(HideBeforeFile)'!$C$62:$C$71,0),MATCH($O76,'For Bill Impact(HideBeforeFile)'!$D$61:$O$61,0)) -> 0.128 | H76: =INDEX('For Bill Impact(HideBeforeFile)'!$D$20:$O$29,MATCH(C62,'For Bill Impact(HideBeforeFile)'!$C$62:$C$71,0),MATCH($O76,'For Bill Impact(HideBeforeFile)'!$D$61:$O$61,0)) -> 0.3066442063 | J76: =INDEX('For Bill Impact(HideBeforeFile)'!$D$34:$O$43,MATCH(C62,'For Bill Impact(HideBeforeFile)'!$C$62:$C$71,0),MATCH($O76,'For Bill Impact(HideBeforeFile)'!$D$61:$O$61,0)) -> 11854.47608 | O76: ='For Bill Impact(HideBeforeFile)'!$G$5 -> PGTVA
C77: =INDEX('For Bill Impact(HideBeforeFile)'!$D$48:$O$57,MATCH(C62,'For Bill Impact(HideBeforeFile)'!$C$62:$C$71,0),MATCH($O77,'For Bill Impact(HideBeforeFile)'!$D$61:$O$61,0)) -> ADVADA | D77: =INDEX('For Bill Impact(HideBeforeFile)'!$D$62:$O$71,MATCH(C62,'For Bill Impact(HideBeforeFile)'!$C$62:$C$71,0),MATCH($O77,'For Bill Impact(HideBeforeFile)'!$D$61:$O$61,0)) -> cents / m3 | F77: =INDEX('For Bill Impact(HideBeforeFile)'!$D$6:$O$15,MATCH(C62,'For Bill Impact(HideBeforeFile)'!$C$62:$C$71,0),MATCH($O77,'For Bill Impact(HideBeforeFile)'!$D$61:$O$61,0)) ->  | H77: =INDEX('For Bill Impact(HideBeforeFile)'!$D$20:$O$29,MATCH(C62,'For Bill Impact(HideBeforeFile)'!$C$62:$C$71,0),MATCH($O77,'For Bill Impact(HideBeforeFile)'!$D$61:$O$61,0)) -> 0.1484182125 | J77: =INDEX('For Bill Impact(HideBeforeFile)'!$D$34:$O$43,MATCH(C62,'For Bill Impact(HideBeforeFile)'!$C$62:$C$71,0),MATCH($O77,'For Bill Impact(HideBeforeFile)'!$D$61:$O$61,0)) -> 11854.47608 | O77: ='For Bill Impact(HideBeforeFile)'!$H$5 -> ADVADA
C79: =INDEX('For Bill Impact(HideBeforeFile)'!$D$48:$O$57,MATCH(C62,'For Bill Impact(HideBeforeFile)'!$C$62:$C$71,0),MATCH($O79,'For Bill Impact(HideBeforeFile)'!$D$61:$O$61,0)) -> Federal Carbon | D79: =INDEX('For Bill Impact(HideBeforeFile)'!$D$62:$O$71,MATCH(C62,'For Bill Impact(HideBeforeFile)'!$C$62:$C$71,0),MATCH($O79,'For Bill Impact(HideBeforeFile)'!$D$61:$O$61,0)) -> cents / m3 | F79: =INDEX('For Bill Impact(HideBeforeFile)'!$D$6:$O$15,MATCH(C62,'For Bill Impact(HideBeforeFile)'!$C$62:$C$71,0),MATCH($O79,'For Bill Impact(HideBeforeFile)'!$D$61:$O$61,0)) -> 5.87 | H79: =INDEX('For Bill Impact(HideBeforeFile)'!$D$20:$O$29,MATCH(C62,'For Bill Impact(HideBeforeFile)'!$C$62:$C$71,0),MATCH($O79,'For Bill Impact(HideBeforeFile)'!$D$61:$O$61,0)) -> 5.87 | J79: =INDEX('For Bill Impact(HideBeforeFile)'!$D$34:$O$43,MATCH(C62,'For Bill Impact(HideBeforeFile)'!$C$62:$C$71,0),MATCH($O79,'For Bill Impact(HideBeforeFile)'!$D$61:$O$61,0)) -> 11854.47608 | O79: ='For Bill Impact(HideBeforeFile)'!$I$5 -> Federal Carbon
C80: =INDEX('For Bill Impact(HideBeforeFile)'!$D$48:$O$57,MATCH(C62,'For Bill Impact(HideBeforeFile)'!$C$62:$C$71,0),MATCH($O80,'For Bill Impact(HideBeforeFile)'!$D$61:$O$61,0)) -> Facility Carbon | D80: =INDEX('For Bill Impact(HideBeforeFile)'!$D$62:$O$71,MATCH(C62,'For Bill Impact(HideBeforeFile)'!$C$62:$C$71,0),MATCH($O80,'For Bill Impact(HideBeforeFile)'!$D$61:$O$61,0)) -> cents / m3 | F80: =INDEX('For Bill Impact(HideBeforeFile)'!$D$6:$O$15,MATCH(C62,'For Bill Impact(HideBeforeFile)'!$C$62:$C$71,0),MATCH($O80,'For Bill Impact(HideBeforeFile)'!$D$61:$O$61,0)) -> 0.0027 | H80: =INDEX('For Bill Impact(HideBeforeFile)'!$D$20:$O$29,MATCH(C62,'For Bill Impact(HideBeforeFile)'!$C$62:$C$71,0),MATCH($O80,'For Bill Impact(HideBeforeFile)'!$D$61:$O$61,0)) -> 0.0027 | J80: =INDEX('For Bill Impact(HideBeforeFile)'!$D$34:$O$43,MATCH(C62,'For Bill Impact(HideBeforeFile)'!$C$62:$C$71,0),MATCH($O80,'For Bill Impact(HideBeforeFile)'!$D$61:$O$61,0)) -> 11854.47608 | O80: ='For Bill Impact(HideBeforeFile)'!$J$5 -> Facility Carbon
C83: Commodity | F83: Current | H83: Proposed | J83: Change $ | L83: Change %
F84: =F66*$J66/100 -> 1572.401417 | H84: =H66*$J66/100 -> 1572.401417 | J84: =H84-F84 -> 0 | L84: =IFERROR(J84/F84,"") -> 0
C86: Delivery | F86: Current Rate | H86: Proposed Rate | J86: Change $ | L86: Change %
C87: =IF(C68<>"",C68,"") -> Customer (excl. Bill 32) | F87: =F68*$J68 -> 198 | H87: =H68*$J68 -> 210 | J87: =IFERROR(H87-F87,"") -> 12 | L87: =IFERROR(J87/F87,"") -> 0.06060606061
C88: Bill 32 | F88: 12 | H88: 12 | J88: =IFERROR(H88-F88,"") -> 0 | L88: =IFERROR(J88/F88,"") -> 0
C89: =IF(C69<>"",C69,"") -> Block 1 (First 1,000 m3 per month) | F89: =IFERROR(F69*$J69/100,"") -> 717.4931204 | H89: =IFERROR(H69*$J69/100,"") -> 727.6087005 | J89: =IFERROR(H89-F89,"") -> 10.1155801 | L89: =IFERROR(J89/F89,"") -> 0.01409850466
C90: =IF(C70<>"",C70,"") -> Block 2 (Over 1,000 m3 per month) | F90: =IFERROR(F70*$J70/100,"") -> 696.4944391 | H90: =IFERROR(H70*$J70/100,"") -> 708.1060541 | J90: 11.61161491 | L90: 0.01667151129
C91: =IF(C71<>"",C71,"") ->  | F91: =IFERROR(F71*$J71/100,"") ->  | H91: =IFERROR(H71*$J71/100,"") -> 
C92: =IF(C72<>"",C72,"") ->  | F92: =IFERROR(F72*$J72/100,"") ->  | H92: =IFERROR(H72*$J72/100,"") -> 
C93: =IF(C73<>"",C73,"") -> System Gas Charge | F93: =IFERROR(F73*$J73/100,"") -> 5.156697096 | H93: =IFERROR(H73*$J73/100,"") -> 5.156697096 | J93: 0 | L93: 0
C94: Total Delivery | F94: =SUM(F87:F93) -> 1629.144257 | H94: =SUM(H87:H93) -> 1662.871452 | J94: =H94-F94 -> 33.72719501 | L94: =IF(ISERROR(J94/F94),0,J94/F94) -> 0.02070239936
C96: Rate Riders
C98: Rate Riders | F98: Current Rate | H98: Proposed Rate | J98: Change $ | L98: Change %
C99: REDA | F99: =F75*$J75 -> 7.08 | H99: =H75*$J75 -> 9.236553742 | J99: =IFERROR(H99-F99,"") -> 2.156553742 | L99: =IFERROR(J99/F99,"") -> 0.3045979862
C100: PGTVA | F100: =IFERROR(F76*$J76/100,"") -> 15.17372939 | H100: =IFERROR(H76*$J76/100,"") -> 36.35106409 | J100: =IFERROR(H100-F100,"") -> 21.1773347 | L100: 1.395657861
C101: ADVADA | F101: =IFERROR(F77*$J77/100,"") ->  | H101: =IFERROR(H77*$J77/100,"") -> 17.5942015 | J101: =H101 -> 17.5942015 | L101: =J101/H101 -> 1
C102: Total Rate Riders | F102: =SUM(F99:F101) -> 22.25372939 | H102: =SUM(H99:H101) -> 63.18181933 | J102: =SUM(J99:J101) -> 40.92808994 | L102: =IF(ISERROR(J102/F102),0,J102/F102) -> 1.83915645
C104: Carbon Tax
C105: Federal Carbon | F105: =F79*$J79/100 -> 695.857746 | H105: =H79*$J79/100 -> 695.857746 | J105: =IFERROR(H105-F105,"") -> 0 | L105: =IFERROR(J105/F105,"") -> 0
C106: Facility Carbon | F106: =F80*$J80/100 -> 0.3200708542 | H106: =H80*$J80/100 -> 0.3200708542 | J106: =IFERROR(H106-F106,"") -> 0 | L106: 0
C107: Total Carbon Tax | F107: =SUM(F105:F106) -> 696.1778169 | H107: =SUM(H105:H106) -> 696.1778169 | J107: =SUM(J105:J106) -> 0 | L107: =IF(ISERROR(J107/F107),0,J107/F107) -> 0
C109: Total Bill Impact | F109: =SUM(F84,F94,F102,F107) -> 3919.977219 | H109: =SUM(H84,H94,H102,H107) -> 3994.632504 | J109: =SUM(J84,J94,J102,J107) -> 74.65528496 | L109: =IFERROR(J109/F109,"") -> 0.01904482623
C112: =MID(CELL("filename",A53),FIND("]",CELL("filename",A53))+1,255) -> G1.1 Rate 1 Bill Impact
C114: ='For Bill Impact(HideBeforeFile)'!C8 -> RATE 1 - General Service Rate - Industrial | F114: Current | H114: Proposed | J114: Bill Determinant | O114: Look-up
C118: =INDEX('For Bill Impact(HideBeforeFile)'!$D$48:$O$57,MATCH(C114,'For Bill Impact(HideBeforeFile)'!$C$62:$C$71,0),MATCH($O118,'For Bill Impact(HideBeforeFile)'!$D$61:$O$61,0)) -> Commodity | D118: =INDEX('For Bill Impact(HideBeforeFile)'!$D$62:$O$71,MATCH(C114,'For Bill Impact(HideBeforeFile)'!$C$62:$C$71,0),MATCH($O118,'For Bill Impact(HideBeforeFile)'!$D$61:$O$61,0)) -> cents / m3 | F118: =INDEX('For Bill Impact(HideBeforeFile)'!$D$6:$O$15,MATCH(C114,'For Bill Impact(HideBeforeFile)'!$C$62:$C$71,0),MATCH($O118,'For Bill Impact(HideBeforeFile)'!$D$61:$O$61,0)) -> 13.2642 | H118: =INDEX('For Bill Impact(HideBeforeFile)'!$D$20:$O$29,MATCH(C114,'For Bill Impact(HideBeforeFile)'!$C$62:$C$71,0),MATCH($O118,'For Bill Impact(HideBeforeFile)'!$D$61:$O$61,0)) -> 13.2642 | J118: =INDEX('For Bill Impact(HideBeforeFile)'!$D$34:$O$43,MATCH(C114,'For Bill Impact(HideBeforeFile)'!$C$62:$C$71,0),MATCH($O118,'For Bill Impact(HideBeforeFile)'!$D$61:$O$61,0)) -> 33573.7338 | O118: ='For Bill Impact(HideBeforeFile)'!$D$5 -> Commodity
C120: =INDEX('For Bill Impact(HideBeforeFile)'!$D$48:$O$57,MATCH(C114,'For Bill Impact(HideBeforeFile)'!$C$62:$C$71,0),MATCH($O120,'For Bill Impact(HideBeforeFile)'!$D$61:$O$61,0)) -> Customer (excl. Bill 32) | D120: =INDEX('For Bill Impact(HideBeforeFile)'!$D$62:$O$71,MATCH(C114,'For Bill Impact(HideBeforeFile)'!$C$62:$C$71,0),MATCH($O120,'For Bill Impact(HideBeforeFile)'!$D$61:$O$61,0)) -> $ / month | F120: =INDEX('For Bill Impact(HideBeforeFile)'!$D$6:$O$15,MATCH(C114,'For Bill Impact(HideBeforeFile)'!$C$62:$C$71,0),MATCH($O120,'For Bill Impact(HideBeforeFile)'!$D$61:$O$61,0)) -> 16.5 | H120: =INDEX('For Bill Impact(HideBeforeFile)'!$D$20:$O$29,MATCH(C114,'For Bill Impact(HideBeforeFile)'!$C$62:$C$71,0),MATCH($O120,'For Bill Impact(HideBeforeFile)'!$D$61:$O$61,0)) -> 17.5 | J120: =INDEX('For Bill Impact(HideBeforeFile)'!$D$34:$O$43,MATCH(C114,'For Bill Impact(HideBeforeFile)'!$C$62:$C$71,0),MATCH($O120,'For Bill Impact(HideBeforeFile)'!$D$61:$O$61,0)) -> 12 | O120: ='For Bill Impact(HideBeforeFile)'!$K$5 -> Dist. Customer Rate
C121: =INDEX('For Bill Impact(HideBeforeFile)'!$D$48:$O$57,MATCH(C114,'For Bill Impact(HideBeforeFile)'!$C$62:$C$71,0),MATCH($O121,'For Bill Impact(HideBeforeFile)'!$D$61:$O$61,0)) -> Block 1 (First 1,000 m3 per month) | D121: =INDEX('For Bill Impact(HideBeforeFile)'!$D$62:$O$71,MATCH(C114,'For Bill Impact(HideBeforeFile)'!$C$62:$C$71,0),MATCH($O121,'For Bill Impact(HideBeforeFile)'!$D$61:$O$61,0)) -> cents / m3 | F121: =INDEX('For Bill Impact(HideBeforeFile)'!$D$6:$O$15,MATCH(C114,'For Bill Impact(HideBeforeFile)'!$C$62:$C$71,0),MATCH($O121,'For Bill Impact(HideBeforeFile)'!$D$61:$O$61,0)) -> 13.3814 | H121: =INDEX('For Bill Impact(HideBeforeFile)'!$D$20:$O$29,MATCH(C114,'For Bill Impact(HideBeforeFile)'!$C$62:$C$71,0),MATCH($O121,'For Bill Impact(HideBeforeFile)'!$D$61:$O$61,0)) -> 13.57005773 | J121: =INDEX('For Bill Impact(HideBeforeFile)'!$D$34:$O$43,MATCH(C114,'For Bill Impact(HideBeforeFile)'!$C$62:$C$71,0),MATCH($O121,'For Bill Impact(HideBeforeFile)'!$D$61:$O$61,0)) -> 6439.239437 | O121: ='For Bill Impact(HideBeforeFile)'!$L$5 -> Dist. Vol. Rate Tier 1
C122: =INDEX('For Bill Impact(HideBeforeFile)'!$D$48:$O$57,MATCH(C114,'For Bill Impact(HideBeforeFile)'!$C$62:$C$71,0),MATCH($O122,'For Bill Impact(HideBeforeFile)'!$D$61:$O$61,0)) -> Block 2 (Over 1,000 m3 per month) | D122: =INDEX('For Bill Impact(HideBeforeFile)'!$D$62:$O$71,MATCH(C114,'For Bill Impact(HideBeforeFile)'!$C$62:$C$71,0),MATCH($O122,'For Bill Impact(HideBeforeFile)'!$D$61:$O$61,0)) -> cents / m3 | F122: =INDEX('For Bill Impact(HideBeforeFile)'!$D$6:$O$15,MATCH(C114,'For Bill Impact(HideBeforeFile)'!$C$62:$C$71,0),MATCH($O122,'For Bill Impact(HideBeforeFile)'!$D$61:$O$61,0)) -> 10.7275 | H122: =INDEX('For Bill Impact(HideBeforeFile)'!$D$20:$O$29,MATCH(C114,'For Bill Impact(HideBeforeFile)'!$C$62:$C$71,0),MATCH($O122,'For Bill Impact(HideBeforeFile)'!$D$61:$O$61,0)) -> 10.90634364 | J122: =INDEX('For Bill Impact(HideBeforeFile)'!$D$34:$O$43,MATCH(C114,'For Bill Impact(HideBeforeFile)'!$C$62:$C$71,0),MATCH($O122,'For Bill Impact(HideBeforeFile)'!$D$61:$O$61,0)) -> 27134.49437 | O122: ='For Bill Impact(HideBeforeFile)'!$M$5 -> Dist. Vol. Rate Tier 2
C123: =INDEX('For Bill Impact(HideBeforeFile)'!$D$48:$O$57,MATCH(C114,'For Bill Impact(HideBeforeFile)'!$C$62:$C$71,0),MATCH($O123,'For Bill Impact(HideBeforeFile)'!$D$61:$O$61,0)) ->  | D123: =INDEX('For Bill Impact(HideBeforeFile)'!$D$62:$O$71,MATCH(C114,'For Bill Impact(HideBeforeFile)'!$C$62:$C$71,0),MATCH($O123,'For Bill Impact(HideBeforeFile)'!$D$61:$O$61,0)) ->  | F123: =INDEX('For Bill Impact(HideBeforeFile)'!$D$6:$O$15,MATCH(C114,'For Bill Impact(HideBeforeFile)'!$C$62:$C$71,0),MATCH($O123,'For Bill Impact(HideBeforeFile)'!$D$61:$O$61,0)) ->  | H123: =INDEX('For Bill Impact(HideBeforeFile)'!$D$20:$O$29,MATCH(C114,'For Bill Impact(HideBeforeFile)'!$C$62:$C$71,0),MATCH($O123,'For Bill Impact(HideBeforeFile)'!$D$61:$O$61,0)) ->  | J123: =INDEX('For Bill Impact(HideBeforeFile)'!$D$34:$O$43,MATCH(C114,'For Bill Impact(HideBeforeFile)'!$C$62:$C$71,0),MATCH($O123,'For Bill Impact(HideBeforeFile)'!$D$61:$O$61,0)) ->  | O123: ='For Bill Impact(HideBeforeFile)'!$N$5 -> Dist. Vol. Rate Tier 3
C124: =INDEX('For Bill Impact(HideBeforeFile)'!$D$48:$O$57,MATCH(C114,'For Bill Impact(HideBeforeFile)'!$C$62:$C$71,0),MATCH($O124,'For Bill Impact(HideBeforeFile)'!$D$61:$O$61,0)) ->  | D124: =INDEX('For Bill Impact(HideBeforeFile)'!$D$62:$O$71,MATCH(C114,'For Bill Impact(HideBeforeFile)'!$C$62:$C$71,0),MATCH($O124,'For Bill Impact(HideBeforeFile)'!$D$61:$O$61,0)) ->  | F124: =INDEX('For Bill Impact(HideBeforeFile)'!$D$6:$O$15,MATCH(C114,'For Bill Impact(HideBeforeFile)'!$C$62:$C$71,0),MATCH($O124,'For Bill Impact(HideBeforeFile)'!$D$61:$O$61,0)) ->  | H124: =INDEX('For Bill Impact(HideBeforeFile)'!$D$20:$O$29,MATCH(C114,'For Bill Impact(HideBeforeFile)'!$C$62:$C$71,0),MATCH($O124,'For Bill Impact(HideBeforeFile)'!$D$61:$O$61,0)) ->  | J124: =INDEX('For Bill Impact(HideBeforeFile)'!$D$34:$O$43,MATCH(C114,'For Bill Impact(HideBeforeFile)'!$C$62:$C$71,0),MATCH($O124,'For Bill Impact(HideBeforeFile)'!$D$61:$O$61,0)) ->  | O124: ='For Bill Impact(HideBeforeFile)'!$O$5 -> Dist. Capacity Rate
C125: =INDEX('For Bill Impact(HideBeforeFile)'!$D$48:$O$57,MATCH(C114,'For Bill Impact(HideBeforeFile)'!$C$62:$C$71,0),MATCH($O125,'For Bill Impact(HideBeforeFile)'!$D$61:$O$61,0)) -> System Gas Charge | D125: =INDEX('For Bill Impact(HideBeforeFile)'!$D$62:$O$71,MATCH(C114,'For Bill Impact(HideBeforeFile)'!$C$62:$C$71,0),MATCH($O125,'For Bill Impact(HideBeforeFile)'!$D$61:$O$61,0)) -> cents / m3 | F125: =INDEX('For Bill Impact(HideBeforeFile)'!$D$6:$O$15,MATCH(C114,'For Bill Impact(HideBeforeFile)'!$C$62:$C$71,0),MATCH($O125,'For Bill Impact(HideBeforeFile)'!$D$61:$O$61,0)) -> 0.0435 | H125: =INDEX('For Bill Impact(HideBeforeFile)'!$D$20:$O$29,MATCH(C114,'For Bill Impact(HideBeforeFile)'!$C$62:$C$71,0),MATCH($O125,'For Bill Impact(HideBeforeFile)'!$D$61:$O$61,0)) -> 0.0435 | J125: =INDEX('For Bill Impact(HideBeforeFile)'!$D$34:$O$43,MATCH(C114,'For Bill Impact(HideBeforeFile)'!$C$62:$C$71,0),MATCH($O125,'For Bill Impact(HideBeforeFile)'!$D$61:$O$61,0)) -> 33573.7338 | O125: ='For Bill Impact(HideBeforeFile)'!$E$5 -> System Gas
C127: =INDEX('For Bill Impact(HideBeforeFile)'!$D$48:$O$57,MATCH(C114,'For Bill Impact(HideBeforeFile)'!$C$62:$C$71,0),MATCH($O127,'For Bill Impact(HideBeforeFile)'!$D$61:$O$61,0)) -> REDA | D127: =INDEX('For Bill Impact(HideBeforeFile)'!$D$62:$O$71,MATCH(C114,'For Bill Impact(HideBeforeFile)'!$C$62:$C$71,0),MATCH($O127,'For Bill Impact(HideBeforeFile)'!$D$61:$O$61,0)) -> $ / month | F127: =INDEX('For Bill Impact(HideBeforeFile)'!$D$6:$O$15,MATCH(C114,'For Bill Impact(HideBeforeFile)'!$C$62:$C$71,0),MATCH($O127,'For Bill Impact(HideBeforeFile)'!$D$61:$O$61,0)) -> 0.59 | H127: =INDEX('For Bill Impact(HideBeforeFile)'!$D$20:$O$29,MATCH(C114,'For Bill Impact(HideBeforeFile)'!$C$62:$C$71,0),MATCH($O127,'For Bill Impact(HideBeforeFile)'!$D$61:$O$61,0)) -> 0.7697128118 | J127: =INDEX('For Bill Impact(HideBeforeFile)'!$D$34:$O$43,MATCH(C114,'For Bill Impact(HideBeforeFile)'!$C$62:$C$71,0),MATCH($O127,'For Bill Impact(HideBeforeFile)'!$D$61:$O$61,0)) -> 12 | O127: ='For Bill Impact(HideBeforeFile)'!$F$5 -> REDA
C128: =INDEX('For Bill Impact(HideBeforeFile)'!$D$48:$O$57,MATCH(C114,'For Bill Impact(HideBeforeFile)'!$C$62:$C$71,0),MATCH($O128,'For Bill Impact(HideBeforeFile)'!$D$61:$O$61,0)) -> PGTVA | D128: =INDEX('For Bill Impact(HideBeforeFile)'!$D$62:$O$71,MATCH(C114,'For Bill Impact(HideBeforeFile)'!$C$62:$C$71,0),MATCH($O128,'For Bill Impact(HideBeforeFile)'!$D$61:$O$61,0)) -> cents / m3 | F128: =INDEX('For Bill Impact(HideBeforeFile)'!$D$6:$O$15,MATCH(C114,'For Bill Impact(HideBeforeFile)'!$C$62:$C$71,0),MATCH($O128,'For Bill Impact(HideBeforeFile)'!$D$61:$O$61,0)) -> 0.128 | H128: =INDEX('For Bill Impact(HideBeforeFile)'!$D$20:$O$29,MATCH(C114,'For Bill Impact(HideBeforeFile)'!$C$62:$C$71,0),MATCH($O128,'For Bill Impact(HideBeforeFile)'!$D$61:$O$61,0)) -> 0.3066442063 | J128: =INDEX('For Bill Impact(HideBeforeFile)'!$D$34:$O$43,MATCH(C114,'For Bill Impact(HideBeforeFile)'!$C$62:$C$71,0),MATCH($O128,'For Bill Impact(HideBeforeFile)'!$D$61:$O$61,0)) -> 33573.7338 | O128: ='For Bill Impact(HideBeforeFile)'!$G$5 -> PGTVA
C129: =INDEX('For Bill Impact(HideBeforeFile)'!$D$48:$O$57,MATCH(C114,'For Bill Impact(HideBeforeFile)'!$C$62:$C$71,0),MATCH($O129,'For Bill Impact(HideBeforeFile)'!$D$61:$O$61,0)) -> ADVADA | D129: =INDEX('For Bill Impact(HideBeforeFile)'!$D$62:$O$71,MATCH(C114,'For Bill Impact(HideBeforeFile)'!$C$62:$C$71,0),MATCH($O129,'For Bill Impact(HideBeforeFile)'!$D$61:$O$61,0)) -> cents / m3 | F129: =INDEX('For Bill Impact(HideBeforeFile)'!$D$6:$O$15,MATCH(C114,'For Bill Impact(HideBeforeFile)'!$C$62:$C$71,0),MATCH($O129,'For Bill Impact(HideBeforeFile)'!$D$61:$O$61,0)) ->  | H129: =INDEX('For Bill Impact(HideBeforeFile)'!$D$20:$O$29,MATCH(C114,'For Bill Impact(HideBeforeFile)'!$C$62:$C$71,0),MATCH($O129,'For Bill Impact(HideBeforeFile)'!$D$61:$O$61,0)) -> 0.1484182125 | J129: =INDEX('For Bill Impact(HideBeforeFile)'!$D$34:$O$43,MATCH(C114,'For Bill Impact(HideBeforeFile)'!$C$62:$C$71,0),MATCH($O129,'For Bill Impact(HideBeforeFile)'!$D$61:$O$61,0)) -> 33573.7338 | O129: ='For Bill Impact(HideBeforeFile)'!$H$5 -> ADVADA
C131: =INDEX('For Bill Impact(HideBeforeFile)'!$D$48:$O$57,MATCH(C114,'For Bill Impact(HideBeforeFile)'!$C$62:$C$71,0),MATCH($O131,'For Bill Impact(HideBeforeFile)'!$D$61:$O$61,0)) -> Federal Carbon | D131: =INDEX('For Bill Impact(HideBeforeFile)'!$D$62:$O$71,MATCH(C114,'For Bill Impact(HideBeforeFile)'!$C$62:$C$71,0),MATCH($O131,'For Bill Impact(HideBeforeFile)'!$D$61:$O$61,0)) -> cents / m3 | F131: =INDEX('For Bill Impact(HideBeforeFile)'!$D$6:$O$15,MATCH(C114,'For Bill Impact(HideBeforeFile)'!$C$62:$C$71,0),MATCH($O131,'For Bill Impact(HideBeforeFile)'!$D$61:$O$61,0)) -> 5.87 | H131: =INDEX('For Bill Impact(HideBeforeFile)'!$D$20:$O$29,MATCH(C114,'For Bill Impact(HideBeforeFile)'!$C$62:$C$71,0),MATCH($O131,'For Bill Impact(HideBeforeFile)'!$D$61:$O$61,0)) -> 5.87 | J131: =INDEX('For Bill Impact(HideBeforeFile)'!$D$34:$O$43,MATCH(C114,'For Bill Impact(HideBeforeFile)'!$C$62:$C$71,0),MATCH($O131,'For Bill Impact(HideBeforeFile)'!$D$61:$O$61,0)) -> 33573.7338 | O131: ='For Bill Impact(HideBeforeFile)'!$I$5 -> Federal Carbon
C132: =INDEX('For Bill Impact(HideBeforeFile)'!$D$48:$O$57,MATCH(C114,'For Bill Impact(HideBeforeFile)'!$C$62:$C$71,0),MATCH($O132,'For Bill Impact(HideBeforeFile)'!$D$61:$O$61,0)) -> Facility Carbon | D132: =INDEX('For Bill Impact(HideBeforeFile)'!$D$62:$O$71,MATCH(C114,'For Bill Impact(HideBeforeFile)'!$C$62:$C$71,0),MATCH($O132,'For Bill Impact(HideBeforeFile)'!$D$61:$O$61,0)) -> cents / m3 | F132: =INDEX('For Bill Impact(HideBeforeFile)'!$D$6:$O$15,MATCH(C114,'For Bill Impact(HideBeforeFile)'!$C$62:$C$71,0),MATCH($O132,'For Bill Impact(HideBeforeFile)'!$D$61:$O$61,0)) -> 0.0027 | H132: =INDEX('For Bill Impact(HideBeforeFile)'!$D$20:$O$29,MATCH(C114,'For Bill Impact(HideBeforeFile)'!$C$62:$C$71,0),MATCH($O132,'For Bill Impact(HideBeforeFile)'!$D$61:$O$61,0)) -> 0.0027 | J132: =INDEX('For Bill Impact(HideBeforeFile)'!$D$34:$O$43,MATCH(C114,'For Bill Impact(HideBeforeFile)'!$C$62:$C$71,0),MATCH($O132,'For Bill Impact(HideBeforeFile)'!$D$61:$O$61,0)) -> 33573.7338 | O132: ='For Bill Impact(HideBeforeFile)'!$J$5 -> Facility Carbon
C135: Commodity | F135: Current | H135: Proposed | J135: Change $ | L135: Change %
F136: =F118*$J118/100 -> 4453.287199 | H136: =H118*$J118/100 -> 4453.287199 | J136: =H136-F136 -> 0 | L136: =IFERROR(J136/F136,"") -> 0
C138: Delivery | F138: Current Rate | H138: Proposed Rate | J138: Change $ | L138: Change %
C139: =IF(C120<>"",C120,"") -> Customer (excl. Bill 32) | F139: =F120*$J120 -> 198 | H139: =H120*$J120 -> 210 | J139: =IFERROR(H139-F139,"") -> 12 | L139: =IFERROR(J139/F139,"") -> 0.06060606061
C140: Bill 32 | F140: 12 | H140: 12 | J140: =IFERROR(H140-F140,"") -> 0 | L140: =IFERROR(J140/F140,"") -> 0
C141: =IF(C121<>"",C121,"") -> Block 1 (First 1,000 m3 per month) | F141: =IFERROR(F121*$J121/100,"") -> 861.660386 | H141: =IFERROR(H121*$J121/100,"") -> 873.8085089 | J141: =IFERROR(H141-F141,"") -> 12.14812297 | L141: =IFERROR(J141/F141,"") -> 0.01409850466
C142: =IF(C122<>"",C122,"") -> Block 2 (Over 1,000 m3 per month) | F142: =IFERROR(F122*$J122/100,"") -> 2910.852883 | H142: =IFERROR(H122*$J122/100,"") -> 2959.3812 | J142: 48.52831672 | L142: 0.01667151129
C143: =IF(C123<>"",C123,"") ->  | F143: =IFERROR(F123*$J123/100,"") ->  | H143: =IFERROR(H123*$J123/100,"") -> 
C144: =IF(C124<>"",C124,"") ->  | F144: =IFERROR(F124*$J124/100,"") ->  | H144: =IFERROR(H124*$J124/100,"") -> 
C145: =IF(C125<>"",C125,"") -> System Gas Charge | F145: =IFERROR(F125*$J125/100,"") -> 14.6045742 | H145: =IFERROR(H125*$J125/100,"") -> 14.6045742 | J145: 0 | L145: 0
C146: Total Delivery | F146: =SUM(F139:F145) -> 3997.117843 | H146: =SUM(H139:H145) -> 4069.794283 | J146: =H146-F146 -> 72.67643968 | L146: =IF(ISERROR(J146/F146),0,J146/F146) -> 0.01818221092
C148: Rate Riders
C150: Rate Riders | F150: Current Rate | H150: Proposed Rate | J150: Change $ | L150: Change %
C151: REDA | F151: =F127*$J127 -> 7.08 | H151: =H127*$J127 -> 9.236553742 | J151: =IFERROR(H151-F151,"") -> 2.156553742 | L151: =IFERROR(J151/F151,"") -> 0.3045979862
C152: PGTVA | F152: =IFERROR(F128*$J128/100,"") -> 42.97437927 | H152: =IFERROR(H128*$J128/100,"") -> 102.9519095 | J152: =IFERROR(H152-F152,"") -> 59.97753026 | L152: 1.395657861
C153: ADVADA | F153: =IFERROR(F129*$J129/100,"") ->  | H153: =IFERROR(H129*$J129/100,"") -> 49.82953556 | J153: =H153 -> 49.82953556 | L153: =J153/H153 -> 1
C154: Total Rate Riders | F154: =SUM(F151:F153) -> 50.05437927 | H154: =SUM(H151:H153) -> 162.0179988 | J154: =SUM(J151:J153) -> 111.9636196 | L154: =IF(ISERROR(J154/F154),0,J154/F154) -> 2.236839637
C156: Carbon Tax
C157: Federal Carbon | F157: =F131*$J131/100 -> 1970.778174 | H157: =H131*$J131/100 -> 1970.778174 | J157: =IFERROR(H157-F157,"") -> 0 | L157: =IFERROR(J157/F157,"") -> 0
C158: Facility Carbon | F158: =F132*$J132/100 -> 0.9064908127 | H158: =H132*$J132/100 -> 0.9064908127 | J158: =IFERROR(H158-F158,"") -> 0 | L158: 0
C159: Total Carbon Tax | F159: =SUM(F157:F158) -> 1971.684665 | H159: =SUM(H157:H158) -> 1971.684665 | J159: =SUM(J157:J158) -> 0 | L159: =IF(ISERROR(J159/F159),0,J159/F159) -> 0
C161: Total Bill Impact | F161: =SUM(F136,F146,F154,F159) -> 10472.14409 | H161: =SUM(H136,H146,H154,H159) -> 10656.78415 | J161: =SUM(J136,J146,J154,J159) -> 184.6400593 | L161: =IFERROR(J161/F161,"") -> 0.01763154305
C164: =MID(CELL("filename",A105),FIND("]",CELL("filename",A105))+1,255) -> G1.1 Rate 1 Bill Impact

Sheet G1.2 Rate 2 Bill Impact
C2: ='A1.1 Distributor Information'!C3 -> Name of LDC: EPCOR Natural Gas Limited Partnership
C3: ='A1.1 Distributor Information'!C4 -> OEB Application Number: EB-2020-0234 Exhibit A - 2021 IRM Application
C7: Rate 2 Delivery Bill Impact
C10: ='For Bill Impact(HideBeforeFile)'!C9 -> RATE 2 - Seasonal Service - Apr to Oct | F10: Current | H10: Proposed | J10: Bill Determinant | O10: Look-up
C14: =INDEX('For Bill Impact(HideBeforeFile)'!$D$48:$O$57,MATCH(C10,'For Bill Impact(HideBeforeFile)'!$C$62:$C$71,0),MATCH($O14,'For Bill Impact(HideBeforeFile)'!$D$61:$O$61,0)) -> Commodity | D14: =INDEX('For Bill Impact(HideBeforeFile)'!$D$62:$O$71,MATCH(C10,'For Bill Impact(HideBeforeFile)'!$C$62:$C$71,0),MATCH($O14,'For Bill Impact(HideBeforeFile)'!$D$61:$O$61,0)) -> cents / m3 | F14: =INDEX('For Bill Impact(HideBeforeFile)'!$D$6:$O$15,MATCH(C10,'For Bill Impact(HideBeforeFile)'!$C$62:$C$71,0),MATCH($O14,'For Bill Impact(HideBeforeFile)'!$D$61:$O$61,0)) -> 13.2642 | H14: =INDEX('For Bill Impact(HideBeforeFile)'!$D$20:$O$29,MATCH(C10,'For Bill Impact(HideBeforeFile)'!$C$62:$C$71,0),MATCH($O14,'For Bill Impact(HideBeforeFile)'!$D$61:$O$61,0)) -> 13.2642 | J14: =INDEX('For Bill Impact(HideBeforeFile)'!$D$34:$O$43,MATCH(C10,'For Bill Impact(HideBeforeFile)'!$C$62:$C$71,0),MATCH($O14,'For Bill Impact(HideBeforeFile)'!$D$61:$O$61,0)) -> 15791.5898 | O14: ='For Bill Impact(HideBeforeFile)'!$D$5 -> Commodity
C16: =INDEX('For Bill Impact(HideBeforeFile)'!$D$48:$O$57,MATCH(C10,'For Bill Impact(HideBeforeFile)'!$C$62:$C$71,0),MATCH($O16,'For Bill Impact(HideBeforeFile)'!$D$61:$O$61,0)) -> Customer (excl. Bill 32) | D16: =INDEX('For Bill Impact(HideBeforeFile)'!$D$62:$O$71,MATCH(C10,'For Bill Impact(HideBeforeFile)'!$C$62:$C$71,0),MATCH($O16,'For Bill Impact(HideBeforeFile)'!$D$61:$O$61,0)) -> $ / month | F16: =INDEX('For Bill Impact(HideBeforeFile)'!$D$6:$O$15,MATCH(C10,'For Bill Impact(HideBeforeFile)'!$C$62:$C$71,0),MATCH($O16,'For Bill Impact(HideBeforeFile)'!$D$61:$O$61,0)) -> 20 | H16: =INDEX('For Bill Impact(HideBeforeFile)'!$D$20:$O$29,MATCH(C10,'For Bill Impact(HideBeforeFile)'!$C$62:$C$71,0),MATCH($O16,'For Bill Impact(HideBeforeFile)'!$D$61:$O$61,0)) -> 20 | J16: =INDEX('For Bill Impact(HideBeforeFile)'!$D$34:$O$43,MATCH(C10,'For Bill Impact(HideBeforeFile)'!$C$62:$C$71,0),MATCH($O16,'For Bill Impact(HideBeforeFile)'!$D$61:$O$61,0)) -> 7 | O16: ='For Bill Impact(HideBeforeFile)'!$K$5 -> Dist. Customer Rate
C17: =INDEX('For Bill Impact(HideBeforeFile)'!$D$48:$O$57,MATCH(C10,'For Bill Impact(HideBeforeFile)'!$C$62:$C$71,0),MATCH($O17,'For Bill Impact(HideBeforeFile)'!$D$61:$O$61,0)) -> Block 1 (First 1,000 m3 per month) | D17: =INDEX('For Bill Impact(HideBeforeFile)'!$D$62:$O$71,MATCH(C10,'For Bill Impact(HideBeforeFile)'!$C$62:$C$71,0),MATCH($O17,'For Bill Impact(HideBeforeFile)'!$D$61:$O$61,0)) -> cents / m3 | F17: =INDEX('For Bill Impact(HideBeforeFile)'!$D$6:$O$15,MATCH(C10,'For Bill Impact(HideBeforeFile)'!$C$62:$C$71,0),MATCH($O17,'For Bill Impact(HideBeforeFile)'!$D$61:$O$61,0)) -> 16.5854 | H17: =INDEX('For Bill Impact(HideBeforeFile)'!$D$20:$O$29,MATCH(C10,'For Bill Impact(HideBeforeFile)'!$C$62:$C$71,0),MATCH($O17,'For Bill Impact(HideBeforeFile)'!$D$61:$O$61,0)) -> 17.08410381 | J17: =INDEX('For Bill Impact(HideBeforeFile)'!$D$34:$O$43,MATCH(C10,'For Bill Impact(HideBeforeFile)'!$C$62:$C$71,0),MATCH($O17,'For Bill Impact(HideBeforeFile)'!$D$61:$O$61,0)) -> 1684.881633 | O17: ='For Bill Impact(HideBeforeFile)'!$L$5 -> Dist. Vol. Rate Tier 1
C18: =INDEX('For Bill Impact(HideBeforeFile)'!$D$48:$O$57,MATCH(C10,'For Bill Impact(HideBeforeFile)'!$C$62:$C$71,0),MATCH($O18,'For Bill Impact(HideBeforeFile)'!$D$61:$O$61,0)) -> Block 2 (Next 24,000 m3 per month) | D18: =INDEX('For Bill Impact(HideBeforeFile)'!$D$62:$O$71,MATCH(C10,'For Bill Impact(HideBeforeFile)'!$C$62:$C$71,0),MATCH($O18,'For Bill Impact(HideBeforeFile)'!$D$61:$O$61,0)) -> cents / m3 | F18: =INDEX('For Bill Impact(HideBeforeFile)'!$D$6:$O$15,MATCH(C10,'For Bill Impact(HideBeforeFile)'!$C$62:$C$71,0),MATCH($O18,'For Bill Impact(HideBeforeFile)'!$D$61:$O$61,0)) -> 8.5818 | H18: =INDEX('For Bill Impact(HideBeforeFile)'!$D$20:$O$29,MATCH(C10,'For Bill Impact(HideBeforeFile)'!$C$62:$C$71,0),MATCH($O18,'For Bill Impact(HideBeforeFile)'!$D$61:$O$61,0)) -> 8.874901487 | J18: =INDEX('For Bill Impact(HideBeforeFile)'!$D$34:$O$43,MATCH(C10,'For Bill Impact(HideBeforeFile)'!$C$62:$C$71,0),MATCH($O18,'For Bill Impact(HideBeforeFile)'!$D$61:$O$61,0)) -> 12110.28776 | O18: ='For Bill Impact(HideBeforeFile)'!$M$5 -> Dist. Vol. Rate Tier 2
C19: =INDEX('For Bill Impact(HideBeforeFile)'!$D$48:$O$57,MATCH(C10,'For Bill Impact(HideBeforeFile)'!$C$62:$C$71,0),MATCH($O19,'For Bill Impact(HideBeforeFile)'!$D$61:$O$61,0)) -> Block 3 (Over 25,000 m3 per month) | D19: =INDEX('For Bill Impact(HideBeforeFile)'!$D$62:$O$71,MATCH(C10,'For Bill Impact(HideBeforeFile)'!$C$62:$C$71,0),MATCH($O19,'For Bill Impact(HideBeforeFile)'!$D$61:$O$61,0)) -> cents / m3 | F19: =INDEX('For Bill Impact(HideBeforeFile)'!$D$6:$O$15,MATCH(C10,'For Bill Impact(HideBeforeFile)'!$C$62:$C$71,0),MATCH($O19,'For Bill Impact(HideBeforeFile)'!$D$61:$O$61,0)) -> 6.7868 | H19: =INDEX('For Bill Impact(HideBeforeFile)'!$D$20:$O$29,MATCH(C10,'For Bill Impact(HideBeforeFile)'!$C$62:$C$71,0),MATCH($O19,'For Bill Impact(HideBeforeFile)'!$D$61:$O$61,0)) -> 6.918785772 | J19: =INDEX('For Bill Impact(HideBeforeFile)'!$D$34:$O$43,MATCH(C10,'For Bill Impact(HideBeforeFile)'!$C$62:$C$71,0),MATCH($O19,'For Bill Impact(HideBeforeFile)'!$D$61:$O$61,0)) -> 1996.420408 | O19: ='For Bill Impact(HideBeforeFile)'!$N$5 -> Dist. Vol. Rate Tier 3
C20: =INDEX('For Bill Impact(HideBeforeFile)'!$D$48:$O$57,MATCH(C10,'For Bill Impact(HideBeforeFile)'!$C$62:$C$71,0),MATCH($O20,'For Bill Impact(HideBeforeFile)'!$D$61:$O$61,0)) ->  | D20: =INDEX('For Bill Impact(HideBeforeFile)'!$D$62:$O$71,MATCH(C10,'For Bill Impact(HideBeforeFile)'!$C$62:$C$71,0),MATCH($O20,'For Bill Impact(HideBeforeFile)'!$D$61:$O$61,0)) ->  | F20: =INDEX('For Bill Impact(HideBeforeFile)'!$D$6:$O$15,MATCH(C10,'For Bill Impact(HideBeforeFile)'!$C$62:$C$71,0),MATCH($O20,'For Bill Impact(HideBeforeFile)'!$D$61:$O$61,0)) ->  | H20: =INDEX('For Bill Impact(HideBeforeFile)'!$D$20:$O$29,MATCH(C10,'For Bill Impact(HideBeforeFile)'!$C$62:$C$71,0),MATCH($O20,'For Bill Impact(HideBeforeFile)'!$D$61:$O$61,0)) ->  | J20: =INDEX('For Bill Impact(HideBeforeFile)'!$D$34:$O$43,MATCH(C10,'For Bill Impact(HideBeforeFile)'!$C$62:$C$71,0),MATCH($O20,'For Bill Impact(HideBeforeFile)'!$D$61:$O$61,0)) ->  | O20: ='For Bill Impact(HideBeforeFile)'!$O$5 -> Dist. Capacity Rate
C21: =INDEX('For Bill Impact(HideBeforeFile)'!$D$48:$O$57,MATCH(C10,'For Bill Impact(HideBeforeFile)'!$C$62:$C$71,0),MATCH($O21,'For Bill Impact(HideBeforeFile)'!$D$61:$O$61,0)) -> System Gas Charge | D21: =INDEX('For Bill Impact(HideBeforeFile)'!$D$62:$O$71,MATCH(C10,'For Bill Impact(HideBeforeFile)'!$C$62:$C$71,0),MATCH($O21,'For Bill Impact(HideBeforeFile)'!$D$61:$O$61,0)) -> cents / m3 | F21: =INDEX('For Bill Impact(HideBeforeFile)'!$D$6:$O$15,MATCH(C10,'For Bill Impact(HideBeforeFile)'!$C$62:$C$71,0),MATCH($O21,'For Bill Impact(HideBeforeFile)'!$D$61:$O$61,0)) -> 0.0435 | H21: =INDEX('For Bill Impact(HideBeforeFile)'!$D$20:$O$29,MATCH(C10,'For Bill Impact(HideBeforeFile)'!$C$62:$C$71,0),MATCH($O21,'For Bill Impact(HideBeforeFile)'!$D$61:$O$61,0)) -> 0.0435 | J21: =INDEX('For Bill Impact(HideBeforeFile)'!$D$34:$O$43,MATCH(C10,'For Bill Impact(HideBeforeFile)'!$C$62:$C$71,0),MATCH($O21,'For Bill Impact(HideBeforeFile)'!$D$61:$O$61,0)) -> 15791.5898 | O21: ='For Bill Impact(HideBeforeFile)'!$E$5 -> System Gas
C23: =INDEX('For Bill Impact(HideBeforeFile)'!$D$48:$O$57,MATCH(C10,'For Bill Impact(HideBeforeFile)'!$C$62:$C$71,0),MATCH($O23,'For Bill Impact(HideBeforeFile)'!$D$61:$O$61,0)) -> REDA | D23: =INDEX('For Bill Impact(HideBeforeFile)'!$D$62:$O$71,MATCH(C10,'For Bill Impact(HideBeforeFile)'!$C$62:$C$71,0),MATCH($O23,'For Bill Impact(HideBeforeFile)'!$D$61:$O$61,0)) -> $ / month | F23: =INDEX('For Bill Impact(HideBeforeFile)'!$D$6:$O$15,MATCH(C10,'For Bill Impact(HideBeforeFile)'!$C$62:$C$71,0),MATCH($O23,'For Bill Impact(HideBeforeFile)'!$D$61:$O$61,0)) -> 0.59 | H23: =INDEX('For Bill Impact(HideBeforeFile)'!$D$20:$O$29,MATCH(C10,'For Bill Impact(HideBeforeFile)'!$C$62:$C$71,0),MATCH($O23,'For Bill Impact(HideBeforeFile)'!$D$61:$O$61,0)) -> 0.7697128118 | J23: =INDEX('For Bill Impact(HideBeforeFile)'!$D$34:$O$43,MATCH(C10,'For Bill Impact(HideBeforeFile)'!$C$62:$C$71,0),MATCH($O23,'For Bill Impact(HideBeforeFile)'!$D$61:$O$61,0)) -> 7 | O23: ='For Bill Impact(HideBeforeFile)'!$F$5 -> REDA
C24: =INDEX('For Bill Impact(HideBeforeFile)'!$D$48:$O$57,MATCH(C10,'For Bill Impact(HideBeforeFile)'!$C$62:$C$71,0),MATCH($O24,'For Bill Impact(HideBeforeFile)'!$D$61:$O$61,0)) -> PGTVA | D24: =INDEX('For Bill Impact(HideBeforeFile)'!$D$62:$O$71,MATCH(C10,'For Bill Impact(HideBeforeFile)'!$C$62:$C$71,0),MATCH($O24,'For Bill Impact(HideBeforeFile)'!$D$61:$O$61,0)) -> cents / m3 | F24: =INDEX('For Bill Impact(HideBeforeFile)'!$D$6:$O$15,MATCH(C10,'For Bill Impact(HideBeforeFile)'!$C$62:$C$71,0),MATCH($O24,'For Bill Impact(HideBeforeFile)'!$D$61:$O$61,0)) -> 0.128 | H24: =INDEX('For Bill Impact(HideBeforeFile)'!$D$20:$O$29,MATCH(C10,'For Bill Impact(HideBeforeFile)'!$C$62:$C$71,0),MATCH($O24,'For Bill Impact(HideBeforeFile)'!$D$61:$O$61,0)) -> 0.3066442063 | J24: =INDEX('For Bill Impact(HideBeforeFile)'!$D$34:$O$43,MATCH(C10,'For Bill Impact(HideBeforeFile)'!$C$62:$C$71,0),MATCH($O24,'For Bill Impact(HideBeforeFile)'!$D$61:$O$61,0)) -> 15791.5898 | O24: ='For Bill Impact(HideBeforeFile)'!$G$5 -> PGTVA
C25: =INDEX('For Bill Impact(HideBeforeFile)'!$D$48:$O$57,MATCH(C10,'For Bill Impact(HideBeforeFile)'!$C$62:$C$71,0),MATCH($O25,'For Bill Impact(HideBeforeFile)'!$D$61:$O$61,0)) -> ADVADA | D25: =INDEX('For Bill Impact(HideBeforeFile)'!$D$62:$O$71,MATCH(C10,'For Bill Impact(HideBeforeFile)'!$C$62:$C$71,0),MATCH($O25,'For Bill Impact(HideBeforeFile)'!$D$61:$O$61,0)) -> cents / m3 | F25: =INDEX('For Bill Impact(HideBeforeFile)'!$D$6:$O$15,MATCH(C10,'For Bill Impact(HideBeforeFile)'!$C$62:$C$71,0),MATCH($O25,'For Bill Impact(HideBeforeFile)'!$D$61:$O$61,0)) ->  | H25: =INDEX('For Bill Impact(HideBeforeFile)'!$D$20:$O$29,MATCH(C10,'For Bill Impact(HideBeforeFile)'!$C$62:$C$71,0),MATCH($O25,'For Bill Impact(HideBeforeFile)'!$D$61:$O$61,0)) -> 0.1484182125 | J25: =INDEX('For Bill Impact(HideBeforeFile)'!$D$34:$O$43,MATCH(C10,'For Bill Impact(HideBeforeFile)'!$C$62:$C$71,0),MATCH($O25,'For Bill Impact(HideBeforeFile)'!$D$61:$O$61,0)) -> 15791.5898 | O25: ='For Bill Impact(HideBeforeFile)'!$H$5 -> ADVADA
C27: =INDEX('For Bill Impact(HideBeforeFile)'!$D$48:$O$57,MATCH(C10,'For Bill Impact(HideBeforeFile)'!$C$62:$C$71,0),MATCH($O27,'For Bill Impact(HideBeforeFile)'!$D$61:$O$61,0)) -> Federal Carbon | D27: =INDEX('For Bill Impact(HideBeforeFile)'!$D$62:$O$71,MATCH(C10,'For Bill Impact(HideBeforeFile)'!$C$62:$C$71,0),MATCH($O27,'For Bill Impact(HideBeforeFile)'!$D$61:$O$61,0)) -> cents / m3 | F27: =INDEX('For Bill Impact(HideBeforeFile)'!$D$6:$O$15,MATCH(C10,'For Bill Impact(HideBeforeFile)'!$C$62:$C$71,0),MATCH($O27,'For Bill Impact(HideBeforeFile)'!$D$61:$O$61,0)) -> 5.87 | H27: =INDEX('For Bill Impact(HideBeforeFile)'!$D$20:$O$29,MATCH(C10,'For Bill Impact(HideBeforeFile)'!$C$62:$C$71,0),MATCH($O27,'For Bill Impact(HideBeforeFile)'!$D$61:$O$61,0)) -> 5.87 | J27: =INDEX('For Bill Impact(HideBeforeFile)'!$D$34:$O$43,MATCH(C10,'For Bill Impact(HideBeforeFile)'!$C$62:$C$71,0),MATCH($O27,'For Bill Impact(HideBeforeFile)'!$D$61:$O$61,0)) -> 15791.5898 | O27: ='For Bill Impact(HideBeforeFile)'!$I$5 -> Federal Carbon
C28: =INDEX('For Bill Impact(HideBeforeFile)'!$D$48:$O$57,MATCH(C10,'For Bill Impact(HideBeforeFile)'!$C$62:$C$71,0),MATCH($O28,'For Bill Impact(HideBeforeFile)'!$D$61:$O$61,0)) -> Facility Carbon | D28: =INDEX('For Bill Impact(HideBeforeFile)'!$D$62:$O$71,MATCH(C10,'For Bill Impact(HideBeforeFile)'!$C$62:$C$71,0),MATCH($O28,'For Bill Impact(HideBeforeFile)'!$D$61:$O$61,0)) -> cents / m3 | F28: =INDEX('For Bill Impact(HideBeforeFile)'!$D$6:$O$15,MATCH(C10,'For Bill Impact(HideBeforeFile)'!$C$62:$C$71,0),MATCH($O28,'For Bill Impact(HideBeforeFile)'!$D$61:$O$61,0)) -> 0.0027 | H28: =INDEX('For Bill Impact(HideBeforeFile)'!$D$20:$O$29,MATCH(C10,'For Bill Impact(HideBeforeFile)'!$C$62:$C$71,0),MATCH($O28,'For Bill Impact(HideBeforeFile)'!$D$61:$O$61,0)) -> 0.0027 | J28: =INDEX('For Bill Impact(HideBeforeFile)'!$D$34:$O$43,MATCH(C10,'For Bill Impact(HideBeforeFile)'!$C$62:$C$71,0),MATCH($O28,'For Bill Impact(HideBeforeFile)'!$D$61:$O$61,0)) -> 15791.5898 | O28: ='For Bill Impact(HideBeforeFile)'!$J$5 -> Facility Carbon
C31: Commodity | F31: Current | H31: Proposed | J31: Change $ | L31: Change %
F32: =F14*$J14/100 -> 2094.628054 | H32: =H14*$J14/100 -> 2094.628054 | J32: =H32-F32 -> 0 | L32: =IFERROR(J32/F32,"") -> 0 | O32: ='For Bill Impact(HideBeforeFile)'!$D$5 -> Commodity
C34: Delivery | F34: Current Rate | H34: Proposed Rate | J34: Change $ | L34: Change %
C35: =IF(C16<>"",C16,"") -> Customer (excl. Bill 32) | F35: =F16*$J16 -> 140 | H35: =H16*$J16 -> 140 | J35: =IFERROR(H35-F35,"") -> 0 | L35: =IFERROR(J35/F35,"") -> 0 | O35: ='For Bill Impact(HideBeforeFile)'!$K$5 -> Dist. Customer Rate
C36: Bill 32 | F36: =J16 -> 7 | H36: =J16 -> 7 | J36: =IFERROR(H36-F36,"") -> 0 | L36: =IFERROR(J36/F36,"") -> 0
C37: =IF(C17<>"",C17,"") -> Block 1 (First 1,000 m3 per month) | F37: =IFERROR(F17*$J17/100,"") -> 279.4443583 | H37: =IFERROR(H17*$J17/100,"") -> 287.8469272 | J37: =IFERROR(H37-F37,"") -> 8.402568855 | L37: =IFERROR(J37/F37,"") -> 0.03006884414 | O37: ='For Bill Impact(HideBeforeFile)'!$L$5 -> Dist. Vol. Rate Tier 1
C38: =IF(C18<>"",C18,"") -> Block 2 (Next 24,000 m3 per month) | F38: =IFERROR(F18*$J18/100,"") -> 1039.280675 | H38: =IFERROR(H18*$J18/100,"") -> 1074.776108 | J38: 35.49543355 | L38: 0.03415384738 | O38: ='For Bill Impact(HideBeforeFile)'!$M$5 -> Dist. Vol. Rate Tier 2
C39: =IF(C19<>"",C19,"") -> Block 3 (Over 25,000 m3 per month) | F39: =IFERROR(F19*$J19/100,"") -> 135.4930603 | H39: =IFERROR(H19*$J19/100,"") -> 138.1280511 | J39: 2.634990884 | L39: 0.01944742321 | O39: ='For Bill Impact(HideBeforeFile)'!$N$5 -> Dist. Vol. Rate Tier 3
C40: =IF(C20<>"",C20,"") ->  | F40: =IFERROR(F20*$J20/100,"") ->  | H40: =IFERROR(H20*$J20/100,"") ->  | O40: ='For Bill Impact(HideBeforeFile)'!$O$5 -> Dist. Capacity Rate
C41: =IF(C21<>"",C21,"") -> System Gas Charge | F41: =IFERROR(F21*$J21/100,"") -> 6.869341561 | H41: =IFERROR(H21*$J21/100,"") -> 6.869341561 | J41: 0 | L41: 0 | O41: ='For Bill Impact(HideBeforeFile)'!$E$5 -> System Gas
C42: Total Delivery | F42: =SUM(F35:F41) -> 1608.087435 | H42: =SUM(H35:H41) -> 1654.620428 | J42: =H42-F42 -> 46.53299329 | L42: =IF(ISERROR(J42/F42),0,J42/F42) -> 0.02893685522
C44: Rate Riders
C46: Rate Riders | F46: Current Rate | H46: Proposed Rate | J46: Change $ | L46: Change %
C47: REDA | F47: =F23*$J23 -> 4.13 | H47: =H23*$J23 -> 5.387989683 | J47: =IFERROR(H47-F47,"") -> 1.257989683 | L47: =IFERROR(J47/F47,"") -> 0.3045979862 | O47: ='For Bill Impact(HideBeforeFile)'!$F$5 -> REDA
C48: PGTVA | F48: =IFERROR(F24*$J24/100,"") -> 20.21323494 | H48: =IFERROR(H24*$J24/100,"") -> 48.42399519 | J48: =IFERROR(H48-F48,"") -> 28.21076025 | L48: 1.395657861 | O48: ='For Bill Impact(HideBeforeFile)'!$G$5 -> PGTVA
C49: ADVADA | F49: =IFERROR(F25*$J25/100,"") ->  | H49: =IFERROR(H25*$J25/100,"") -> 23.43759529 | J49: =H49 -> 23.43759529 | L49: =J49/H49 -> 1 | O49: ='For Bill Impact(HideBeforeFile)'!$H$5 -> ADVADA
C50: Total Rate Riders | F50: =SUM(F47:F49) -> 24.34323494 | H50: =SUM(H47:H49) -> 77.24958016 | J50: =SUM(J47:J49) -> 52.90634522 | L50: =IF(ISERROR(J50/F50),0,J50/F50) -> 2.173348996
C52: Carbon Tax
C53: Federal Carbon | F53: =F27*$J27/100 -> 926.966321 | H53: =H27*$J27/100 -> 926.966321 | J53: =IFERROR(H53-F53,"") -> 0 | L53: =IFERROR(J53/F53,"") -> 0
C54: Facility Carbon | F54: =F28*$J28/100 -> 0.4263729245 | H54: =H28*$J28/100 -> 0.4263729245 | J54: =IFERROR(H54-F54,"") -> 0 | L54: 0
C55: Total Carbon Tax | F55: =SUM(F53:F54) -> 927.3926939 | H55: =SUM(H53:H54) -> 927.3926939 | J55: =SUM(J53:J54) -> 0 | L55: =IF(ISERROR(J55/F55),0,J55/F55) -> 0
C57: Total Bill Impact | F57: =SUM(F32,F42,F50,F55) -> 4654.451417 | H57: =SUM(H32,H42,H50,H55) -> 4753.890756 | J57: =SUM(J32,J42,J50,J55) -> 99.43933851 | L57: =IFERROR(J57/F57,"") -> 0.02136435201
C60: =MID(CELL("filename",A1),FIND("]",CELL("filename",A1))+1,255) -> G1.2 Rate 2 Bill Impact
C62: ='For Bill Impact(HideBeforeFile)'!C10 -> RATE 2 - Seasonal Service - Nov to Mar | F62: Current | H62: Proposed | J62: Bill Determinant | O62: Look-up
C66: =INDEX('For Bill Impact(HideBeforeFile)'!$D$48:$O$57,MATCH(C62,'For Bill Impact(HideBeforeFile)'!$C$62:$C$71,0),MATCH($O66,'For Bill Impact(HideBeforeFile)'!$D$61:$O$61,0)) -> Commodity | D66: =INDEX('For Bill Impact(HideBeforeFile)'!$D$62:$O$71,MATCH(C62,'For Bill Impact(HideBeforeFile)'!$C$62:$C$71,0),MATCH($O66,'For Bill Impact(HideBeforeFile)'!$D$61:$O$61,0)) -> cents / m3 | F66: =INDEX('For Bill Impact(HideBeforeFile)'!$D$6:$O$15,MATCH(C62,'For Bill Impact(HideBeforeFile)'!$C$62:$C$71,0),MATCH($O66,'For Bill Impact(HideBeforeFile)'!$D$61:$O$61,0)) -> 13.2642 | H66: =INDEX('For Bill Impact(HideBeforeFile)'!$D$20:$O$29,MATCH(C62,'For Bill Impact(HideBeforeFile)'!$C$62:$C$71,0),MATCH($O66,'For Bill Impact(HideBeforeFile)'!$D$61:$O$61,0)) -> 13.2642 | J66: =INDEX('For Bill Impact(HideBeforeFile)'!$D$34:$O$43,MATCH(C62,'For Bill Impact(HideBeforeFile)'!$C$62:$C$71,0),MATCH($O66,'For Bill Impact(HideBeforeFile)'!$D$61:$O$61,0)) -> 9736.75102 | O66: ='For Bill Impact(HideBeforeFile)'!$D$5 -> Commodity
C68: =INDEX('For Bill Impact(HideBeforeFile)'!$D$48:$O$57,MATCH(C62,'For Bill Impact(HideBeforeFile)'!$C$62:$C$71,0),MATCH($O68,'For Bill Impact(HideBeforeFile)'!$D$61:$O$61,0)) -> Customer (excl. Bill 32) | D68: =INDEX('For Bill Impact(HideBeforeFile)'!$D$62:$O$71,MATCH(C62,'For Bill Impact(HideBeforeFile)'!$C$62:$C$71,0),MATCH($O68,'For Bill Impact(HideBeforeFile)'!$D$61:$O$61,0)) -> $ / month | F68: =INDEX('For Bill Impact(HideBeforeFile)'!$D$6:$O$15,MATCH(C62,'For Bill Impact(HideBeforeFile)'!$C$62:$C$71,0),MATCH($O68,'For Bill Impact(HideBeforeFile)'!$D$61:$O$61,0)) -> 20 | H68: =INDEX('For Bill Impact(HideBeforeFile)'!$D$20:$O$29,MATCH(C62,'For Bill Impact(HideBeforeFile)'!$C$62:$C$71,0),MATCH($O68,'For Bill Impact(HideBeforeFile)'!$D$61:$O$61,0)) -> 20 | J68: =INDEX('For Bill Impact(HideBeforeFile)'!$D$34:$O$43,MATCH(C62,'For Bill Impact(HideBeforeFile)'!$C$62:$C$71,0),MATCH($O68,'For Bill Impact(HideBeforeFile)'!$D$61:$O$61,0)) -> 5 | O68: ='For Bill Impact(HideBeforeFile)'!$K$5 -> Dist. Customer Rate
C69: =INDEX('For Bill Impact(HideBeforeFile)'!$D$48:$O$57,MATCH(C62,'For Bill Impact(HideBeforeFile)'!$C$62:$C$71,0),MATCH($O69,'For Bill Impact(HideBeforeFile)'!$D$61:$O$61,0)) -> Block 1 (First 1,000 m3 per month) | D69: =INDEX('For Bill Impact(HideBeforeFile)'!$D$62:$O$71,MATCH(C62,'For Bill Impact(HideBeforeFile)'!$C$62:$C$71,0),MATCH($O69,'For Bill Impact(HideBeforeFile)'!$D$61:$O$61,0)) -> cents / m3 | F69: =INDEX('For Bill Impact(HideBeforeFile)'!$D$6:$O$15,MATCH(C62,'For Bill Impact(HideBeforeFile)'!$C$62:$C$71,0),MATCH($O69,'For Bill Impact(HideBeforeFile)'!$D$61:$O$61,0)) -> 20.9056 | H69: =INDEX('For Bill Impact(HideBeforeFile)'!$D$20:$O$29,MATCH(C62,'For Bill Impact(HideBeforeFile)'!$C$62:$C$71,0),MATCH($O69,'For Bill Impact(HideBeforeFile)'!$D$61:$O$61,0)) -> 21.5341957 | J69: =INDEX('For Bill Impact(HideBeforeFile)'!$D$34:$O$43,MATCH(C62,'For Bill Impact(HideBeforeFile)'!$C$62:$C$71,0),MATCH($O69,'For Bill Impact(HideBeforeFile)'!$D$61:$O$61,0)) -> 1574.546939 | O69: ='For Bill Impact(HideBeforeFile)'!$L$5 -> Dist. Vol. Rate Tier 1
C70: =INDEX('For Bill Impact(HideBeforeFile)'!$D$48:$O$57,MATCH(C62,'For Bill Impact(HideBeforeFile)'!$C$62:$C$71,0),MATCH($O70,'For Bill Impact(HideBeforeFile)'!$D$61:$O$61,0)) -> Block 2 (Next 24,000 m3 per month) | D70: =INDEX('For Bill Impact(HideBeforeFile)'!$D$62:$O$71,MATCH(C62,'For Bill Impact(HideBeforeFile)'!$C$62:$C$71,0),MATCH($O70,'For Bill Impact(HideBeforeFile)'!$D$61:$O$61,0)) -> cents / m3 | F70: =INDEX('For Bill Impact(HideBeforeFile)'!$D$6:$O$15,MATCH(C62,'For Bill Impact(HideBeforeFile)'!$C$62:$C$71,0),MATCH($O70,'For Bill Impact(HideBeforeFile)'!$D$61:$O$61,0)) -> 14.2049 | H70: =INDEX('For Bill Impact(HideBeforeFile)'!$D$20:$O$29,MATCH(C62,'For Bill Impact(HideBeforeFile)'!$C$62:$C$71,0),MATCH($O70,'For Bill Impact(HideBeforeFile)'!$D$61:$O$61,0)) -> 14.69013542 | J70: =INDEX('For Bill Impact(HideBeforeFile)'!$D$34:$O$43,MATCH(C62,'For Bill Impact(HideBeforeFile)'!$C$62:$C$71,0),MATCH($O70,'For Bill Impact(HideBeforeFile)'!$D$61:$O$61,0)) -> 7738.465306 | O70: ='For Bill Impact(HideBeforeFile)'!$M$5 -> Dist. Vol. Rate Tier 2
C71: =INDEX('For Bill Impact(HideBeforeFile)'!$D$48:$O$57,MATCH(C62,'For Bill Impact(HideBeforeFile)'!$C$62:$C$71,0),MATCH($O71,'For Bill Impact(HideBeforeFile)'!$D$61:$O$61,0)) -> Block 3 (Over 25,000 m3 per month) | D71: =INDEX('For Bill Impact(HideBeforeFile)'!$D$62:$O$71,MATCH(C62,'For Bill Impact(HideBeforeFile)'!$C$62:$C$71,0),MATCH($O71,'For Bill Impact(HideBeforeFile)'!$D$61:$O$61,0)) -> cents / m3 | F71: =INDEX('For Bill Impact(HideBeforeFile)'!$D$6:$O$15,MATCH(C62,'For Bill Impact(HideBeforeFile)'!$C$62:$C$71,0),MATCH($O71,'For Bill Impact(HideBeforeFile)'!$D$61:$O$61,0)) -> 15.2899 | H71: =INDEX('For Bill Impact(HideBeforeFile)'!$D$20:$O$29,MATCH(C62,'For Bill Impact(HideBeforeFile)'!$C$62:$C$71,0),MATCH($O71,'For Bill Impact(HideBeforeFile)'!$D$61:$O$61,0)) -> 15.58724916 | J71: =INDEX('For Bill Impact(HideBeforeFile)'!$D$34:$O$43,MATCH(C62,'For Bill Impact(HideBeforeFile)'!$C$62:$C$71,0),MATCH($O71,'For Bill Impact(HideBeforeFile)'!$D$61:$O$61,0)) -> 423.7387755 | O71: ='For Bill Impact(HideBeforeFile)'!$N$5 -> Dist. Vol. Rate Tier 3
C72: =INDEX('For Bill Impact(HideBeforeFile)'!$D$48:$O$57,MATCH(C62,'For Bill Impact(HideBeforeFile)'!$C$62:$C$71,0),MATCH($O72,'For Bill Impact(HideBeforeFile)'!$D$61:$O$61,0)) ->  | D72: =INDEX('For Bill Impact(HideBeforeFile)'!$D$62:$O$71,MATCH(C62,'For Bill Impact(HideBeforeFile)'!$C$62:$C$71,0),MATCH($O72,'For Bill Impact(HideBeforeFile)'!$D$61:$O$61,0)) ->  | F72: =INDEX('For Bill Impact(HideBeforeFile)'!$D$6:$O$15,MATCH(C62,'For Bill Impact(HideBeforeFile)'!$C$62:$C$71,0),MATCH($O72,'For Bill Impact(HideBeforeFile)'!$D$61:$O$61,0)) ->  | H72: =INDEX('For Bill Impact(HideBeforeFile)'!$D$20:$O$29,MATCH(C62,'For Bill Impact(HideBeforeFile)'!$C$62:$C$71,0),MATCH($O72,'For Bill Impact(HideBeforeFile)'!$D$61:$O$61,0)) ->  | J72: =INDEX('For Bill Impact(HideBeforeFile)'!$D$34:$O$43,MATCH(C62,'For Bill Impact(HideBeforeFile)'!$C$62:$C$71,0),MATCH($O72,'For Bill Impact(HideBeforeFile)'!$D$61:$O$61,0)) ->  | O72: ='For Bill Impact(HideBeforeFile)'!$O$5 -> Dist. Capacity Rate
C73: =INDEX('For Bill Impact(HideBeforeFile)'!$D$48:$O$57,MATCH(C62,'For Bill Impact(HideBeforeFile)'!$C$62:$C$71,0),MATCH($O73,'For Bill Impact(HideBeforeFile)'!$D$61:$O$61,0)) -> System Gas Charge | D73: =INDEX('For Bill Impact(HideBeforeFile)'!$D$62:$O$71,MATCH(C62,'For Bill Impact(HideBeforeFile)'!$C$62:$C$71,0),MATCH($O73,'For Bill Impact(HideBeforeFile)'!$D$61:$O$61,0)) -> cents / m3 | F73: =INDEX('For Bill Impact(HideBeforeFile)'!$D$6:$O$15,MATCH(C62,'For Bill Impact(HideBeforeFile)'!$C$62:$C$71,0),MATCH($O73,'For Bill Impact(HideBeforeFile)'!$D$61:$O$61,0)) -> 0.0435 | H73: =INDEX('For Bill Impact(HideBeforeFile)'!$D$20:$O$29,MATCH(C62,'For Bill Impact(HideBeforeFile)'!$C$62:$C$71,0),MATCH($O73,'For Bill Impact(HideBeforeFile)'!$D$61:$O$61,0)) -> 0.0435 | J73: =INDEX('For Bill Impact(HideBeforeFile)'!$D$34:$O$43,MATCH(C62,'For Bill Impact(HideBeforeFile)'!$C$62:$C$71,0),MATCH($O73,'For Bill Impact(HideBeforeFile)'!$D$61:$O$61,0)) -> 9736.75102 | O73: ='For Bill Impact(HideBeforeFile)'!$E$5 -> System Gas
C75: =INDEX('For Bill Impact(HideBeforeFile)'!$D$48:$O$57,MATCH(C62,'For Bill Impact(HideBeforeFile)'!$C$62:$C$71,0),MATCH($O75,'For Bill Impact(HideBeforeFile)'!$D$61:$O$61,0)) -> REDA | D75: =INDEX('For Bill Impact(HideBeforeFile)'!$D$62:$O$71,MATCH(C62,'For Bill Impact(HideBeforeFile)'!$C$62:$C$71,0),MATCH($O75,'For Bill Impact(HideBeforeFile)'!$D$61:$O$61,0)) -> $ / month | F75: =INDEX('For Bill Impact(HideBeforeFile)'!$D$6:$O$15,MATCH(C62,'For Bill Impact(HideBeforeFile)'!$C$62:$C$71,0),MATCH($O75,'For Bill Impact(HideBeforeFile)'!$D$61:$O$61,0)) -> 0.59 | H75: =INDEX('For Bill Impact(HideBeforeFile)'!$D$20:$O$29,MATCH(C62,'For Bill Impact(HideBeforeFile)'!$C$62:$C$71,0),MATCH($O75,'For Bill Impact(HideBeforeFile)'!$D$61:$O$61,0)) -> 0.7697128118 | J75: =INDEX('For Bill Impact(HideBeforeFile)'!$D$34:$O$43,MATCH(C62,'For Bill Impact(HideBeforeFile)'!$C$62:$C$71,0),MATCH($O75,'For Bill Impact(HideBeforeFile)'!$D$61:$O$61,0)) -> 5 | O75: ='For Bill Impact(HideBeforeFile)'!$F$5 -> REDA
C76: =INDEX('For Bill Impact(HideBeforeFile)'!$D$48:$O$57,MATCH(C62,'For Bill Impact(HideBeforeFile)'!$C$62:$C$71,0),MATCH($O76,'For Bill Impact(HideBeforeFile)'!$D$61:$O$61,0)) -> PGTVA | D76: =INDEX('For Bill Impact(HideBeforeFile)'!$D$62:$O$71,MATCH(C62,'For Bill Impact(HideBeforeFile)'!$C$62:$C$71,0),MATCH($O76,'For Bill Impact(HideBeforeFile)'!$D$61:$O$61,0)) -> cents / m3 | F76: =INDEX('For Bill Impact(HideBeforeFile)'!$D$6:$O$15,MATCH(C62,'For Bill Impact(HideBeforeFile)'!$C$62:$C$71,0),MATCH($O76,'For Bill Impact(HideBeforeFile)'!$D$61:$O$61,0)) -> 0.128 | H76: =INDEX('For Bill Impact(HideBeforeFile)'!$D$20:$O$29,MATCH(C62,'For Bill Impact(HideBeforeFile)'!$C$62:$C$71,0),MATCH($O76,'For Bill Impact(HideBeforeFile)'!$D$61:$O$61,0)) -> 0.3066442063 | J76: =INDEX('For Bill Impact(HideBeforeFile)'!$D$34:$O$43,MATCH(C62,'For Bill Impact(HideBeforeFile)'!$C$62:$C$71,0),MATCH($O76,'For Bill Impact(HideBeforeFile)'!$D$61:$O$61,0)) -> 9736.75102 | O76: ='For Bill Impact(HideBeforeFile)'!$G$5 -> PGTVA
C77: =INDEX('For Bill Impact(HideBeforeFile)'!$D$48:$O$57,MATCH(C62,'For Bill Impact(HideBeforeFile)'!$C$62:$C$71,0),MATCH($O77,'For Bill Impact(HideBeforeFile)'!$D$61:$O$61,0)) -> ADVADA | D77: =INDEX('For Bill Impact(HideBeforeFile)'!$D$62:$O$71,MATCH(C62,'For Bill Impact(HideBeforeFile)'!$C$62:$C$71,0),MATCH($O77,'For Bill Impact(HideBeforeFile)'!$D$61:$O$61,0)) -> cents / m3 | F77: =INDEX('For Bill Impact(HideBeforeFile)'!$D$6:$O$15,MATCH(C62,'For Bill Impact(HideBeforeFile)'!$C$62:$C$71,0),MATCH($O77,'For Bill Impact(HideBeforeFile)'!$D$61:$O$61,0)) ->  | H77: =INDEX('For Bill Impact(HideBeforeFile)'!$D$20:$O$29,MATCH(C62,'For Bill Impact(HideBeforeFile)'!$C$62:$C$71,0),MATCH($O77,'For Bill Impact(HideBeforeFile)'!$D$61:$O$61,0)) -> 0.1484182125 | J77: =INDEX('For Bill Impact(HideBeforeFile)'!$D$34:$O$43,MATCH(C62,'For Bill Impact(HideBeforeFile)'!$C$62:$C$71,0),MATCH($O77,'For Bill Impact(HideBeforeFile)'!$D$61:$O$61,0)) -> 9736.75102 | O77: ='For Bill Impact(HideBeforeFile)'!$H$5 -> ADVADA
C79: =INDEX('For Bill Impact(HideBeforeFile)'!$D$48:$O$57,MATCH(C62,'For Bill Impact(HideBeforeFile)'!$C$62:$C$71,0),MATCH($O79,'For Bill Impact(HideBeforeFile)'!$D$61:$O$61,0)) -> Federal Carbon | D79: =INDEX('For Bill Impact(HideBeforeFile)'!$D$62:$O$71,MATCH(C62,'For Bill Impact(HideBeforeFile)'!$C$62:$C$71,0),MATCH($O79,'For Bill Impact(HideBeforeFile)'!$D$61:$O$61,0)) -> cents / m3 | F79: =INDEX('For Bill Impact(HideBeforeFile)'!$D$6:$O$15,MATCH(C62,'For Bill Impact(HideBeforeFile)'!$C$62:$C$71,0),MATCH($O79,'For Bill Impact(HideBeforeFile)'!$D$61:$O$61,0)) -> 5.87 | H79: =INDEX('For Bill Impact(HideBeforeFile)'!$D$20:$O$29,MATCH(C62,'For Bill Impact(HideBeforeFile)'!$C$62:$C$71,0),MATCH($O79,'For Bill Impact(HideBeforeFile)'!$D$61:$O$61,0)) -> 5.87 | J79: =INDEX('For Bill Impact(HideBeforeFile)'!$D$34:$O$43,MATCH(C62,'For Bill Impact(HideBeforeFile)'!$C$62:$C$71,0),MATCH($O79,'For Bill Impact(HideBeforeFile)'!$D$61:$O$61,0)) -> 9736.75102 | O79: ='For Bill Impact(HideBeforeFile)'!$I$5 -> Federal Carbon
C80: =INDEX('For Bill Impact(HideBeforeFile)'!$D$48:$O$57,MATCH(C62,'For Bill Impact(HideBeforeFile)'!$C$62:$C$71,0),MATCH($O80,'For Bill Impact(HideBeforeFile)'!$D$61:$O$61,0)) -> Facility Carbon | D80: =INDEX('For Bill Impact(HideBeforeFile)'!$D$62:$O$71,MATCH(C62,'For Bill Impact(HideBeforeFile)'!$C$62:$C$71,0),MATCH($O80,'For Bill Impact(HideBeforeFile)'!$D$61:$O$61,0)) -> cents / m3 | F80: =INDEX('For Bill Impact(HideBeforeFile)'!$D$6:$O$15,MATCH(C62,'For Bill Impact(HideBeforeFile)'!$C$62:$C$71,0),MATCH($O80,'For Bill Impact(HideBeforeFile)'!$D$61:$O$61,0)) -> 0.0027 | H80: =INDEX('For Bill Impact(HideBeforeFile)'!$D$20:$O$29,MATCH(C62,'For Bill Impact(HideBeforeFile)'!$C$62:$C$71,0),MATCH($O80,'For Bill Impact(HideBeforeFile)'!$D$61:$O$61,0)) -> 0.0027 | J80: =INDEX('For Bill Impact(HideBeforeFile)'!$D$34:$O$43,MATCH(C62,'For Bill Impact(HideBeforeFile)'!$C$62:$C$71,0),MATCH($O80,'For Bill Impact(HideBeforeFile)'!$D$61:$O$61,0)) -> 9736.75102 | O80: ='For Bill Impact(HideBeforeFile)'!$J$5 -> Facility Carbon
C83: Commodity | F83: Current | H83: Proposed | J83: Change $ | L83: Change %
F84: =F66*$J66/100 -> 1291.502129 | H84: =H66*$J66/100 -> 1291.502129 | J84: =H84-F84 -> 0 | L84: =IFERROR(J84/F84,"") -> 0
C86: Delivery | F86: Current Rate | H86: Proposed Rate | J86: Change $ | L86: Change %
C87: =IF(C68<>"",C68,"") -> Customer (excl. Bill 32) | F87: =F68*$J68 -> 100 | H87: =H68*$J68 -> 100 | J87: =IFERROR(H87-F87,"") -> 0 | L87: =IFERROR(J87/F87,"") -> 0
C88: Bill 32 | F88: =J68 -> 5 | H88: =J68 -> 5 | J88: =IFERROR(H88-F88,"") -> 0 | L88: =IFERROR(J88/F88,"") -> 0
C89: =IF(C69<>"",C69,"") -> Block 1 (First 1,000 m3 per month) | F89: =IFERROR(F69*$J69/100,"") -> 329.1684848 | H89: =IFERROR(H69*$J69/100,"") -> 339.0660192 | J89: =IFERROR(H89-F89,"") -> 9.897534342 | L89: =IFERROR(J89/F89,"") -> 0.03006829268
C90: =IF(C70<>"",C70,"") -> Block 2 (Next 24,000 m3 per month) | F90: =IFERROR(F70*$J70/100,"") -> 1099.241258 | H90: =IFERROR(H70*$J70/100,"") -> 1136.791033 | J90: 37.54977491 | L90: 0.0341597212
C91: =IF(C71<>"",C71,"") -> Block 3 (Over 25,000 m3 per month) | F91: =IFERROR(F71*$J71/100,"") -> 64.78923504 | H91: =IFERROR(H71*$J71/100,"") -> 66.04921871 | J91: 1.259983673 | L91: 0.01944742321
C92: =IF(C72<>"",C72,"") ->  | F92: =IFERROR(F72*$J72/100,"") ->  | H92: =IFERROR(H72*$J72/100,"") -> 
C93: =IF(C73<>"",C73,"") -> System Gas Charge | F93: =IFERROR(F73*$J73/100,"") -> 4.235486694 | H93: =IFERROR(H73*$J73/100,"") -> 4.235486694 | J93: 0 | L93: 0
C94: Total Delivery | F94: =SUM(F87:F93) -> 1602.434465 | H94: =SUM(H87:H93) -> 1651.141758 | J94: =H94-F94 -> 48.70729293 | L94: =IF(ISERROR(J94/F94),0,J94/F94) -> 0.03039580962
C96: Rate Riders
C98: Rate Riders | F98: Current Rate | H98: Proposed Rate | J98: Change $ | L98: Change %
C99: REDA | F99: =F75*$J75 -> 2.95 | H99: =H75*$J75 -> 3.848564059 | J99: =IFERROR(H99-F99,"") -> 0.8985640592 | L99: =IFERROR(J99/F99,"") -> 0.3045979862
C100: PGTVA | F100: =IFERROR(F76*$J76/100,"") -> 12.46304131 | H100: =IFERROR(H76*$J76/100,"") -> 29.85718288 | J100: =IFERROR(H100-F100,"") -> 17.39414158 | L100: 1.395657861
C101: ADVADA | F101: =IFERROR(F77*$J77/100,"") ->  | H101: =IFERROR(H77*$J77/100,"") -> 14.45111182 | J101: =H101 -> 14.45111182 | L101: =J101/H101 -> 1
C102: Total Rate Riders | F102: =SUM(F99:F101) -> 15.41304131 | H102: =SUM(H99:H101) -> 48.15685876 | J102: =SUM(J99:J101) -> 32.74381745 | L102: =IF(ISERROR(J102/F102),0,J102/F102) -> 2.12442287
C104: Carbon Tax
C105: Federal Carbon | F105: =F79*$J79/100 -> 571.5472849 | H105: =H79*$J79/100 -> 571.5472849 | J105: =IFERROR(H105-F105,"") -> 0 | L105: =IFERROR(J105/F105,"") -> 0
C106: Facility Carbon | F106: =F80*$J80/100 -> 0.2628922776 | H106: =H80*$J80/100 -> 0.2628922776 | J106: =IFERROR(H106-F106,"") -> 0 | L106: 0
C107: Total Carbon Tax | F107: =SUM(F105:F106) -> 571.8101772 | H107: =SUM(H105:H106) -> 571.8101772 | J107: =SUM(J105:J106) -> 0 | L107: =IF(ISERROR(J107/F107),0,J107/F107) -> 0
C109: Total Bill Impact | F109: =SUM(F84,F94,F102,F107) -> 3481.159812 | H109: =SUM(H84,H94,H102,H107) -> 3562.610923 | J109: =SUM(J84,J94,J102,J107) -> 81.45111038 | L109: =IFERROR(J109/F109,"") -> 0.02339769352
C112: =MID(CELL("filename",A53),FIND("]",CELL("filename",A53))+1,255) -> G1.2 Rate 2 Bill Impact
C114: RATE 2 - Seasonal Service - Annual
C116: Commodity | F116: Current | H116: Proposed | J116: Change $ | L116: Change %
F117: =F32+F84 -> 3386.130183 | H117: =H32+H84 -> 3386.130183 | J117: =H117-F117 -> 0 | L117: =IFERROR(J117/F117,"") -> 0
C119: Delivery | F119: Current Rate | H119: Proposed Rate | J119: Change $ | L119: Change %
C120: =C35 -> Customer (excl. Bill 32) | F120: =IFERROR(F35+F87,"") -> 240 | H120: =IFERROR(H35+H87,"") -> 240 | J120: =IFERROR(H120-F120,"") -> 0 | L120: =IFERROR(J120/F120,"") -> 0
C121: Bill 32 | F121: 12 | H121: 12 | J121: =IFERROR(H121-F121,"") -> 0 | L121: =IFERROR(J121/F121,"") -> 0
C122: =C37 -> Block 1 (First 1,000 m3 per month) | F122: 608.6128431 | H122: 626.9129463 | J122: =IFERROR(H122-F122,"") -> 18.3001032 | L122: =IFERROR(J122/F122,"") -> 0.03006854588
C123: =C38 -> Block 2 (Next 24,000 m3 per month) | F123: 2138.521933 | H123: 2211.567141 | J123: 73.04520846 | L123: 0.03415686664
C124: =C39 -> Block 3 (Over 25,000 m3 per month) | F124: 200.2822953 | H124: 204.1772699 | J124: 3.894974557 | L124: 0.01944742321
C125: =C40 -> 
C126: =C41 -> System Gas Charge | F126: 11.10482826 | H126: 11.10482826 | J126: 0 | L126: 0
C127: Total Delivery | F127: =SUM(F120:F126) -> 3210.5219 | H127: =SUM(H120:H126) -> 3305.762186 | J127: =H127-F127 -> 95.24028621 | L127: =IF(ISERROR(J127/F127),0,J127/F127) -> 0.02966504799
C129: Rate Riders
C131: Rate Riders | F131: Current Rate | H131: Proposed Rate | J131: Change $ | L131: Change %
C132: REDA | F132: =IFERROR(F47+F99,"") -> 7.08 | H132: =IFERROR(H47+H99,"") -> 9.236553742 | J132: =IFERROR(H132-F132,"") -> 2.156553742 | L132: =IFERROR(J132/F132,"") -> 0.3045979862
C133: PGTVA | F133: =IFERROR(F48+F100,"") -> 32.67627624 | H133: =IFERROR(H48+H100,"") -> 78.28117807 | J133: =IFERROR(H133-F133,"") -> 45.60490182 | L133: 1.395657861
C134: ADVADA | F134: =IFERROR(F49+F101,"") ->  | H134: =IFERROR(H49+H101,"") -> 37.88870711 | J134: =H134 -> 37.88870711 | L134: =J134/H134 -> 1
C135: Total Rate Riders | F135: =SUM(F132:F134) -> 39.75627624 | H135: =SUM(H132:H134) -> 125.4064389 | J135: =SUM(J132:J134) -> 85.65016267 | L135: =IF(ISERROR(J135/F135),0,J135/F135) -> 2.154380912
C137: Carbon Tax
C138: Federal Carbon | F138: =IFERROR(F53+F105,"") -> 1498.513606 | H138: =IFERROR(H53+H105,"") -> 1498.513606 | J138: =IFERROR(H138-F138,"") -> 0 | L138: =IFERROR(J138/F138,"") -> 0
C139: Facility Carbon | F139: =IFERROR(F54+F106,"") -> 0.689265202 | H139: =IFERROR(H54+H106,"") -> 0.689265202 | J139: =IFERROR(H139-F139,"") -> 0 | L139: 0
C140: Total Carbon Tax | F140: =SUM(F138:F139) -> 1499.202871 | H140: =SUM(H138:H139) -> 1499.202871 | J140: =SUM(J138:J139) -> 0 | L140: =IF(ISERROR(J140/F140),0,J140/F140) -> 0
C142: Total Bill Impact | F142: =SUM(F117,F127,F135,F140) -> 8135.611229 | H142: =SUM(H117,H127,H135,H140) -> 8316.501678 | J142: =SUM(J117,J127,J135,J140) -> 180.8904489 | L142: =IFERROR(J142/F142,"") -> 0.02223440179
C145: =MID(CELL("filename",A105),FIND("]",CELL("filename",A105))+1,255) -> G1.2 Rate 2 Bill Impact

Sheet G1.3 Rate 3 Bill Impact
C2: ='A1.1 Distributor Information'!C3 -> Name of LDC: EPCOR Natural Gas Limited Partnership
C3: ='A1.1 Distributor Information'!C4 -> OEB Application Number: EB-2020-0234 Exhibit A - 2021 IRM Application
C7: Rate 3 Delivery Bill Impact
C10: ='For Bill Impact(HideBeforeFile)'!C11 -> RATE 3 - Special Large Volume Contract Rate | F10: Current | H10: Proposed | J10: Bill Determinant | O10: Look-up
C14: =INDEX('For Bill Impact(HideBeforeFile)'!$D$48:$O$57,MATCH(C10,'For Bill Impact(HideBeforeFile)'!$C$62:$C$71,0),MATCH($O14,'For Bill Impact(HideBeforeFile)'!$D$61:$O$61,0)) -> Commodity | D14: =INDEX('For Bill Impact(HideBeforeFile)'!$D$62:$O$71,MATCH(C10,'For Bill Impact(HideBeforeFile)'!$C$62:$C$71,0),MATCH($O14,'For Bill Impact(HideBeforeFile)'!$D$61:$O$61,0)) -> cents / m3 | F14: =INDEX('For Bill Impact(HideBeforeFile)'!$D$6:$O$15,MATCH(C10,'For Bill Impact(HideBeforeFile)'!$C$62:$C$71,0),MATCH($O14,'For Bill Impact(HideBeforeFile)'!$D$61:$O$61,0)) -> 13.2642 | H14: =INDEX('For Bill Impact(HideBeforeFile)'!$D$20:$O$29,MATCH(C10,'For Bill Impact(HideBeforeFile)'!$C$62:$C$71,0),MATCH($O14,'For Bill Impact(HideBeforeFile)'!$D$61:$O$61,0)) -> 13.2642 | J14: =INDEX('For Bill Impact(HideBeforeFile)'!$D$34:$O$43,MATCH(C10,'For Bill Impact(HideBeforeFile)'!$C$62:$C$71,0),MATCH($O14,'For Bill Impact(HideBeforeFile)'!$D$61:$O$61,0)) -> 257420.7 | O14: ='For Bill Impact(HideBeforeFile)'!$D$5 -> Commodity
C16: =INDEX('For Bill Impact(HideBeforeFile)'!$D$48:$O$57,MATCH(C10,'For Bill Impact(HideBeforeFile)'!$C$62:$C$71,0),MATCH($O16,'For Bill Impact(HideBeforeFile)'!$D$61:$O$61,0)) -> Customer (excl. Bill 32) | D16: =INDEX('For Bill Impact(HideBeforeFile)'!$D$62:$O$71,MATCH(C10,'For Bill Impact(HideBeforeFile)'!$C$62:$C$71,0),MATCH($O16,'For Bill Impact(HideBeforeFile)'!$D$61:$O$61,0)) -> $ / month | F16: =INDEX('For Bill Impact(HideBeforeFile)'!$D$6:$O$15,MATCH(C10,'For Bill Impact(HideBeforeFile)'!$C$62:$C$71,0),MATCH($O16,'For Bill Impact(HideBeforeFile)'!$D$61:$O$61,0)) -> 200 | H16: =INDEX('For Bill Impact(HideBeforeFile)'!$D$20:$O$29,MATCH(C10,'For Bill Impact(HideBeforeFile)'!$C$62:$C$71,0),MATCH($O16,'For Bill Impact(HideBeforeFile)'!$D$61:$O$61,0)) -> 200 | J16: =INDEX('For Bill Impact(HideBeforeFile)'!$D$34:$O$43,MATCH(C10,'For Bill Impact(HideBeforeFile)'!$C$62:$C$71,0),MATCH($O16,'For Bill Impact(HideBeforeFile)'!$D$61:$O$61,0)) -> 12 | O16: ='For Bill Impact(HideBeforeFile)'!$K$5 -> Dist. Customer Rate
C17: =INDEX('For Bill Impact(HideBeforeFile)'!$D$48:$O$57,MATCH(C10,'For Bill Impact(HideBeforeFile)'!$C$62:$C$71,0),MATCH($O17,'For Bill Impact(HideBeforeFile)'!$D$61:$O$61,0)) -> Delivery - Firm | D17: =INDEX('For Bill Impact(HideBeforeFile)'!$D$62:$O$71,MATCH(C10,'For Bill Impact(HideBeforeFile)'!$C$62:$C$71,0),MATCH($O17,'For Bill Impact(HideBeforeFile)'!$D$61:$O$61,0)) -> cents / m3 | F17: =INDEX('For Bill Impact(HideBeforeFile)'!$D$6:$O$15,MATCH(C10,'For Bill Impact(HideBeforeFile)'!$C$62:$C$71,0),MATCH($O17,'For Bill Impact(HideBeforeFile)'!$D$61:$O$61,0)) -> 3.6011 | H17: =INDEX('For Bill Impact(HideBeforeFile)'!$D$20:$O$29,MATCH(C10,'For Bill Impact(HideBeforeFile)'!$C$62:$C$71,0),MATCH($O17,'For Bill Impact(HideBeforeFile)'!$D$61:$O$61,0)) -> 3.917266731 | J17: =INDEX('For Bill Impact(HideBeforeFile)'!$D$34:$O$43,MATCH(C10,'For Bill Impact(HideBeforeFile)'!$C$62:$C$71,0),MATCH($O17,'For Bill Impact(HideBeforeFile)'!$D$61:$O$61,0)) -> 257420.7 | O17: ='For Bill Impact(HideBeforeFile)'!$L$5 -> Dist. Vol. Rate Tier 1
C18: =INDEX('For Bill Impact(HideBeforeFile)'!$D$48:$O$57,MATCH(C10,'For Bill Impact(HideBeforeFile)'!$C$62:$C$71,0),MATCH($O18,'For Bill Impact(HideBeforeFile)'!$D$61:$O$61,0)) ->  | D18: =INDEX('For Bill Impact(HideBeforeFile)'!$D$62:$O$71,MATCH(C10,'For Bill Impact(HideBeforeFile)'!$C$62:$C$71,0),MATCH($O18,'For Bill Impact(HideBeforeFile)'!$D$61:$O$61,0)) ->  | F18: =INDEX('For Bill Impact(HideBeforeFile)'!$D$6:$O$15,MATCH(C10,'For Bill Impact(HideBeforeFile)'!$C$62:$C$71,0),MATCH($O18,'For Bill Impact(HideBeforeFile)'!$D$61:$O$61,0)) ->  | H18: =INDEX('For Bill Impact(HideBeforeFile)'!$D$20:$O$29,MATCH(C10,'For Bill Impact(HideBeforeFile)'!$C$62:$C$71,0),MATCH($O18,'For Bill Impact(HideBeforeFile)'!$D$61:$O$61,0)) ->  | J18: =INDEX('For Bill Impact(HideBeforeFile)'!$D$34:$O$43,MATCH(C10,'For Bill Impact(HideBeforeFile)'!$C$62:$C$71,0),MATCH($O18,'For Bill Impact(HideBeforeFile)'!$D$61:$O$61,0)) ->  | O18: ='For Bill Impact(HideBeforeFile)'!$M$5 -> Dist. Vol. Rate Tier 2
C19: =INDEX('For Bill Impact(HideBeforeFile)'!$D$48:$O$57,MATCH(C10,'For Bill Impact(HideBeforeFile)'!$C$62:$C$71,0),MATCH($O19,'For Bill Impact(HideBeforeFile)'!$D$61:$O$61,0)) ->  | D19: =INDEX('For Bill Impact(HideBeforeFile)'!$D$62:$O$71,MATCH(C10,'For Bill Impact(HideBeforeFile)'!$C$62:$C$71,0),MATCH($O19,'For Bill Impact(HideBeforeFile)'!$D$61:$O$61,0)) ->  | F19: =INDEX('For Bill Impact(HideBeforeFile)'!$D$6:$O$15,MATCH(C10,'For Bill Impact(HideBeforeFile)'!$C$62:$C$71,0),MATCH($O19,'For Bill Impact(HideBeforeFile)'!$D$61:$O$61,0)) ->  | H19: =INDEX('For Bill Impact(HideBeforeFile)'!$D$20:$O$29,MATCH(C10,'For Bill Impact(HideBeforeFile)'!$C$62:$C$71,0),MATCH($O19,'For Bill Impact(HideBeforeFile)'!$D$61:$O$61,0)) ->  | J19: =INDEX('For Bill Impact(HideBeforeFile)'!$D$34:$O$43,MATCH(C10,'For Bill Impact(HideBeforeFile)'!$C$62:$C$71,0),MATCH($O19,'For Bill Impact(HideBeforeFile)'!$D$61:$O$61,0)) ->  | O19: ='For Bill Impact(HideBeforeFile)'!$N$5 -> Dist. Vol. Rate Tier 3
C20: =INDEX('For Bill Impact(HideBeforeFile)'!$D$48:$O$57,MATCH(C10,'For Bill Impact(HideBeforeFile)'!$C$62:$C$71,0),MATCH($O20,'For Bill Impact(HideBeforeFile)'!$D$61:$O$61,0)) -> Demand - Firm | D20: =INDEX('For Bill Impact(HideBeforeFile)'!$D$62:$O$71,MATCH(C10,'For Bill Impact(HideBeforeFile)'!$C$62:$C$71,0),MATCH($O20,'For Bill Impact(HideBeforeFile)'!$D$61:$O$61,0)) -> cents / m3 | F20: =INDEX('For Bill Impact(HideBeforeFile)'!$D$6:$O$15,MATCH(C10,'For Bill Impact(HideBeforeFile)'!$C$62:$C$71,0),MATCH($O20,'For Bill Impact(HideBeforeFile)'!$D$61:$O$61,0)) -> 29.0974 | H20: =INDEX('For Bill Impact(HideBeforeFile)'!$D$20:$O$29,MATCH(C10,'For Bill Impact(HideBeforeFile)'!$C$62:$C$71,0),MATCH($O20,'For Bill Impact(HideBeforeFile)'!$D$61:$O$61,0)) -> 29.68056583 | J20: =INDEX('For Bill Impact(HideBeforeFile)'!$D$34:$O$43,MATCH(C10,'For Bill Impact(HideBeforeFile)'!$C$62:$C$71,0),MATCH($O20,'For Bill Impact(HideBeforeFile)'!$D$61:$O$61,0)) -> 38737.2 | O20: ='For Bill Impact(HideBeforeFile)'!$O$5 -> Dist. Capacity Rate
C21: =INDEX('For Bill Impact(HideBeforeFile)'!$D$48:$O$57,MATCH(C10,'For Bill Impact(HideBeforeFile)'!$C$62:$C$71,0),MATCH($O21,'For Bill Impact(HideBeforeFile)'!$D$61:$O$61,0)) -> System Gas Charge | D21: =INDEX('For Bill Impact(HideBeforeFile)'!$D$62:$O$71,MATCH(C10,'For Bill Impact(HideBeforeFile)'!$C$62:$C$71,0),MATCH($O21,'For Bill Impact(HideBeforeFile)'!$D$61:$O$61,0)) -> cents / m3 | F21: =INDEX('For Bill Impact(HideBeforeFile)'!$D$6:$O$15,MATCH(C10,'For Bill Impact(HideBeforeFile)'!$C$62:$C$71,0),MATCH($O21,'For Bill Impact(HideBeforeFile)'!$D$61:$O$61,0)) -> 0.0435 | H21: =INDEX('For Bill Impact(HideBeforeFile)'!$D$20:$O$29,MATCH(C10,'For Bill Impact(HideBeforeFile)'!$C$62:$C$71,0),MATCH($O21,'For Bill Impact(HideBeforeFile)'!$D$61:$O$61,0)) -> 0.0435 | J21: =INDEX('For Bill Impact(HideBeforeFile)'!$D$34:$O$43,MATCH(C10,'For Bill Impact(HideBeforeFile)'!$C$62:$C$71,0),MATCH($O21,'For Bill Impact(HideBeforeFile)'!$D$61:$O$61,0)) -> 257420.7 | O21: ='For Bill Impact(HideBeforeFile)'!$E$5 -> System Gas
C23: =INDEX('For Bill Impact(HideBeforeFile)'!$D$48:$O$57,MATCH(C10,'For Bill Impact(HideBeforeFile)'!$C$62:$C$71,0),MATCH($O23,'For Bill Impact(HideBeforeFile)'!$D$61:$O$61,0)) -> REDA | D23: =INDEX('For Bill Impact(HideBeforeFile)'!$D$62:$O$71,MATCH(C10,'For Bill Impact(HideBeforeFile)'!$C$62:$C$71,0),MATCH($O23,'For Bill Impact(HideBeforeFile)'!$D$61:$O$61,0)) -> $ / month | F23: =INDEX('For Bill Impact(HideBeforeFile)'!$D$6:$O$15,MATCH(C10,'For Bill Impact(HideBeforeFile)'!$C$62:$C$71,0),MATCH($O23,'For Bill Impact(HideBeforeFile)'!$D$61:$O$61,0)) -> 0.59 | H23: =INDEX('For Bill Impact(HideBeforeFile)'!$D$20:$O$29,MATCH(C10,'For Bill Impact(HideBeforeFile)'!$C$62:$C$71,0),MATCH($O23,'For Bill Impact(HideBeforeFile)'!$D$61:$O$61,0)) -> 0.7697128118 | J23: =INDEX('For Bill Impact(HideBeforeFile)'!$D$34:$O$43,MATCH(C10,'For Bill Impact(HideBeforeFile)'!$C$62:$C$71,0),MATCH($O23,'For Bill Impact(HideBeforeFile)'!$D$61:$O$61,0)) -> 12 | O23: ='For Bill Impact(HideBeforeFile)'!$F$5 -> REDA
C24: =INDEX('For Bill Impact(HideBeforeFile)'!$D$48:$O$57,MATCH(C10,'For Bill Impact(HideBeforeFile)'!$C$62:$C$71,0),MATCH($O24,'For Bill Impact(HideBeforeFile)'!$D$61:$O$61,0)) -> PGTVA | D24: =INDEX('For Bill Impact(HideBeforeFile)'!$D$62:$O$71,MATCH(C10,'For Bill Impact(HideBeforeFile)'!$C$62:$C$71,0),MATCH($O24,'For Bill Impact(HideBeforeFile)'!$D$61:$O$61,0)) -> cents / m3 | F24: =INDEX('For Bill Impact(HideBeforeFile)'!$D$6:$O$15,MATCH(C10,'For Bill Impact(HideBeforeFile)'!$C$62:$C$71,0),MATCH($O24,'For Bill Impact(HideBeforeFile)'!$D$61:$O$61,0)) -> 0.128 | H24: =INDEX('For Bill Impact(HideBeforeFile)'!$D$20:$O$29,MATCH(C10,'For Bill Impact(HideBeforeFile)'!$C$62:$C$71,0),MATCH($O24,'For Bill Impact(HideBeforeFile)'!$D$61:$O$61,0)) -> 0.3066442063 | J24: =INDEX('For Bill Impact(HideBeforeFile)'!$D$34:$O$43,MATCH(C10,'For Bill Impact(HideBeforeFile)'!$C$62:$C$71,0),MATCH($O24,'For Bill Impact(HideBeforeFile)'!$D$61:$O$61,0)) -> 257420.7 | O24: ='For Bill Impact(HideBeforeFile)'!$G$5 -> PGTVA
C25: =INDEX('For Bill Impact(HideBeforeFile)'!$D$48:$O$57,MATCH(C10,'For Bill Impact(HideBeforeFile)'!$C$62:$C$71,0),MATCH($O25,'For Bill Impact(HideBeforeFile)'!$D$61:$O$61,0)) -> ADVADA | D25: =INDEX('For Bill Impact(HideBeforeFile)'!$D$62:$O$71,MATCH(C10,'For Bill Impact(HideBeforeFile)'!$C$62:$C$71,0),MATCH($O25,'For Bill Impact(HideBeforeFile)'!$D$61:$O$61,0)) -> cents / m3 | F25: =INDEX('For Bill Impact(HideBeforeFile)'!$D$6:$O$15,MATCH(C10,'For Bill Impact(HideBeforeFile)'!$C$62:$C$71,0),MATCH($O25,'For Bill Impact(HideBeforeFile)'!$D$61:$O$61,0)) ->  | H25: =INDEX('For Bill Impact(HideBeforeFile)'!$D$20:$O$29,MATCH(C10,'For Bill Impact(HideBeforeFile)'!$C$62:$C$71,0),MATCH($O25,'For Bill Impact(HideBeforeFile)'!$D$61:$O$61,0)) -> 0.1484182125 | J25: =INDEX('For Bill Impact(HideBeforeFile)'!$D$34:$O$43,MATCH(C10,'For Bill Impact(HideBeforeFile)'!$C$62:$C$71,0),MATCH($O25,'For Bill Impact(HideBeforeFile)'!$D$61:$O$61,0)) -> 257420.7 | O25: ='For Bill Impact(HideBeforeFile)'!$H$5 -> ADVADA
C27: =INDEX('For Bill Impact(HideBeforeFile)'!$D$48:$O$57,MATCH(C10,'For Bill Impact(HideBeforeFile)'!$C$62:$C$71,0),MATCH($O27,'For Bill Impact(HideBeforeFile)'!$D$61:$O$61,0)) -> Federal Carbon | D27: =INDEX('For Bill Impact(HideBeforeFile)'!$D$62:$O$71,MATCH(C10,'For Bill Impact(HideBeforeFile)'!$C$62:$C$71,0),MATCH($O27,'For Bill Impact(HideBeforeFile)'!$D$61:$O$61,0)) -> cents / m3 | F27: =INDEX('For Bill Impact(HideBeforeFile)'!$D$6:$O$15,MATCH(C10,'For Bill Impact(HideBeforeFile)'!$C$62:$C$71,0),MATCH($O27,'For Bill Impact(HideBeforeFile)'!$D$61:$O$61,0)) -> 5.87 | H27: =INDEX('For Bill Impact(HideBeforeFile)'!$D$20:$O$29,MATCH(C10,'For Bill Impact(HideBeforeFile)'!$C$62:$C$71,0),MATCH($O27,'For Bill Impact(HideBeforeFile)'!$D$61:$O$61,0)) -> 5.87 | J27: =INDEX('For Bill Impact(HideBeforeFile)'!$D$34:$O$43,MATCH(C10,'For Bill Impact(HideBeforeFile)'!$C$62:$C$71,0),MATCH($O27,'For Bill Impact(HideBeforeFile)'!$D$61:$O$61,0)) -> 257420.7 | O27: ='For Bill Impact(HideBeforeFile)'!$I$5 -> Federal Carbon
C28: =INDEX('For Bill Impact(HideBeforeFile)'!$D$48:$O$57,MATCH(C10,'For Bill Impact(HideBeforeFile)'!$C$62:$C$71,0),MATCH($O28,'For Bill Impact(HideBeforeFile)'!$D$61:$O$61,0)) -> Facility Carbon | D28: =INDEX('For Bill Impact(HideBeforeFile)'!$D$62:$O$71,MATCH(C10,'For Bill Impact(HideBeforeFile)'!$C$62:$C$71,0),MATCH($O28,'For Bill Impact(HideBeforeFile)'!$D$61:$O$61,0)) -> cents / m3 | F28: =INDEX('For Bill Impact(HideBeforeFile)'!$D$6:$O$15,MATCH(C10,'For Bill Impact(HideBeforeFile)'!$C$62:$C$71,0),MATCH($O28,'For Bill Impact(HideBeforeFile)'!$D$61:$O$61,0)) -> 0.0027 | H28: =INDEX('For Bill Impact(HideBeforeFile)'!$D$20:$O$29,MATCH(C10,'For Bill Impact(HideBeforeFile)'!$C$62:$C$71,0),MATCH($O28,'For Bill Impact(HideBeforeFile)'!$D$61:$O$61,0)) -> 0.0027 | J28: =INDEX('For Bill Impact(HideBeforeFile)'!$D$34:$O$43,MATCH(C10,'For Bill Impact(HideBeforeFile)'!$C$62:$C$71,0),MATCH($O28,'For Bill Impact(HideBeforeFile)'!$D$61:$O$61,0)) -> 257420.7 | O28: ='For Bill Impact(HideBeforeFile)'!$J$5 -> Facility Carbon
C31: Commodity | F31: Current | H31: Proposed | J31: Change $ | L31: Change %
F32: =F14*$J14/100 -> 34144.79649 | H32: =H14*$J14/100 -> 34144.79649 | J32: =H32-F32 -> 0 | L32: =IFERROR(J32/F32,"") -> 0 | O32: ='For Bill Impact(HideBeforeFile)'!$D$5 -> Commodity
C34: Delivery | F34: Current Rate | H34: Proposed Rate | J34: Change $ | L34: Change %
C35: =IF(C16<>"",C16,"") -> Customer (excl. Bill 32) | F35: =F16*$J16 -> 2400 | H35: =H16*$J16 -> 2400 | J35: =IFERROR(H35-F35,"") -> 0 | L35: =IFERROR(J35/F35,"") -> 0 | O35: ='For Bill Impact(HideBeforeFile)'!$K$5 -> Dist. Customer Rate
C36: Bill 32 | F36: =J16 -> 12 | H36: =J16 -> 12 | J36: =IFERROR(H36-F36,"") -> 0 | L36: =IFERROR(J36/F36,"") -> 0
C37: =IF(C17<>"",C17,"") -> Delivery - Firm | F37: =IFERROR(F17*$J17/100,"") -> 9269.976828 | H37: =IFERROR(H17*$J17/100,"") -> 10083.85544 | J37: =IFERROR(H37-F37,"") -> 813.8786118 | L37: =IFERROR(J37/F37,"") -> 0.08779726497 | O37: ='For Bill Impact(HideBeforeFile)'!$L$5 -> Dist. Vol. Rate Tier 1
C38: =IF(C18<>"",C18,"") ->  | F38: =IFERROR(F18*$J18/100,"") ->  | H38: =IFERROR(H18*$J18/100,"") ->  | O38: ='For Bill Impact(HideBeforeFile)'!$M$5 -> Dist. Vol. Rate Tier 2
C39: =IF(C19<>"",C19,"") ->  | F39: =IFERROR(F19*$J19/100,"") ->  | H39: =IFERROR(H19*$J19/100,"") ->  | O39: ='For Bill Impact(HideBeforeFile)'!$N$5 -> Dist. Vol. Rate Tier 3
C40: =IF(C20<>"",C20,"") -> Demand - Firm | F40: =IFERROR(F20*$J20/100,"") -> 11271.51803 | H40: =IFERROR(H20*$J20/100,"") -> 11497.42015 | J40: 225.9021157 | L40: 0.02004185373 | O40: ='For Bill Impact(HideBeforeFile)'!$O$5 -> Dist. Capacity Rate
C41: =IF(C21<>"",C21,"") -> System Gas Charge | F41: =IFERROR(F21*$J21/100,"") -> 111.9780045 | H41: =IFERROR(H21*$J21/100,"") -> 111.9780045 | J41: 0 | L41: 0 | O41: ='For Bill Impact(HideBeforeFile)'!$E$5 -> System Gas
C42: Total Delivery | F42: =SUM(F35:F41) -> 23065.47287 | H42: =SUM(H35:H41) -> 24105.25359 | J42: =H42-F42 -> 1039.780728 | L42: =IF(ISERROR(J42/F42),0,J42/F42) -> 0.04507953224
C44: Rate Riders
C46: Rate Riders | F46: Current Rate | H46: Proposed Rate | J46: Change $ | L46: Change %
C47: REDA | F47: =F23*$J23 -> 7.08 | H47: =H23*$J23 -> 9.236553742 | J47: =IFERROR(H47-F47,"") -> 2.156553742 | L47: =IFERROR(J47/F47,"") -> 0.3045979862 | O47: ='For Bill Impact(HideBeforeFile)'!$F$5 -> REDA
C48: PGTVA | F48: =IFERROR(F24*$J24/100,"") -> 329.498496 | H48: =IFERROR(H24*$J24/100,"") -> 789.3656623 | J48: =IFERROR(H48-F48,"") -> 459.8671663 | L48: 1.395657861 | O48: ='For Bill Impact(HideBeforeFile)'!$G$5 -> PGTVA
C49: ADVADA | F49: =IFERROR(F25*$J25/100,"") ->  | H49: =IFERROR(H25*$J25/100,"") -> 382.0592014 | J49: =H49 -> 382.0592014 | L49: =J49/H49 -> 1 | O49: ='For Bill Impact(HideBeforeFile)'!$H$5 -> ADVADA
C50: Total Rate Riders | F50: =SUM(F47:F49) -> 336.578496 | H50: =SUM(H47:H49) -> 1180.661417 | J50: =SUM(J47:J49) -> 844.0829214 | L50: =IF(ISERROR(J50/F50),0,J50/F50) -> 2.507833779
C52: Carbon Tax
C53: Federal Carbon | F53: =F27*$J27/100 -> 15110.59509 | H53: =H27*$J27/100 -> 15110.59509 | J53: =IFERROR(H53-F53,"") -> 0 | L53: =IFERROR(J53/F53,"") -> 0
C54: Facility Carbon | F54: =F28*$J28/100 -> 6.9503589 | H54: =H28*$J28/100 -> 6.9503589 | J54: =IFERROR(H54-F54,"") -> 0 | L54: 0
C55: Total Carbon Tax | F55: =SUM(F53:F54) -> 15117.54545 | H55: =SUM(H53:H54) -> 15117.54545 | J55: =SUM(J53:J54) -> 0 | L55: =IF(ISERROR(J55/F55),0,J55/F55) -> 0
C57: Total Bill Impact | F57: =SUM(F32,F42,F50,F55) -> 72664.3933 | H57: =SUM(H32,H42,H50,H55) -> 74548.25695 | J57: =SUM(J32,J42,J50,J55) -> 1883.863649 | L57: =IFERROR(J57/F57,"") -> 0.02592554019
C60: =MID(CELL("filename",A1),FIND("]",CELL("filename",A1))+1,255) -> G1.3 Rate 3 Bill Impact

Sheet G1.4 Rate 4 Bill Impact
C2: ='A1.1 Distributor Information'!C3 -> Name of LDC: EPCOR Natural Gas Limited Partnership
C3: ='A1.1 Distributor Information'!C4 -> OEB Application Number: EB-2020-0234 Exhibit A - 2021 IRM Application
C7: Rate 4 Delivery Bill Impact
C10: ='For Bill Impact(HideBeforeFile)'!C12 -> RATE 4 - General Service Peaking - Apr to Dec | F10: Current | H10: Proposed | J10: Bill Determinant | O10: Look-up
C14: =INDEX('For Bill Impact(HideBeforeFile)'!$D$48:$O$57,MATCH(C10,'For Bill Impact(HideBeforeFile)'!$C$62:$C$71,0),MATCH($O14,'For Bill Impact(HideBeforeFile)'!$D$61:$O$61,0)) -> Commodity | D14: =INDEX('For Bill Impact(HideBeforeFile)'!$D$62:$O$71,MATCH(C10,'For Bill Impact(HideBeforeFile)'!$C$62:$C$71,0),MATCH($O14,'For Bill Impact(HideBeforeFile)'!$D$61:$O$61,0)) -> cents / m3 | F14: =INDEX('For Bill Impact(HideBeforeFile)'!$D$6:$O$15,MATCH(C10,'For Bill Impact(HideBeforeFile)'!$C$62:$C$71,0),MATCH($O14,'For Bill Impact(HideBeforeFile)'!$D$61:$O$61,0)) -> 13.2642 | H14: =INDEX('For Bill Impact(HideBeforeFile)'!$D$20:$O$29,MATCH(C10,'For Bill Impact(HideBeforeFile)'!$C$62:$C$71,0),MATCH($O14,'For Bill Impact(HideBeforeFile)'!$D$61:$O$61,0)) -> 13.2642 | J14: =INDEX('For Bill Impact(HideBeforeFile)'!$D$34:$O$43,MATCH(C10,'For Bill Impact(HideBeforeFile)'!$C$62:$C$71,0),MATCH($O14,'For Bill Impact(HideBeforeFile)'!$D$61:$O$61,0)) -> 44131.63889 | O14: ='For Bill Impact(HideBeforeFile)'!$D$5 -> Commodity
C16: =INDEX('For Bill Impact(HideBeforeFile)'!$D$48:$O$57,MATCH(C10,'For Bill Impact(HideBeforeFile)'!$C$62:$C$71,0),MATCH($O16,'For Bill Impact(HideBeforeFile)'!$D$61:$O$61,0)) -> Customer (excl. Bill 32) | D16: =INDEX('For Bill Impact(HideBeforeFile)'!$D$62:$O$71,MATCH(C10,'For Bill Impact(HideBeforeFile)'!$C$62:$C$71,0),MATCH($O16,'For Bill Impact(HideBeforeFile)'!$D$61:$O$61,0)) -> $ / month | F16: =INDEX('For Bill Impact(HideBeforeFile)'!$D$6:$O$15,MATCH(C10,'For Bill Impact(HideBeforeFile)'!$C$62:$C$71,0),MATCH($O16,'For Bill Impact(HideBeforeFile)'!$D$61:$O$61,0)) -> 20 | H16: =INDEX('For Bill Impact(HideBeforeFile)'!$D$20:$O$29,MATCH(C10,'For Bill Impact(HideBeforeFile)'!$C$62:$C$71,0),MATCH($O16,'For Bill Impact(HideBeforeFile)'!$D$61:$O$61,0)) -> 20 | J16: =INDEX('For Bill Impact(HideBeforeFile)'!$D$34:$O$43,MATCH(C10,'For Bill Impact(HideBeforeFile)'!$C$62:$C$71,0),MATCH($O16,'For Bill Impact(HideBeforeFile)'!$D$61:$O$61,0)) -> 9 | O16: ='For Bill Impact(HideBeforeFile)'!$K$5 -> Dist. Customer Rate
C17: =INDEX('For Bill Impact(HideBeforeFile)'!$D$48:$O$57,MATCH(C10,'For Bill Impact(HideBeforeFile)'!$C$62:$C$71,0),MATCH($O17,'For Bill Impact(HideBeforeFile)'!$D$61:$O$61,0)) -> Block 1 (First 1,000 m3 per month) | D17: =INDEX('For Bill Impact(HideBeforeFile)'!$D$62:$O$71,MATCH(C10,'For Bill Impact(HideBeforeFile)'!$C$62:$C$71,0),MATCH($O17,'For Bill Impact(HideBeforeFile)'!$D$61:$O$61,0)) -> cents / m3 | F17: =INDEX('For Bill Impact(HideBeforeFile)'!$D$6:$O$15,MATCH(C10,'For Bill Impact(HideBeforeFile)'!$C$62:$C$71,0),MATCH($O17,'For Bill Impact(HideBeforeFile)'!$D$61:$O$61,0)) -> 18.2634 | H17: =INDEX('For Bill Impact(HideBeforeFile)'!$D$20:$O$29,MATCH(C10,'For Bill Impact(HideBeforeFile)'!$C$62:$C$71,0),MATCH($O17,'For Bill Impact(HideBeforeFile)'!$D$61:$O$61,0)) -> 18.93139285 | J17: =INDEX('For Bill Impact(HideBeforeFile)'!$D$34:$O$43,MATCH(C10,'For Bill Impact(HideBeforeFile)'!$C$62:$C$71,0),MATCH($O17,'For Bill Impact(HideBeforeFile)'!$D$61:$O$61,0)) -> 2410.527778 | O17: ='For Bill Impact(HideBeforeFile)'!$L$5 -> Dist. Vol. Rate Tier 1
C18: =INDEX('For Bill Impact(HideBeforeFile)'!$D$48:$O$57,MATCH(C10,'For Bill Impact(HideBeforeFile)'!$C$62:$C$71,0),MATCH($O18,'For Bill Impact(HideBeforeFile)'!$D$61:$O$61,0)) -> Block 2 (Over 1,000 m3 per month) | D18: =INDEX('For Bill Impact(HideBeforeFile)'!$D$62:$O$71,MATCH(C10,'For Bill Impact(HideBeforeFile)'!$C$62:$C$71,0),MATCH($O18,'For Bill Impact(HideBeforeFile)'!$D$61:$O$61,0)) -> cents / m3 | F18: =INDEX('For Bill Impact(HideBeforeFile)'!$D$6:$O$15,MATCH(C10,'For Bill Impact(HideBeforeFile)'!$C$62:$C$71,0),MATCH($O18,'For Bill Impact(HideBeforeFile)'!$D$61:$O$61,0)) -> 11.2057 | H18: =INDEX('For Bill Impact(HideBeforeFile)'!$D$20:$O$29,MATCH(C10,'For Bill Impact(HideBeforeFile)'!$C$62:$C$71,0),MATCH($O18,'For Bill Impact(HideBeforeFile)'!$D$61:$O$61,0)) -> 11.61564825 | J18: =INDEX('For Bill Impact(HideBeforeFile)'!$D$34:$O$43,MATCH(C10,'For Bill Impact(HideBeforeFile)'!$C$62:$C$71,0),MATCH($O18,'For Bill Impact(HideBeforeFile)'!$D$61:$O$61,0)) -> 41721.11111 | O18: ='For Bill Impact(HideBeforeFile)'!$M$5 -> Dist. Vol. Rate Tier 2
C19: =INDEX('For Bill Impact(HideBeforeFile)'!$D$48:$O$57,MATCH(C10,'For Bill Impact(HideBeforeFile)'!$C$62:$C$71,0),MATCH($O19,'For Bill Impact(HideBeforeFile)'!$D$61:$O$61,0)) ->  | D19: =INDEX('For Bill Impact(HideBeforeFile)'!$D$62:$O$71,MATCH(C10,'For Bill Impact(HideBeforeFile)'!$C$62:$C$71,0),MATCH($O19,'For Bill Impact(HideBeforeFile)'!$D$61:$O$61,0)) ->  | F19: =INDEX('For Bill Impact(HideBeforeFile)'!$D$6:$O$15,MATCH(C10,'For Bill Impact(HideBeforeFile)'!$C$62:$C$71,0),MATCH($O19,'For Bill Impact(HideBeforeFile)'!$D$61:$O$61,0)) ->  | H19: =INDEX('For Bill Impact(HideBeforeFile)'!$D$20:$O$29,MATCH(C10,'For Bill Impact(HideBeforeFile)'!$C$62:$C$71,0),MATCH($O19,'For Bill Impact(HideBeforeFile)'!$D$61:$O$61,0)) ->  | J19: =INDEX('For Bill Impact(HideBeforeFile)'!$D$34:$O$43,MATCH(C10,'For Bill Impact(HideBeforeFile)'!$C$62:$C$71,0),MATCH($O19,'For Bill Impact(HideBeforeFile)'!$D$61:$O$61,0)) ->  | O19: ='For Bill Impact(HideBeforeFile)'!$N$5 -> Dist. Vol. Rate Tier 3
C20: =INDEX('For Bill Impact(HideBeforeFile)'!$D$48:$O$57,MATCH(C10,'For Bill Impact(HideBeforeFile)'!$C$62:$C$71,0),MATCH($O20,'For Bill Impact(HideBeforeFile)'!$D$61:$O$61,0)) ->  | D20: =INDEX('For Bill Impact(HideBeforeFile)'!$D$62:$O$71,MATCH(C10,'For Bill Impact(HideBeforeFile)'!$C$62:$C$71,0),MATCH($O20,'For Bill Impact(HideBeforeFile)'!$D$61:$O$61,0)) ->  | F20: =INDEX('For Bill Impact(HideBeforeFile)'!$D$6:$O$15,MATCH(C10,'For Bill Impact(HideBeforeFile)'!$C$62:$C$71,0),MATCH($O20,'For Bill Impact(HideBeforeFile)'!$D$61:$O$61,0)) ->  | H20: =INDEX('For Bill Impact(HideBeforeFile)'!$D$20:$O$29,MATCH(C10,'For Bill Impact(HideBeforeFile)'!$C$62:$C$71,0),MATCH($O20,'For Bill Impact(HideBeforeFile)'!$D$61:$O$61,0)) ->  | J20: =INDEX('For Bill Impact(HideBeforeFile)'!$D$34:$O$43,MATCH(C10,'For Bill Impact(HideBeforeFile)'!$C$62:$C$71,0),MATCH($O20,'For Bill Impact(HideBeforeFile)'!$D$61:$O$61,0)) ->  | O20: ='For Bill Impact(HideBeforeFile)'!$O$5 -> Dist. Capacity Rate
C21: =INDEX('For Bill Impact(HideBeforeFile)'!$D$48:$O$57,MATCH(C10,'For Bill Impact(HideBeforeFile)'!$C$62:$C$71,0),MATCH($O21,'For Bill Impact(HideBeforeFile)'!$D$61:$O$61,0)) -> System Gas Charge | D21: =INDEX('For Bill Impact(HideBeforeFile)'!$D$62:$O$71,MATCH(C10,'For Bill Impact(HideBeforeFile)'!$C$62:$C$71,0),MATCH($O21,'For Bill Impact(HideBeforeFile)'!$D$61:$O$61,0)) -> cents / m3 | F21: =INDEX('For Bill Impact(HideBeforeFile)'!$D$6:$O$15,MATCH(C10,'For Bill Impact(HideBeforeFile)'!$C$62:$C$71,0),MATCH($O21,'For Bill Impact(HideBeforeFile)'!$D$61:$O$61,0)) -> 0.0435 | H21: =INDEX('For Bill Impact(HideBeforeFile)'!$D$20:$O$29,MATCH(C10,'For Bill Impact(HideBeforeFile)'!$C$62:$C$71,0),MATCH($O21,'For Bill Impact(HideBeforeFile)'!$D$61:$O$61,0)) -> 0.0435 | J21: =INDEX('For Bill Impact(HideBeforeFile)'!$D$34:$O$43,MATCH(C10,'For Bill Impact(HideBeforeFile)'!$C$62:$C$71,0),MATCH($O21,'For Bill Impact(HideBeforeFile)'!$D$61:$O$61,0)) -> 44131.63889 | O21: ='For Bill Impact(HideBeforeFile)'!$E$5 -> System Gas
C23: =INDEX('For Bill Impact(HideBeforeFile)'!$D$48:$O$57,MATCH(C10,'For Bill Impact(HideBeforeFile)'!$C$62:$C$71,0),MATCH($O23,'For Bill Impact(HideBeforeFile)'!$D$61:$O$61,0)) -> REDA | D23: =INDEX('For Bill Impact(HideBeforeFile)'!$D$62:$O$71,MATCH(C10,'For Bill Impact(HideBeforeFile)'!$C$62:$C$71,0),MATCH($O23,'For Bill Impact(HideBeforeFile)'!$D$61:$O$61,0)) -> $ / month | F23: =INDEX('For Bill Impact(HideBeforeFile)'!$D$6:$O$15,MATCH(C10,'For Bill Impact(HideBeforeFile)'!$C$62:$C$71,0),MATCH($O23,'For Bill Impact(HideBeforeFile)'!$D$61:$O$61,0)) -> 0.59 | H23: =INDEX('For Bill Impact(HideBeforeFile)'!$D$20:$O$29,MATCH(C10,'For Bill Impact(HideBeforeFile)'!$C$62:$C$71,0),MATCH($O23,'For Bill Impact(HideBeforeFile)'!$D$61:$O$61,0)) -> 0.7697128118 | J23: =INDEX('For Bill Impact(HideBeforeFile)'!$D$34:$O$43,MATCH(C10,'For Bill Impact(HideBeforeFile)'!$C$62:$C$71,0),MATCH($O23,'For Bill Impact(HideBeforeFile)'!$D$61:$O$61,0)) -> 9 | O23: ='For Bill Impact(HideBeforeFile)'!$F$5 -> REDA
C24: =INDEX('For Bill Impact(HideBeforeFile)'!$D$48:$O$57,MATCH(C10,'For Bill Impact(HideBeforeFile)'!$C$62:$C$71,0),MATCH($O24,'For Bill Impact(HideBeforeFile)'!$D$61:$O$61,0)) -> PGTVA | D24: =INDEX('For Bill Impact(HideBeforeFile)'!$D$62:$O$71,MATCH(C10,'For Bill Impact(HideBeforeFile)'!$C$62:$C$71,0),MATCH($O24,'For Bill Impact(HideBeforeFile)'!$D$61:$O$61,0)) -> cents / m3 | F24: =INDEX('For Bill Impact(HideBeforeFile)'!$D$6:$O$15,MATCH(C10,'For Bill Impact(HideBeforeFile)'!$C$62:$C$71,0),MATCH($O24,'For Bill Impact(HideBeforeFile)'!$D$61:$O$61,0)) -> 0.128 | H24: =INDEX('For Bill Impact(HideBeforeFile)'!$D$20:$O$29,MATCH(C10,'For Bill Impact(HideBeforeFile)'!$C$62:$C$71,0),MATCH($O24,'For Bill Impact(HideBeforeFile)'!$D$61:$O$61,0)) -> 0.3066442063 | J24: =INDEX('For Bill Impact(HideBeforeFile)'!$D$34:$O$43,MATCH(C10,'For Bill Impact(HideBeforeFile)'!$C$62:$C$71,0),MATCH($O24,'For Bill Impact(HideBeforeFile)'!$D$61:$O$61,0)) -> 44131.63889 | O24: ='For Bill Impact(HideBeforeFile)'!$G$5 -> PGTVA
C25: =INDEX('For Bill Impact(HideBeforeFile)'!$D$48:$O$57,MATCH(C10,'For Bill Impact(HideBeforeFile)'!$C$62:$C$71,0),MATCH($O25,'For Bill Impact(HideBeforeFile)'!$D$61:$O$61,0)) -> ADVADA | D25: =INDEX('For Bill Impact(HideBeforeFile)'!$D$62:$O$71,MATCH(C10,'For Bill Impact(HideBeforeFile)'!$C$62:$C$71,0),MATCH($O25,'For Bill Impact(HideBeforeFile)'!$D$61:$O$61,0)) -> cents / m3 | F25: =INDEX('For Bill Impact(HideBeforeFile)'!$D$6:$O$15,MATCH(C10,'For Bill Impact(HideBeforeFile)'!$C$62:$C$71,0),MATCH($O25,'For Bill Impact(HideBeforeFile)'!$D$61:$O$61,0)) ->  | H25: =INDEX('For Bill Impact(HideBeforeFile)'!$D$20:$O$29,MATCH(C10,'For Bill Impact(HideBeforeFile)'!$C$62:$C$71,0),MATCH($O25,'For Bill Impact(HideBeforeFile)'!$D$61:$O$61,0)) -> 0.1484182125 | J25: =INDEX('For Bill Impact(HideBeforeFile)'!$D$34:$O$43,MATCH(C10,'For Bill Impact(HideBeforeFile)'!$C$62:$C$71,0),MATCH($O25,'For Bill Impact(HideBeforeFile)'!$D$61:$O$61,0)) -> 44131.63889 | O25: ='For Bill Impact(HideBeforeFile)'!$H$5 -> ADVADA
C27: =INDEX('For Bill Impact(HideBeforeFile)'!$D$48:$O$57,MATCH(C10,'For Bill Impact(HideBeforeFile)'!$C$62:$C$71,0),MATCH($O27,'For Bill Impact(HideBeforeFile)'!$D$61:$O$61,0)) -> Federal Carbon | D27: =INDEX('For Bill Impact(HideBeforeFile)'!$D$62:$O$71,MATCH(C10,'For Bill Impact(HideBeforeFile)'!$C$62:$C$71,0),MATCH($O27,'For Bill Impact(HideBeforeFile)'!$D$61:$O$61,0)) -> cents / m3 | F27: =INDEX('For Bill Impact(HideBeforeFile)'!$D$6:$O$15,MATCH(C10,'For Bill Impact(HideBeforeFile)'!$C$62:$C$71,0),MATCH($O27,'For Bill Impact(HideBeforeFile)'!$D$61:$O$61,0)) -> 5.87 | H27: =INDEX('For Bill Impact(HideBeforeFile)'!$D$20:$O$29,MATCH(C10,'For Bill Impact(HideBeforeFile)'!$C$62:$C$71,0),MATCH($O27,'For Bill Impact(HideBeforeFile)'!$D$61:$O$61,0)) -> 5.87 | J27: =INDEX('For Bill Impact(HideBeforeFile)'!$D$34:$O$43,MATCH(C10,'For Bill Impact(HideBeforeFile)'!$C$62:$C$71,0),MATCH($O27,'For Bill Impact(HideBeforeFile)'!$D$61:$O$61,0)) -> 44131.63889 | O27: ='For Bill Impact(HideBeforeFile)'!$I$5 -> Federal Carbon
C28: =INDEX('For Bill Impact(HideBeforeFile)'!$D$48:$O$57,MATCH(C10,'For Bill Impact(HideBeforeFile)'!$C$62:$C$71,0),MATCH($O28,'For Bill Impact(HideBeforeFile)'!$D$61:$O$61,0)) -> Facility Carbon | D28: =INDEX('For Bill Impact(HideBeforeFile)'!$D$62:$O$71,MATCH(C10,'For Bill Impact(HideBeforeFile)'!$C$62:$C$71,0),MATCH($O28,'For Bill Impact(HideBeforeFile)'!$D$61:$O$61,0)) -> cents / m3 | F28: =INDEX('For Bill Impact(HideBeforeFile)'!$D$6:$O$15,MATCH(C10,'For Bill Impact(HideBeforeFile)'!$C$62:$C$71,0),MATCH($O28,'For Bill Impact(HideBeforeFile)'!$D$61:$O$61,0)) -> 0.0027 | H28: =INDEX('For Bill Impact(HideBeforeFile)'!$D$20:$O$29,MATCH(C10,'For Bill Impact(HideBeforeFile)'!$C$62:$C$71,0),MATCH($O28,'For Bill Impact(HideBeforeFile)'!$D$61:$O$61,0)) -> 0.0027 | J28: =INDEX('For Bill Impact(HideBeforeFile)'!$D$34:$O$43,MATCH(C10,'For Bill Impact(HideBeforeFile)'!$C$62:$C$71,0),MATCH($O28,'For Bill Impact(HideBeforeFile)'!$D$61:$O$61,0)) -> 44131.63889 | O28: ='For Bill Impact(HideBeforeFile)'!$J$5 -> Facility Carbon
C31: Commodity | F31: Current | H31: Proposed | J31: Change $ | L31: Change %
F32: =F14*$J14/100 -> 5853.708846 | H32: =H14*$J14/100 -> 5853.708846 | J32: =H32-F32 -> 0 | L32: =IFERROR(J32/F32,"") -> 0 | O32: ='For Bill Impact(HideBeforeFile)'!$D$5 -> Commodity
C34: Delivery | F34: Current Rate | H34: Proposed Rate | J34: Change $ | L34: Change %
C35: =IF(C16<>"",C16,"") -> Customer (excl. Bill 32) | F35: =F16*$J16 -> 180 | H35: =H16*$J16 -> 180 | J35: =IFERROR(H35-F35,"") -> 0 | L35: =IFERROR(J35/F35,"") -> 0 | O35: ='For Bill Impact(HideBeforeFile)'!$K$5 -> Dist. Customer Rate
C36: Bill 32 | F36: =J16 -> 9 | H36: =J16 -> 9 | J36: =IFERROR(H36-F36,"") -> 0 | L36: =IFERROR(J36/F36,"") -> 0
C37: =IF(C17<>"",C17,"") -> Block 1 (First 1,000 m3 per month) | F37: =IFERROR(F17*$J17/100,"") -> 440.2443302 | H37: =IFERROR(H17*$J17/100,"") -> 456.3464834 | J37: =IFERROR(H37-F37,"") -> 16.10215327 | L37: =IFERROR(J37/F37,"") -> 0.03657549266 | O37: ='For Bill Impact(HideBeforeFile)'!$L$5 -> Dist. Vol. Rate Tier 1
C38: =IF(C18<>"",C18,"") -> Block 2 (Over 1,000 m3 per month) | F38: =IFERROR(F18*$J18/100,"") -> 4675.142548 | H38: =IFERROR(H18*$J18/100,"") -> 4846.177511 | J38: 171.0349632 | L38: 0.03658390336 | O38: ='For Bill Impact(HideBeforeFile)'!$M$5 -> Dist. Vol. Rate Tier 2
C39: =IF(C19<>"",C19,"") ->  | F39: =IFERROR(F19*$J19/100,"") ->  | H39: =IFERROR(H19*$J19/100,"") ->  | O39: ='For Bill Impact(HideBeforeFile)'!$N$5 -> Dist. Vol. Rate Tier 3
C40: =IF(C20<>"",C20,"") ->  | F40: =IFERROR(F20*$J20/100,"") ->  | H40: =IFERROR(H20*$J20/100,"") ->  | O40: ='For Bill Impact(HideBeforeFile)'!$O$5 -> Dist. Capacity Rate
C41: =IF(C21<>"",C21,"") -> System Gas Charge | F41: =IFERROR(F21*$J21/100,"") -> 19.19726292 | H41: =IFERROR(H21*$J21/100,"") -> 19.19726292 | J41: 0 | L41: 0 | O41: ='For Bill Impact(HideBeforeFile)'!$E$5 -> System Gas
C42: Total Delivery | F42: =SUM(F35:F41) -> 5323.584141 | H42: =SUM(H35:H41) -> 5510.721257 | J42: =H42-F42 -> 187.1371164 | L42: =IF(ISERROR(J42/F42),0,J42/F42) -> 0.03515246711
C44: Rate Riders
C46: Rate Riders | F46: Current Rate | H46: Proposed Rate | J46: Change $ | L46: Change %
C47: REDA | F47: =F23*$J23 -> 5.31 | H47: =H23*$J23 -> 6.927415307 | J47: =IFERROR(H47-F47,"") -> 1.617415307 | L47: =IFERROR(J47/F47,"") -> 0.3045979862 | O47: ='For Bill Impact(HideBeforeFile)'!$F$5 -> REDA
C48: PGTVA | F48: =IFERROR(F24*$J24/100,"") -> 56.48849778 | H48: =IFERROR(H24*$J24/100,"") -> 135.3271138 | J48: =IFERROR(H48-F48,"") -> 78.838616 | L48: 1.395657861 | O48: ='For Bill Impact(HideBeforeFile)'!$G$5 -> PGTVA
C49: ADVADA | F49: =IFERROR(F25*$J25/100,"") ->  | H49: =IFERROR(H25*$J25/100,"") -> 65.49938957 | J49: =H49 -> 65.49938957 | L49: =J49/H49 -> 1 | O49: ='For Bill Impact(HideBeforeFile)'!$H$5 -> ADVADA
C50: Total Rate Riders | F50: =SUM(F47:F49) -> 61.79849778 | H50: =SUM(H47:H49) -> 207.7539187 | J50: =SUM(J47:J49) -> 145.9554209 | L50: =IF(ISERROR(J50/F50),0,J50/F50) -> 2.361795612
C52: Carbon Tax
C53: Federal Carbon | F53: =F27*$J27/100 -> 2590.527203 | H53: =H27*$J27/100 -> 2590.527203 | J53: =IFERROR(H53-F53,"") -> 0 | L53: =IFERROR(J53/F53,"") -> 0
C54: Facility Carbon | F54: =F28*$J28/100 -> 1.19155425 | H54: =H28*$J28/100 -> 1.19155425 | J54: =IFERROR(H54-F54,"") -> 0 | L54: 0
C55: Total Carbon Tax | F55: =SUM(F53:F54) -> 2591.718757 | H55: =SUM(H53:H54) -> 2591.718757 | J55: =SUM(J53:J54) -> 0 | L55: =IF(ISERROR(J55/F55),0,J55/F55) -> 0
C57: Total Bill Impact | F57: =SUM(F32,F42,F50,F55) -> 13830.81024 | H57: =SUM(H32,H42,H50,H55) -> 14163.90278 | J57: =SUM(J32,J42,J50,J55) -> 333.0925373 | L57: =IFERROR(J57/F57,"") -> 0.02408337122
C60: =MID(CELL("filename",A1),FIND("]",CELL("filename",A1))+1,255) -> G1.4 Rate 4 Bill Impact
C62: ='For Bill Impact(HideBeforeFile)'!C13 -> RATE 4 - General Service Peaking - Jan to Mar | F62: Current | H62: Proposed | J62: Bill Determinant | O62: Look-up
C66: =INDEX('For Bill Impact(HideBeforeFile)'!$D$48:$O$57,MATCH(C62,'For Bill Impact(HideBeforeFile)'!$C$62:$C$71,0),MATCH($O66,'For Bill Impact(HideBeforeFile)'!$D$61:$O$61,0)) -> Commodity | D66: =INDEX('For Bill Impact(HideBeforeFile)'!$D$62:$O$71,MATCH(C62,'For Bill Impact(HideBeforeFile)'!$C$62:$C$71,0),MATCH($O66,'For Bill Impact(HideBeforeFile)'!$D$61:$O$61,0)) -> cents / m3 | F66: =INDEX('For Bill Impact(HideBeforeFile)'!$D$6:$O$15,MATCH(C62,'For Bill Impact(HideBeforeFile)'!$C$62:$C$71,0),MATCH($O66,'For Bill Impact(HideBeforeFile)'!$D$61:$O$61,0)) -> 13.2642 | H66: =INDEX('For Bill Impact(HideBeforeFile)'!$D$20:$O$29,MATCH(C62,'For Bill Impact(HideBeforeFile)'!$C$62:$C$71,0),MATCH($O66,'For Bill Impact(HideBeforeFile)'!$D$61:$O$61,0)) -> 13.2642 | J66: =INDEX('For Bill Impact(HideBeforeFile)'!$D$34:$O$43,MATCH(C62,'For Bill Impact(HideBeforeFile)'!$C$62:$C$71,0),MATCH($O66,'For Bill Impact(HideBeforeFile)'!$D$61:$O$61,0)) -> 5327.969444 | O66: ='For Bill Impact(HideBeforeFile)'!$D$5 -> Commodity
C68: =INDEX('For Bill Impact(HideBeforeFile)'!$D$48:$O$57,MATCH(C62,'For Bill Impact(HideBeforeFile)'!$C$62:$C$71,0),MATCH($O68,'For Bill Impact(HideBeforeFile)'!$D$61:$O$61,0)) -> Customer (excl. Bill 32) | D68: =INDEX('For Bill Impact(HideBeforeFile)'!$D$62:$O$71,MATCH(C62,'For Bill Impact(HideBeforeFile)'!$C$62:$C$71,0),MATCH($O68,'For Bill Impact(HideBeforeFile)'!$D$61:$O$61,0)) -> $ / month | F68: =INDEX('For Bill Impact(HideBeforeFile)'!$D$6:$O$15,MATCH(C62,'For Bill Impact(HideBeforeFile)'!$C$62:$C$71,0),MATCH($O68,'For Bill Impact(HideBeforeFile)'!$D$61:$O$61,0)) -> 20 | H68: =INDEX('For Bill Impact(HideBeforeFile)'!$D$20:$O$29,MATCH(C62,'For Bill Impact(HideBeforeFile)'!$C$62:$C$71,0),MATCH($O68,'For Bill Impact(HideBeforeFile)'!$D$61:$O$61,0)) -> 20 | J68: =INDEX('For Bill Impact(HideBeforeFile)'!$D$34:$O$43,MATCH(C62,'For Bill Impact(HideBeforeFile)'!$C$62:$C$71,0),MATCH($O68,'For Bill Impact(HideBeforeFile)'!$D$61:$O$61,0)) -> 3 | O68: ='For Bill Impact(HideBeforeFile)'!$K$5 -> Dist. Customer Rate
C69: =INDEX('For Bill Impact(HideBeforeFile)'!$D$48:$O$57,MATCH(C62,'For Bill Impact(HideBeforeFile)'!$C$62:$C$71,0),MATCH($O69,'For Bill Impact(HideBeforeFile)'!$D$61:$O$61,0)) -> Block 1 (First 1,000 m3 per month) | D69: =INDEX('For Bill Impact(HideBeforeFile)'!$D$62:$O$71,MATCH(C62,'For Bill Impact(HideBeforeFile)'!$C$62:$C$71,0),MATCH($O69,'For Bill Impact(HideBeforeFile)'!$D$61:$O$61,0)) -> cents / m3 | F69: =INDEX('For Bill Impact(HideBeforeFile)'!$D$6:$O$15,MATCH(C62,'For Bill Impact(HideBeforeFile)'!$C$62:$C$71,0),MATCH($O69,'For Bill Impact(HideBeforeFile)'!$D$61:$O$61,0)) -> 23.299 | H69: =INDEX('For Bill Impact(HideBeforeFile)'!$D$20:$O$29,MATCH(C62,'For Bill Impact(HideBeforeFile)'!$C$62:$C$71,0),MATCH($O69,'For Bill Impact(HideBeforeFile)'!$D$61:$O$61,0)) -> 24.15127824 | J69: =INDEX('For Bill Impact(HideBeforeFile)'!$D$34:$O$43,MATCH(C62,'For Bill Impact(HideBeforeFile)'!$C$62:$C$71,0),MATCH($O69,'For Bill Impact(HideBeforeFile)'!$D$61:$O$61,0)) -> 954.2388889 | O69: ='For Bill Impact(HideBeforeFile)'!$L$5 -> Dist. Vol. Rate Tier 1
C70: =INDEX('For Bill Impact(HideBeforeFile)'!$D$48:$O$57,MATCH(C62,'For Bill Impact(HideBeforeFile)'!$C$62:$C$71,0),MATCH($O70,'For Bill Impact(HideBeforeFile)'!$D$61:$O$61,0)) -> Block 2 (Over 1,000 m3 per month) | D70: =INDEX('For Bill Impact(HideBeforeFile)'!$D$62:$O$71,MATCH(C62,'For Bill Impact(HideBeforeFile)'!$C$62:$C$71,0),MATCH($O70,'For Bill Impact(HideBeforeFile)'!$D$61:$O$61,0)) -> cents / m3 | F70: =INDEX('For Bill Impact(HideBeforeFile)'!$D$6:$O$15,MATCH(C62,'For Bill Impact(HideBeforeFile)'!$C$62:$C$71,0),MATCH($O70,'For Bill Impact(HideBeforeFile)'!$D$61:$O$61,0)) -> 18.004 | H70: =INDEX('For Bill Impact(HideBeforeFile)'!$D$20:$O$29,MATCH(C62,'For Bill Impact(HideBeforeFile)'!$C$62:$C$71,0),MATCH($O70,'For Bill Impact(HideBeforeFile)'!$D$61:$O$61,0)) -> 18.66266161 | J70: =INDEX('For Bill Impact(HideBeforeFile)'!$D$34:$O$43,MATCH(C62,'For Bill Impact(HideBeforeFile)'!$C$62:$C$71,0),MATCH($O70,'For Bill Impact(HideBeforeFile)'!$D$61:$O$61,0)) -> 4373.730556 | O70: ='For Bill Impact(HideBeforeFile)'!$M$5 -> Dist. Vol. Rate Tier 2
C71: =INDEX('For Bill Impact(HideBeforeFile)'!$D$48:$O$57,MATCH(C62,'For Bill Impact(HideBeforeFile)'!$C$62:$C$71,0),MATCH($O71,'For Bill Impact(HideBeforeFile)'!$D$61:$O$61,0)) ->  | D71: =INDEX('For Bill Impact(HideBeforeFile)'!$D$62:$O$71,MATCH(C62,'For Bill Impact(HideBeforeFile)'!$C$62:$C$71,0),MATCH($O71,'For Bill Impact(HideBeforeFile)'!$D$61:$O$61,0)) ->  | F71: =INDEX('For Bill Impact(HideBeforeFile)'!$D$6:$O$15,MATCH(C62,'For Bill Impact(HideBeforeFile)'!$C$62:$C$71,0),MATCH($O71,'For Bill Impact(HideBeforeFile)'!$D$61:$O$61,0)) ->  | H71: =INDEX('For Bill Impact(HideBeforeFile)'!$D$20:$O$29,MATCH(C62,'For Bill Impact(HideBeforeFile)'!$C$62:$C$71,0),MATCH($O71,'For Bill Impact(HideBeforeFile)'!$D$61:$O$61,0)) ->  | J71: =INDEX('For Bill Impact(HideBeforeFile)'!$D$34:$O$43,MATCH(C62,'For Bill Impact(HideBeforeFile)'!$C$62:$C$71,0),MATCH($O71,'For Bill Impact(HideBeforeFile)'!$D$61:$O$61,0)) ->  | O71: ='For Bill Impact(HideBeforeFile)'!$N$5 -> Dist. Vol. Rate Tier 3
C72: =INDEX('For Bill Impact(HideBeforeFile)'!$D$48:$O$57,MATCH(C62,'For Bill Impact(HideBeforeFile)'!$C$62:$C$71,0),MATCH($O72,'For Bill Impact(HideBeforeFile)'!$D$61:$O$61,0)) ->  | D72: =INDEX('For Bill Impact(HideBeforeFile)'!$D$62:$O$71,MATCH(C62,'For Bill Impact(HideBeforeFile)'!$C$62:$C$71,0),MATCH($O72,'For Bill Impact(HideBeforeFile)'!$D$61:$O$61,0)) ->  | F72: =INDEX('For Bill Impact(HideBeforeFile)'!$D$6:$O$15,MATCH(C62,'For Bill Impact(HideBeforeFile)'!$C$62:$C$71,0),MATCH($O72,'For Bill Impact(HideBeforeFile)'!$D$61:$O$61,0)) ->  | H72: =INDEX('For Bill Impact(HideBeforeFile)'!$D$20:$O$29,MATCH(C62,'For Bill Impact(HideBeforeFile)'!$C$62:$C$71,0),MATCH($O72,'For Bill Impact(HideBeforeFile)'!$D$61:$O$61,0)) ->  | J72: =INDEX('For Bill Impact(HideBeforeFile)'!$D$34:$O$43,MATCH(C62,'For Bill Impact(HideBeforeFile)'!$C$62:$C$71,0),MATCH($O72,'For Bill Impact(HideBeforeFile)'!$D$61:$O$61,0)) ->  | O72: ='For Bill Impact(HideBeforeFile)'!$O$5 -> Dist. Capacity Rate
C73: =INDEX('For Bill Impact(HideBeforeFile)'!$D$48:$O$57,MATCH(C62,'For Bill Impact(HideBeforeFile)'!$C$62:$C$71,0),MATCH($O73,'For Bill Impact(HideBeforeFile)'!$D$61:$O$61,0)) -> System Gas Charge | D73: =INDEX('For Bill Impact(HideBeforeFile)'!$D$62:$O$71,MATCH(C62,'For Bill Impact(HideBeforeFile)'!$C$62:$C$71,0),MATCH($O73,'For Bill Impact(HideBeforeFile)'!$D$61:$O$61,0)) -> cents / m3 | F73: =INDEX('For Bill Impact(HideBeforeFile)'!$D$6:$O$15,MATCH(C62,'For Bill Impact(HideBeforeFile)'!$C$62:$C$71,0),MATCH($O73,'For Bill Impact(HideBeforeFile)'!$D$61:$O$61,0)) -> 0.0435 | H73: =INDEX('For Bill Impact(HideBeforeFile)'!$D$20:$O$29,MATCH(C62,'For Bill Impact(HideBeforeFile)'!$C$62:$C$71,0),MATCH($O73,'For Bill Impact(HideBeforeFile)'!$D$61:$O$61,0)) -> 0.0435 | J73: =INDEX('For Bill Impact(HideBeforeFile)'!$D$34:$O$43,MATCH(C62,'For Bill Impact(HideBeforeFile)'!$C$62:$C$71,0),MATCH($O73,'For Bill Impact(HideBeforeFile)'!$D$61:$O$61,0)) -> 5327.969444 | O73: ='For Bill Impact(HideBeforeFile)'!$E$5 -> System Gas
C75: =INDEX('For Bill Impact(HideBeforeFile)'!$D$48:$O$57,MATCH(C62,'For Bill Impact(HideBeforeFile)'!$C$62:$C$71,0),MATCH($O75,'For Bill Impact(HideBeforeFile)'!$D$61:$O$61,0)) -> REDA | D75: =INDEX('For Bill Impact(HideBeforeFile)'!$D$62:$O$71,MATCH(C62,'For Bill Impact(HideBeforeFile)'!$C$62:$C$71,0),MATCH($O75,'For Bill Impact(HideBeforeFile)'!$D$61:$O$61,0)) -> $ / month | F75: =INDEX('For Bill Impact(HideBeforeFile)'!$D$6:$O$15,MATCH(C62,'For Bill Impact(HideBeforeFile)'!$C$62:$C$71,0),MATCH($O75,'For Bill Impact(HideBeforeFile)'!$D$61:$O$61,0)) -> 0.59 | H75: =INDEX('For Bill Impact(HideBeforeFile)'!$D$20:$O$29,MATCH(C62,'For Bill Impact(HideBeforeFile)'!$C$62:$C$71,0),MATCH($O75,'For Bill Impact(HideBeforeFile)'!$D$61:$O$61,0)) -> 0.7697128118 | J75: =INDEX('For Bill Impact(HideBeforeFile)'!$D$34:$O$43,MATCH(C62,'For Bill Impact(HideBeforeFile)'!$C$62:$C$71,0),MATCH($O75,'For Bill Impact(HideBeforeFile)'!$D$61:$O$61,0)) -> 3 | O75: ='For Bill Impact(HideBeforeFile)'!$F$5 -> REDA
C76: =INDEX('For Bill Impact(HideBeforeFile)'!$D$48:$O$57,MATCH(C62,'For Bill Impact(HideBeforeFile)'!$C$62:$C$71,0),MATCH($O76,'For Bill Impact(HideBeforeFile)'!$D$61:$O$61,0)) -> PGTVA | D76: =INDEX('For Bill Impact(HideBeforeFile)'!$D$62:$O$71,MATCH(C62,'For Bill Impact(HideBeforeFile)'!$C$62:$C$71,0),MATCH($O76,'For Bill Impact(HideBeforeFile)'!$D$61:$O$61,0)) -> cents / m3 | F76: =INDEX('For Bill Impact(HideBeforeFile)'!$D$6:$O$15,MATCH(C62,'For Bill Impact(HideBeforeFile)'!$C$62:$C$71,0),MATCH($O76,'For Bill Impact(HideBeforeFile)'!$D$61:$O$61,0)) -> 0.128 | H76: =INDEX('For Bill Impact(HideBeforeFile)'!$D$20:$O$29,MATCH(C62,'For Bill Impact(HideBeforeFile)'!$C$62:$C$71,0),MATCH($O76,'For Bill Impact(HideBeforeFile)'!$D$61:$O$61,0)) -> 0.3066442063 | J76: =INDEX('For Bill Impact(HideBeforeFile)'!$D$34:$O$43,MATCH(C62,'For Bill Impact(HideBeforeFile)'!$C$62:$C$71,0),MATCH($O76,'For Bill Impact(HideBeforeFile)'!$D$61:$O$61,0)) -> 5327.969444 | O76: ='For Bill Impact(HideBeforeFile)'!$G$5 -> PGTVA
C77: =INDEX('For Bill Impact(HideBeforeFile)'!$D$48:$O$57,MATCH(C62,'For Bill Impact(HideBeforeFile)'!$C$62:$C$71,0),MATCH($O77,'For Bill Impact(HideBeforeFile)'!$D$61:$O$61,0)) -> ADVADA | D77: =INDEX('For Bill Impact(HideBeforeFile)'!$D$62:$O$71,MATCH(C62,'For Bill Impact(HideBeforeFile)'!$C$62:$C$71,0),MATCH($O77,'For Bill Impact(HideBeforeFile)'!$D$61:$O$61,0)) -> cents / m3 | F77: =INDEX('For Bill Impact(HideBeforeFile)'!$D$6:$O$15,MATCH(C62,'For Bill Impact(HideBeforeFile)'!$C$62:$C$71,0),MATCH($O77,'For Bill Impact(HideBeforeFile)'!$D$61:$O$61,0)) ->  | H77: =INDEX('For Bill Impact(HideBeforeFile)'!$D$20:$O$29,MATCH(C62,'For Bill Impact(HideBeforeFile)'!$C$62:$C$71,0),MATCH($O77,'For Bill Impact(HideBeforeFile)'!$D$61:$O$61,0)) -> 0.1484182125 | J77: =INDEX('For Bill Impact(HideBeforeFile)'!$D$34:$O$43,MATCH(C62,'For Bill Impact(HideBeforeFile)'!$C$62:$C$71,0),MATCH($O77,'For Bill Impact(HideBeforeFile)'!$D$61:$O$61,0)) -> 5327.969444 | O77: ='For Bill Impact(HideBeforeFile)'!$H$5 -> ADVADA
C79: =INDEX('For Bill Impact(HideBeforeFile)'!$D$48:$O$57,MATCH(C62,'For Bill Impact(HideBeforeFile)'!$C$62:$C$71,0),MATCH($O79,'For Bill Impact(HideBeforeFile)'!$D$61:$O$61,0)) -> Federal Carbon | D79: =INDEX('For Bill Impact(HideBeforeFile)'!$D$62:$O$71,MATCH(C62,'For Bill Impact(HideBeforeFile)'!$C$62:$C$71,0),MATCH($O79,'For Bill Impact(HideBeforeFile)'!$D$61:$O$61,0)) -> cents / m3 | F79: =INDEX('For Bill Impact(HideBeforeFile)'!$D$6:$O$15,MATCH(C62,'For Bill Impact(HideBeforeFile)'!$C$62:$C$71,0),MATCH($O79,'For Bill Impact(HideBeforeFile)'!$D$61:$O$61,0)) -> 5.87 | H79: =INDEX('For Bill Impact(HideBeforeFile)'!$D$20:$O$29,MATCH(C62,'For Bill Impact(HideBeforeFile)'!$C$62:$C$71,0),MATCH($O79,'For Bill Impact(HideBeforeFile)'!$D$61:$O$61,0)) -> 5.87 | J79: =INDEX('For Bill Impact(HideBeforeFile)'!$D$34:$O$43,MATCH(C62,'For Bill Impact(HideBeforeFile)'!$C$62:$C$71,0),MATCH($O79,'For Bill Impact(HideBeforeFile)'!$D$61:$O$61,0)) -> 5327.969444 | O79: ='For Bill Impact(HideBeforeFile)'!$I$5 -> Federal Carbon
C80: =INDEX('For Bill Impact(HideBeforeFile)'!$D$48:$O$57,MATCH(C62,'For Bill Impact(HideBeforeFile)'!$C$62:$C$71,0),MATCH($O80,'For Bill Impact(HideBeforeFile)'!$D$61:$O$61,0)) -> Facility Carbon | D80: =INDEX('For Bill Impact(HideBeforeFile)'!$D$62:$O$71,MATCH(C62,'For Bill Impact(HideBeforeFile)'!$C$62:$C$71,0),MATCH($O80,'For Bill Impact(HideBeforeFile)'!$D$61:$O$61,0)) -> cents / m3 | F80: =INDEX('For Bill Impact(HideBeforeFile)'!$D$6:$O$15,MATCH(C62,'For Bill Impact(HideBeforeFile)'!$C$62:$C$71,0),MATCH($O80,'For Bill Impact(HideBeforeFile)'!$D$61:$O$61,0)) -> 0.0027 | H80: =INDEX('For Bill Impact(HideBeforeFile)'!$D$20:$O$29,MATCH(C62,'For Bill Impact(HideBeforeFile)'!$C$62:$C$71,0),MATCH($O80,'For Bill Impact(HideBeforeFile)'!$D$61:$O$61,0)) -> 0.0027 | J80: =INDEX('For Bill Impact(HideBeforeFile)'!$D$34:$O$43,MATCH(C62,'For Bill Impact(HideBeforeFile)'!$C$62:$C$71,0),MATCH($O80,'For Bill Impact(HideBeforeFile)'!$D$61:$O$61,0)) -> 5327.969444 | O80: ='For Bill Impact(HideBeforeFile)'!$J$5 -> Facility Carbon
C83: Commodity | F83: Current | H83: Proposed | J83: Change $ | L83: Change %
F84: =F66*$J66/100 -> 706.7125231 | H84: =H66*$J66/100 -> 706.7125231 | J84: =H84-F84 -> 0 | L84: =IFERROR(J84/F84,"") -> 0
C86: Delivery | F86: Current Rate | H86: Proposed Rate | J86: Change $ | L86: Change %
C87: =IF(C68<>"",C68,"") -> Customer (excl. Bill 32) | F87: =F68*$J68 -> 60 | H87: =H68*$J68 -> 60 | J87: =IFERROR(H87-F87,"") -> 0 | L87: =IFERROR(J87/F87,"") -> 0
C88: Bill 32 | F88: =J68 -> 3 | H88: =J68 -> 3 | J88: =IFERROR(H88-F88,"") -> 0 | L88: =IFERROR(J88/F88,"") -> 0
C89: =IF(C69<>"",C69,"") -> Block 1 (First 1,000 m3 per month) | F89: =IFERROR(F69*$J69/100,"") -> 222.3281187 | H89: =IFERROR(H69*$J69/100,"") -> 230.4608892 | J89: =IFERROR(H89-F89,"") -> 8.132770447 | L89: =IFERROR(J89/F89,"") -> 0.03658003537
C90: =IF(C70<>"",C70,"") -> Block 2 (Over 1,000 m3 per month) | F90: =IFERROR(F70*$J70/100,"") -> 787.4464492 | H90: =IFERROR(H70*$J70/100,"") -> 816.2545333 | J90: 28.80808404 | L90: 0.03658418178
C91: =IF(C71<>"",C71,"") ->  | F91: =IFERROR(F71*$J71/100,"") ->  | H91: =IFERROR(H71*$J71/100,"") -> 
C92: =IF(C72<>"",C72,"") ->  | F92: =IFERROR(F72*$J72/100,"") ->  | H92: =IFERROR(H72*$J72/100,"") -> 
C93: =IF(C73<>"",C73,"") -> System Gas Charge | F93: =IFERROR(F73*$J73/100,"") -> 2.317666708 | H93: =IFERROR(H73*$J73/100,"") -> 2.317666708 | J93: 0 | L93: 0
C94: Total Delivery | F94: =SUM(F87:F93) -> 1075.092235 | H94: =SUM(H87:H93) -> 1112.033089 | J94: =H94-F94 -> 36.94085449 | L94: =IF(ISERROR(J94/F94),0,J94/F94) -> 0.03436063744
C96: Rate Riders
C98: Rate Riders | F98: Current Rate | H98: Proposed Rate | J98: Change $ | L98: Change %
C99: REDA | F99: =F75*$J75 -> 1.77 | H99: =H75*$J75 -> 2.309138436 | J99: =IFERROR(H99-F99,"") -> 0.5391384355 | L99: =IFERROR(J99/F99,"") -> 0.3045979862
C100: PGTVA | F100: =IFERROR(F76*$J76/100,"") -> 6.819800889 | H100: =IFERROR(H76*$J76/100,"") -> 16.33790961 | J100: =IFERROR(H100-F100,"") -> 9.518108724 | L100: 1.395657861
C101: ADVADA | F101: =IFERROR(F77*$J77/100,"") ->  | H101: =IFERROR(H77*$J77/100,"") -> 7.90767701 | J101: =H101 -> 7.90767701 | L101: =J101/H101 -> 1
C102: Total Rate Riders | F102: =SUM(F99:F101) -> 8.589800889 | H102: =SUM(H99:H101) -> 26.55472506 | J102: =SUM(J99:J101) -> 17.96492417 | L102: =IF(ISERROR(J102/F102),0,J102/F102) -> 2.091424982
C104: Carbon Tax
C105: Federal Carbon | F105: =F79*$J79/100 -> 312.7518064 | H105: =H79*$J79/100 -> 312.7518064 | J105: =IFERROR(H105-F105,"") -> 0 | L105: =IFERROR(J105/F105,"") -> 0
C106: Facility Carbon | F106: =F80*$J80/100 -> 0.143855175 | H106: =H80*$J80/100 -> 0.143855175 | J106: =IFERROR(H106-F106,"") -> 0 | L106: 0
C107: Total Carbon Tax | F107: =SUM(F105:F106) -> 312.8956616 | H107: =SUM(H105:H106) -> 312.8956616 | J107: =SUM(J105:J106) -> 0 | L107: =IF(ISERROR(J107/F107),0,J107/F107) -> 0
C109: Total Bill Impact | F109: =SUM(F84,F94,F102,F107) -> 2103.29022 | H109: =SUM(H84,H94,H102,H107) -> 2158.195999 | J109: =SUM(J84,J94,J102,J107) -> 54.90577866 | L109: =IFERROR(J109/F109,"") -> 0.02610470877
C112: =MID(CELL("filename",A53),FIND("]",CELL("filename",A53))+1,255) -> G1.4 Rate 4 Bill Impact
C114: RATE 4 - General Service Peaking - Annual
C116: Commodity | F116: Current | H116: Proposed | J116: Change $ | L116: Change %
F117: =F32+F84 -> 6560.421369 | H117: =H32+H84 -> 6560.421369 | J117: =H117-F117 -> 0 | L117: =IFERROR(J117/F117,"") -> 0
C119: Delivery | F119: Current Rate | H119: Proposed Rate | J119: Change $ | L119: Change %
C120: =C35 -> Customer (excl. Bill 32) | F120: =IFERROR(F35+F87,"") -> 240 | H120: =IFERROR(H35+H87,"") -> 240 | J120: =IFERROR(H120-F120,"") -> 0 | L120: =IFERROR(J120/F120,"") -> 0
C121: Bill 32 | F121: 12 | H121: 12 | J121: =IFERROR(H121-F121,"") -> 0 | L121: =IFERROR(J121/F121,"") -> 0
C122: =C37 -> Block 1 (First 1,000 m3 per month) | F122: 662.5724489 | H122: 686.8073726 | J122: =IFERROR(H122-F122,"") -> 24.23492371 | L122: =IFERROR(J122/F122,"") -> 0.03657701698
C123: =C38 -> Block 2 (Over 1,000 m3 per month) | F123: 5462.588997 | H123: 5662.432044 | J123: 199.8430472 | L123: 0.0365839435
C124: =C39 -> 
C125: =C40 -> 
C126: =C41 -> System Gas Charge | F126: 21.51492963 | H126: 21.51492963 | J126: 0 | L126: 0
C127: Total Delivery | F127: =SUM(F120:F126) -> 6398.676376 | H127: =SUM(H120:H126) -> 6622.754346 | J127: =H127-F127 -> 224.0779709 | L127: =IF(ISERROR(J127/F127),0,J127/F127) -> 0.03501942555
C129: Rate Riders
C131: Rate Riders | F131: Current Rate | H131: Proposed Rate | J131: Change $ | L131: Change %
C132: REDA | F132: =IFERROR(F47+F99,"") -> 7.08 | H132: =IFERROR(H47+H99,"") -> 9.236553742 | J132: =IFERROR(H132-F132,"") -> 2.156553742 | L132: =IFERROR(J132/F132,"") -> 0.3045979862
C133: PGTVA | F133: =IFERROR(F48+F100,"") -> 63.30829867 | H133: =IFERROR(H48+H100,"") -> 151.6650234 | J133: =IFERROR(H133-F133,"") -> 88.35672473 | L133: 1.395657861
C134: ADVADA | F134: =IFERROR(F49+F101,"") ->  | H134: =IFERROR(H49+H101,"") -> 73.40706658 | J134: =H134 -> 73.40706658 | L134: =J134/H134 -> 1
C135: Total Rate Riders | F135: =SUM(F132:F134) -> 70.38829867 | H135: =SUM(H132:H134) -> 234.3086437 | J135: =SUM(J132:J134) -> 163.920345 | L135: =IF(ISERROR(J135/F135),0,J135/F135) -> 2.328801067
C137: Carbon Tax
C138: Federal Carbon | F138: =IFERROR(F53+F105,"") -> 2903.279009 | H138: =IFERROR(H53+H105,"") -> 2903.279009 | J138: =IFERROR(H138-F138,"") -> 0 | L138: =IFERROR(J138/F138,"") -> 0
C139: Facility Carbon | F139: =IFERROR(F54+F106,"") -> 1.335409425 | H139: =IFERROR(H54+H106,"") -> 1.335409425 | J139: =IFERROR(H139-F139,"") -> 0 | L139: 0
C140: Total Carbon Tax | F140: =SUM(F138:F139) -> 2904.614419 | H140: =SUM(H138:H139) -> 2904.614419 | J140: =SUM(J138:J139) -> 0 | L140: =IF(ISERROR(J140/F140),0,J140/F140) -> 0
C142: Total Bill Impact | F142: =SUM(F117,F127,F135,F140) -> 15934.10046 | H142: =SUM(H117,H127,H135,H140) -> 16322.09878 | J142: =SUM(J117,J127,J135,J140) -> 387.998316 | L142: =IFERROR(J142/F142,"") -> 0.02435018638
C145: =MID(CELL("filename",A105),FIND("]",CELL("filename",A105))+1,255) -> G1.4 Rate 4 Bill Impact

Sheet G1.5 Rate 5 Bill Impact
C2: ='A1.1 Distributor Information'!C3 -> Name of LDC: EPCOR Natural Gas Limited Partnership
C3: ='A1.1 Distributor Information'!C4 -> OEB Application Number: EB-2020-0234 Exhibit A - 2021 IRM Application
C7: Rate 5 Delivery Bill Impact
C10: ='For Bill Impact(HideBeforeFile)'!C14 -> RATE 5 - Interruptible Peaking Contract Rate | F10: Current | H10: Proposed | J10: Bill Determinant | O10: Look-up
C14: =INDEX('For Bill Impact(HideBeforeFile)'!$D$48:$O$57,MATCH(C10,'For Bill Impact(HideBeforeFile)'!$C$62:$C$71,0),MATCH($O14,'For Bill Impact(HideBeforeFile)'!$D$61:$O$61,0)) -> Commodity | D14: =INDEX('For Bill Impact(HideBeforeFile)'!$D$62:$O$71,MATCH(C10,'For Bill Impact(HideBeforeFile)'!$C$62:$C$71,0),MATCH($O14,'For Bill Impact(HideBeforeFile)'!$D$61:$O$61,0)) -> cents / m3 | F14: =INDEX('For Bill Impact(HideBeforeFile)'!$D$6:$O$15,MATCH(C10,'For Bill Impact(HideBeforeFile)'!$C$62:$C$71,0),MATCH($O14,'For Bill Impact(HideBeforeFile)'!$D$61:$O$61,0)) -> 13.2642 | H14: =INDEX('For Bill Impact(HideBeforeFile)'!$D$20:$O$29,MATCH(C10,'For Bill Impact(HideBeforeFile)'!$C$62:$C$71,0),MATCH($O14,'For Bill Impact(HideBeforeFile)'!$D$61:$O$61,0)) -> 13.2642 | J14: =INDEX('For Bill Impact(HideBeforeFile)'!$D$34:$O$43,MATCH(C10,'For Bill Impact(HideBeforeFile)'!$C$62:$C$71,0),MATCH($O14,'For Bill Impact(HideBeforeFile)'!$D$61:$O$61,0)) -> 198871.1 | O14: ='For Bill Impact(HideBeforeFile)'!$D$5 -> Commodity
C16: =INDEX('For Bill Impact(HideBeforeFile)'!$D$48:$O$57,MATCH(C10,'For Bill Impact(HideBeforeFile)'!$C$62:$C$71,0),MATCH($O16,'For Bill Impact(HideBeforeFile)'!$D$61:$O$61,0)) -> Customer (excl. Bill 32) | D16: =INDEX('For Bill Impact(HideBeforeFile)'!$D$62:$O$71,MATCH(C10,'For Bill Impact(HideBeforeFile)'!$C$62:$C$71,0),MATCH($O16,'For Bill Impact(HideBeforeFile)'!$D$61:$O$61,0)) -> $ / month | F16: =INDEX('For Bill Impact(HideBeforeFile)'!$D$6:$O$15,MATCH(C10,'For Bill Impact(HideBeforeFile)'!$C$62:$C$71,0),MATCH($O16,'For Bill Impact(HideBeforeFile)'!$D$61:$O$61,0)) -> 190 | H16: =INDEX('For Bill Impact(HideBeforeFile)'!$D$20:$O$29,MATCH(C10,'For Bill Impact(HideBeforeFile)'!$C$62:$C$71,0),MATCH($O16,'For Bill Impact(HideBeforeFile)'!$D$61:$O$61,0)) -> 190 | J16: =INDEX('For Bill Impact(HideBeforeFile)'!$D$34:$O$43,MATCH(C10,'For Bill Impact(HideBeforeFile)'!$C$62:$C$71,0),MATCH($O16,'For Bill Impact(HideBeforeFile)'!$D$61:$O$61,0)) -> 12 | O16: ='For Bill Impact(HideBeforeFile)'!$K$5 -> Dist. Customer Rate
C17: =INDEX('For Bill Impact(HideBeforeFile)'!$D$48:$O$57,MATCH(C10,'For Bill Impact(HideBeforeFile)'!$C$62:$C$71,0),MATCH($O17,'For Bill Impact(HideBeforeFile)'!$D$61:$O$61,0)) -> Delivery - Firm | D17: =INDEX('For Bill Impact(HideBeforeFile)'!$D$62:$O$71,MATCH(C10,'For Bill Impact(HideBeforeFile)'!$C$62:$C$71,0),MATCH($O17,'For Bill Impact(HideBeforeFile)'!$D$61:$O$61,0)) -> cents / m3 | F17: =INDEX('For Bill Impact(HideBeforeFile)'!$D$6:$O$15,MATCH(C10,'For Bill Impact(HideBeforeFile)'!$C$62:$C$71,0),MATCH($O17,'For Bill Impact(HideBeforeFile)'!$D$61:$O$61,0)) -> 7.512217882 | H17: =INDEX('For Bill Impact(HideBeforeFile)'!$D$20:$O$29,MATCH(C10,'For Bill Impact(HideBeforeFile)'!$C$62:$C$71,0),MATCH($O17,'For Bill Impact(HideBeforeFile)'!$D$61:$O$61,0)) -> 7.802674599 | J17: =INDEX('For Bill Impact(HideBeforeFile)'!$D$34:$O$43,MATCH(C10,'For Bill Impact(HideBeforeFile)'!$C$62:$C$71,0),MATCH($O17,'For Bill Impact(HideBeforeFile)'!$D$61:$O$61,0)) -> 198871.1 | O17: ='For Bill Impact(HideBeforeFile)'!$L$5 -> Dist. Vol. Rate Tier 1
C18: =INDEX('For Bill Impact(HideBeforeFile)'!$D$48:$O$57,MATCH(C10,'For Bill Impact(HideBeforeFile)'!$C$62:$C$71,0),MATCH($O18,'For Bill Impact(HideBeforeFile)'!$D$61:$O$61,0)) ->  | D18: =INDEX('For Bill Impact(HideBeforeFile)'!$D$62:$O$71,MATCH(C10,'For Bill Impact(HideBeforeFile)'!$C$62:$C$71,0),MATCH($O18,'For Bill Impact(HideBeforeFile)'!$D$61:$O$61,0)) ->  | F18: =INDEX('For Bill Impact(HideBeforeFile)'!$D$6:$O$15,MATCH(C10,'For Bill Impact(HideBeforeFile)'!$C$62:$C$71,0),MATCH($O18,'For Bill Impact(HideBeforeFile)'!$D$61:$O$61,0)) ->  | H18: =INDEX('For Bill Impact(HideBeforeFile)'!$D$20:$O$29,MATCH(C10,'For Bill Impact(HideBeforeFile)'!$C$62:$C$71,0),MATCH($O18,'For Bill Impact(HideBeforeFile)'!$D$61:$O$61,0)) ->  | J18: =INDEX('For Bill Impact(HideBeforeFile)'!$D$34:$O$43,MATCH(C10,'For Bill Impact(HideBeforeFile)'!$C$62:$C$71,0),MATCH($O18,'For Bill Impact(HideBeforeFile)'!$D$61:$O$61,0)) ->  | O18: ='For Bill Impact(HideBeforeFile)'!$M$5 -> Dist. Vol. Rate Tier 2
C19: =INDEX('For Bill Impact(HideBeforeFile)'!$D$48:$O$57,MATCH(C10,'For Bill Impact(HideBeforeFile)'!$C$62:$C$71,0),MATCH($O19,'For Bill Impact(HideBeforeFile)'!$D$61:$O$61,0)) ->  | D19: =INDEX('For Bill Impact(HideBeforeFile)'!$D$62:$O$71,MATCH(C10,'For Bill Impact(HideBeforeFile)'!$C$62:$C$71,0),MATCH($O19,'For Bill Impact(HideBeforeFile)'!$D$61:$O$61,0)) ->  | F19: =INDEX('For Bill Impact(HideBeforeFile)'!$D$6:$O$15,MATCH(C10,'For Bill Impact(HideBeforeFile)'!$C$62:$C$71,0),MATCH($O19,'For Bill Impact(HideBeforeFile)'!$D$61:$O$61,0)) ->  | H19: =INDEX('For Bill Impact(HideBeforeFile)'!$D$20:$O$29,MATCH(C10,'For Bill Impact(HideBeforeFile)'!$C$62:$C$71,0),MATCH($O19,'For Bill Impact(HideBeforeFile)'!$D$61:$O$61,0)) ->  | J19: =INDEX('For Bill Impact(HideBeforeFile)'!$D$34:$O$43,MATCH(C10,'For Bill Impact(HideBeforeFile)'!$C$62:$C$71,0),MATCH($O19,'For Bill Impact(HideBeforeFile)'!$D$61:$O$61,0)) ->  | O19: ='For Bill Impact(HideBeforeFile)'!$N$5 -> Dist. Vol. Rate Tier 3
C20: =INDEX('For Bill Impact(HideBeforeFile)'!$D$48:$O$57,MATCH(C10,'For Bill Impact(HideBeforeFile)'!$C$62:$C$71,0),MATCH($O20,'For Bill Impact(HideBeforeFile)'!$D$61:$O$61,0)) ->  | D20: =INDEX('For Bill Impact(HideBeforeFile)'!$D$62:$O$71,MATCH(C10,'For Bill Impact(HideBeforeFile)'!$C$62:$C$71,0),MATCH($O20,'For Bill Impact(HideBeforeFile)'!$D$61:$O$61,0)) ->  | F20: =INDEX('For Bill Impact(HideBeforeFile)'!$D$6:$O$15,MATCH(C10,'For Bill Impact(HideBeforeFile)'!$C$62:$C$71,0),MATCH($O20,'For Bill Impact(HideBeforeFile)'!$D$61:$O$61,0)) ->  | H20: =INDEX('For Bill Impact(HideBeforeFile)'!$D$20:$O$29,MATCH(C10,'For Bill Impact(HideBeforeFile)'!$C$62:$C$71,0),MATCH($O20,'For Bill Impact(HideBeforeFile)'!$D$61:$O$61,0)) ->  | J20: =INDEX('For Bill Impact(HideBeforeFile)'!$D$34:$O$43,MATCH(C10,'For Bill Impact(HideBeforeFile)'!$C$62:$C$71,0),MATCH($O20,'For Bill Impact(HideBeforeFile)'!$D$61:$O$61,0)) ->  | O20: ='For Bill Impact(HideBeforeFile)'!$O$5 -> Dist. Capacity Rate
C21: =INDEX('For Bill Impact(HideBeforeFile)'!$D$48:$O$57,MATCH(C10,'For Bill Impact(HideBeforeFile)'!$C$62:$C$71,0),MATCH($O21,'For Bill Impact(HideBeforeFile)'!$D$61:$O$61,0)) -> System Gas Charge | D21: =INDEX('For Bill Impact(HideBeforeFile)'!$D$62:$O$71,MATCH(C10,'For Bill Impact(HideBeforeFile)'!$C$62:$C$71,0),MATCH($O21,'For Bill Impact(HideBeforeFile)'!$D$61:$O$61,0)) -> cents / m3 | F21: =INDEX('For Bill Impact(HideBeforeFile)'!$D$6:$O$15,MATCH(C10,'For Bill Impact(HideBeforeFile)'!$C$62:$C$71,0),MATCH($O21,'For Bill Impact(HideBeforeFile)'!$D$61:$O$61,0)) -> 0.0435 | H21: =INDEX('For Bill Impact(HideBeforeFile)'!$D$20:$O$29,MATCH(C10,'For Bill Impact(HideBeforeFile)'!$C$62:$C$71,0),MATCH($O21,'For Bill Impact(HideBeforeFile)'!$D$61:$O$61,0)) -> 0.0435 | J21: =INDEX('For Bill Impact(HideBeforeFile)'!$D$34:$O$43,MATCH(C10,'For Bill Impact(HideBeforeFile)'!$C$62:$C$71,0),MATCH($O21,'For Bill Impact(HideBeforeFile)'!$D$61:$O$61,0)) -> 198871.1 | O21: ='For Bill Impact(HideBeforeFile)'!$E$5 -> System Gas
C23: =INDEX('For Bill Impact(HideBeforeFile)'!$D$48:$O$57,MATCH(C10,'For Bill Impact(HideBeforeFile)'!$C$62:$C$71,0),MATCH($O23,'For Bill Impact(HideBeforeFile)'!$D$61:$O$61,0)) -> REDA | D23: =INDEX('For Bill Impact(HideBeforeFile)'!$D$62:$O$71,MATCH(C10,'For Bill Impact(HideBeforeFile)'!$C$62:$C$71,0),MATCH($O23,'For Bill Impact(HideBeforeFile)'!$D$61:$O$61,0)) -> $ / month | F23: =INDEX('For Bill Impact(HideBeforeFile)'!$D$6:$O$15,MATCH(C10,'For Bill Impact(HideBeforeFile)'!$C$62:$C$71,0),MATCH($O23,'For Bill Impact(HideBeforeFile)'!$D$61:$O$61,0)) -> 0.59 | H23: =INDEX('For Bill Impact(HideBeforeFile)'!$D$20:$O$29,MATCH(C10,'For Bill Impact(HideBeforeFile)'!$C$62:$C$71,0),MATCH($O23,'For Bill Impact(HideBeforeFile)'!$D$61:$O$61,0)) -> 0.7697128118 | J23: =INDEX('For Bill Impact(HideBeforeFile)'!$D$34:$O$43,MATCH(C10,'For Bill Impact(HideBeforeFile)'!$C$62:$C$71,0),MATCH($O23,'For Bill Impact(HideBeforeFile)'!$D$61:$O$61,0)) -> 12 | O23: ='For Bill Impact(HideBeforeFile)'!$F$5 -> REDA
C24: =INDEX('For Bill Impact(HideBeforeFile)'!$D$48:$O$57,MATCH(C10,'For Bill Impact(HideBeforeFile)'!$C$62:$C$71,0),MATCH($O24,'For Bill Impact(HideBeforeFile)'!$D$61:$O$61,0)) -> PGTVA | D24: =INDEX('For Bill Impact(HideBeforeFile)'!$D$62:$O$71,MATCH(C10,'For Bill Impact(HideBeforeFile)'!$C$62:$C$71,0),MATCH($O24,'For Bill Impact(HideBeforeFile)'!$D$61:$O$61,0)) -> cents / m3 | F24: =INDEX('For Bill Impact(HideBeforeFile)'!$D$6:$O$15,MATCH(C10,'For Bill Impact(HideBeforeFile)'!$C$62:$C$71,0),MATCH($O24,'For Bill Impact(HideBeforeFile)'!$D$61:$O$61,0)) -> 0.128 | H24: =INDEX('For Bill Impact(HideBeforeFile)'!$D$20:$O$29,MATCH(C10,'For Bill Impact(HideBeforeFile)'!$C$62:$C$71,0),MATCH($O24,'For Bill Impact(HideBeforeFile)'!$D$61:$O$61,0)) -> 0.3066442063 | J24: =INDEX('For Bill Impact(HideBeforeFile)'!$D$34:$O$43,MATCH(C10,'For Bill Impact(HideBeforeFile)'!$C$62:$C$71,0),MATCH($O24,'For Bill Impact(HideBeforeFile)'!$D$61:$O$61,0)) -> 198871.1 | O24: ='For Bill Impact(HideBeforeFile)'!$G$5 -> PGTVA
C25: =INDEX('For Bill Impact(HideBeforeFile)'!$D$48:$O$57,MATCH(C10,'For Bill Impact(HideBeforeFile)'!$C$62:$C$71,0),MATCH($O25,'For Bill Impact(HideBeforeFile)'!$D$61:$O$61,0)) -> ADVADA | D25: =INDEX('For Bill Impact(HideBeforeFile)'!$D$62:$O$71,MATCH(C10,'For Bill Impact(HideBeforeFile)'!$C$62:$C$71,0),MATCH($O25,'For Bill Impact(HideBeforeFile)'!$D$61:$O$61,0)) -> cents / m3 | F25: =INDEX('For Bill Impact(HideBeforeFile)'!$D$6:$O$15,MATCH(C10,'For Bill Impact(HideBeforeFile)'!$C$62:$C$71,0),MATCH($O25,'For Bill Impact(HideBeforeFile)'!$D$61:$O$61,0)) ->  | H25: =INDEX('For Bill Impact(HideBeforeFile)'!$D$20:$O$29,MATCH(C10,'For Bill Impact(HideBeforeFile)'!$C$62:$C$71,0),MATCH($O25,'For Bill Impact(HideBeforeFile)'!$D$61:$O$61,0)) -> 0.1484182125 | J25: =INDEX('For Bill Impact(HideBeforeFile)'!$D$34:$O$43,MATCH(C10,'For Bill Impact(HideBeforeFile)'!$C$62:$C$71,0),MATCH($O25,'For Bill Impact(HideBeforeFile)'!$D$61:$O$61,0)) -> 198871.1 | O25: ='For Bill Impact(HideBeforeFile)'!$H$5 -> ADVADA
C27: =INDEX('For Bill Impact(HideBeforeFile)'!$D$48:$O$57,MATCH(C10,'For Bill Impact(HideBeforeFile)'!$C$62:$C$71,0),MATCH($O27,'For Bill Impact(HideBeforeFile)'!$D$61:$O$61,0)) -> Federal Carbon | D27: =INDEX('For Bill Impact(HideBeforeFile)'!$D$62:$O$71,MATCH(C10,'For Bill Impact(HideBeforeFile)'!$C$62:$C$71,0),MATCH($O27,'For Bill Impact(HideBeforeFile)'!$D$61:$O$61,0)) -> cents / m3 | F27: =INDEX('For Bill Impact(HideBeforeFile)'!$D$6:$O$15,MATCH(C10,'For Bill Impact(HideBeforeFile)'!$C$62:$C$71,0),MATCH($O27,'For Bill Impact(HideBeforeFile)'!$D$61:$O$61,0)) -> 5.87 | H27: =INDEX('For Bill Impact(HideBeforeFile)'!$D$20:$O$29,MATCH(C10,'For Bill Impact(HideBeforeFile)'!$C$62:$C$71,0),MATCH($O27,'For Bill Impact(HideBeforeFile)'!$D$61:$O$61,0)) -> 5.87 | J27: =INDEX('For Bill Impact(HideBeforeFile)'!$D$34:$O$43,MATCH(C10,'For Bill Impact(HideBeforeFile)'!$C$62:$C$71,0),MATCH($O27,'For Bill Impact(HideBeforeFile)'!$D$61:$O$61,0)) -> 198871.1 | O27: ='For Bill Impact(HideBeforeFile)'!$I$5 -> Federal Carbon
C28: =INDEX('For Bill Impact(HideBeforeFile)'!$D$48:$O$57,MATCH(C10,'For Bill Impact(HideBeforeFile)'!$C$62:$C$71,0),MATCH($O28,'For Bill Impact(HideBeforeFile)'!$D$61:$O$61,0)) -> Facility Carbon | D28: =INDEX('For Bill Impact(HideBeforeFile)'!$D$62:$O$71,MATCH(C10,'For Bill Impact(HideBeforeFile)'!$C$62:$C$71,0),MATCH($O28,'For Bill Impact(HideBeforeFile)'!$D$61:$O$61,0)) -> cents / m3 | F28: =INDEX('For Bill Impact(HideBeforeFile)'!$D$6:$O$15,MATCH(C10,'For Bill Impact(HideBeforeFile)'!$C$62:$C$71,0),MATCH($O28,'For Bill Impact(HideBeforeFile)'!$D$61:$O$61,0)) -> 0.0027 | H28: =INDEX('For Bill Impact(HideBeforeFile)'!$D$20:$O$29,MATCH(C10,'For Bill Impact(HideBeforeFile)'!$C$62:$C$71,0),MATCH($O28,'For Bill Impact(HideBeforeFile)'!$D$61:$O$61,0)) -> 0.0027 | J28: =INDEX('For Bill Impact(HideBeforeFile)'!$D$34:$O$43,MATCH(C10,'For Bill Impact(HideBeforeFile)'!$C$62:$C$71,0),MATCH($O28,'For Bill Impact(HideBeforeFile)'!$D$61:$O$61,0)) -> 198871.1 | O28: ='For Bill Impact(HideBeforeFile)'!$J$5 -> Facility Carbon
C31: Commodity | F31: Current | H31: Proposed | J31: Change $ | L31: Change %
F32: =F14*$J14/100 -> 26378.66045 | H32: =H14*$J14/100 -> 26378.66045 | J32: =H32-F32 -> 0 | L32: =IFERROR(J32/F32,"") -> 0 | O32: ='For Bill Impact(HideBeforeFile)'!$D$5 -> Commodity
C34: Delivery | F34: Current Rate | H34: Proposed Rate | J34: Change $ | L34: Change %
C35: =IF(C16<>"",C16,"") -> Customer (excl. Bill 32) | F35: =F16*$J16 -> 2280 | H35: =H16*$J16 -> 2280 | J35: =IFERROR(H35-F35,"") -> 0 | L35: =IFERROR(J35/F35,"") -> 0 | O35: ='For Bill Impact(HideBeforeFile)'!$K$5 -> Dist. Customer Rate
C36: Bill 32 | F36: 12 | H36: 12 | J36: =IFERROR(H36-F36,"") -> 0 | L36: =IFERROR(J36/F36,"") -> 0
C37: =IF(C17<>"",C17,"") -> Delivery - Firm | F37: =IFERROR(F17*$J17/100,"") -> 14939.63034 | H37: =IFERROR(H17*$J17/100,"") -> 15517.2648 | J37: =IFERROR(H37-F37,"") -> 577.6344669 | L37: =IFERROR(J37/F37,"") -> 0.03866457562 | O37: ='For Bill Impact(HideBeforeFile)'!$L$5 -> Dist. Vol. Rate Tier 1
C38: =IF(C18<>"",C18,"") ->  | F38: =IFERROR(F18*$J18/100,"") ->  | H38: =IFERROR(H18*$J18/100,"") ->  | O38: ='For Bill Impact(HideBeforeFile)'!$M$5 -> Dist. Vol. Rate Tier 2
C39: =IF(C19<>"",C19,"") ->  | F39: =IFERROR(F19*$J19/100,"") ->  | H39: =IFERROR(H19*$J19/100,"") ->  | O39: ='For Bill Impact(HideBeforeFile)'!$N$5 -> Dist. Vol. Rate Tier 3
C40: =IF(C20<>"",C20,"") ->  | F40: =IFERROR(F20*$J20/100,"") ->  | H40: =IFERROR(H20*$J20/100,"") ->  | O40: ='For Bill Impact(HideBeforeFile)'!$O$5 -> Dist. Capacity Rate
C41: =IF(C21<>"",C21,"") -> System Gas Charge | F41: =IFERROR(F21*$J21/100,"") -> 86.5089285 | H41: =IFERROR(H21*$J21/100,"") -> 86.5089285 | J41: 0 | L41: 0 | O41: ='For Bill Impact(HideBeforeFile)'!$E$5 -> System Gas
C42: Total Delivery | F42: =SUM(F35:F41) -> 17318.13927 | H42: =SUM(H35:H41) -> 17895.77373 | J42: =H42-F42 -> 577.6344669 | L42: =IF(ISERROR(J42/F42),0,J42/F42) -> 0.03335430314
C44: Rate Riders
C46: Rate Riders | F46: Current Rate | H46: Proposed Rate | J46: Change $ | L46: Change %
C47: REDA | F47: =F23*$J23 -> 7.08 | H47: =H23*$J23 -> 9.236553742 | J47: =IFERROR(H47-F47,"") -> 2.156553742 | L47: =IFERROR(J47/F47,"") -> 0.3045979862 | O47: ='For Bill Impact(HideBeforeFile)'!$F$5 -> REDA
C48: PGTVA | F48: =IFERROR(F24*$J24/100,"") -> 254.555008 | H48: =IFERROR(H24*$J24/100,"") -> 609.8267061 | J48: =IFERROR(H48-F48,"") -> 355.2716981 | L48: 1.395657861 | O48: ='For Bill Impact(HideBeforeFile)'!$G$5 -> PGTVA
C49: ADVADA | F49: =IFERROR(F25*$J25/100,"") ->  | H49: =IFERROR(H25*$J25/100,"") -> 295.1609317 | J49: =H49 -> 295.1609317 | L49: =J49/H49 -> 1 | O49: ='For Bill Impact(HideBeforeFile)'!$H$5 -> ADVADA
C50: Total Rate Riders | F50: =SUM(F47:F49) -> 261.635008 | H50: =SUM(H47:H49) -> 914.2241915 | J50: =SUM(J47:J49) -> 652.5891835 | L50: =IF(ISERROR(J50/F50),0,J50/F50) -> 2.49427318
C52: Carbon Tax
C53: Federal Carbon | F53: =F27*$J27/100 -> 11673.73357 | H53: =H27*$J27/100 -> 11673.73357 | J53: =IFERROR(H53-F53,"") -> 0 | L53: =IFERROR(J53/F53,"") -> 0
C54: Facility Carbon | F54: =F28*$J28/100 -> 5.3695197 | H54: =H28*$J28/100 -> 5.3695197 | J54: =IFERROR(H54-F54,"") -> 0 | L54: 0
C55: Total Carbon Tax | F55: =SUM(F53:F54) -> 11679.10309 | H55: =SUM(H53:H54) -> 11679.10309 | J55: =SUM(J53:J54) -> 0 | L55: =IF(ISERROR(J55/F55),0,J55/F55) -> 0
C57: Total Bill Impact | F57: =SUM(F32,F42,F50,F55) -> 55637.53781 | H57: =SUM(H32,H42,H50,H55) -> 56867.76146 | J57: =SUM(J32,J42,J50,J55) -> 1230.22365 | L57: =IFERROR(J57/F57,"") -> 0.02211139635
C60: =MID(CELL("filename",A1),FIND("]",CELL("filename",A1))+1,255) -> G1.5 Rate 5 Bill Impact

Sheet G1.6 Rate 6 Bill Impact
C2: ='A1.1 Distributor Information'!C3 -> Name of LDC: EPCOR Natural Gas Limited Partnership
C3: ='A1.1 Distributor Information'!C4 -> OEB Application Number: EB-2020-0234 Exhibit A - 2021 IRM Application
C7: Rate 6 Delivery Bill Impact
C10: ='For Bill Impact(HideBeforeFile)'!C15 -> RATE 6 - Integrated Grain Processors Co-Operative Aylmer Ethanol Production Facility | F10: Current | H10: Proposed | J10: Bill Determinant | O10: Look-up
C14: =INDEX('For Bill Impact(HideBeforeFile)'!$D$48:$O$57,MATCH(C10,'For Bill Impact(HideBeforeFile)'!$C$62:$C$71,0),MATCH($O14,'For Bill Impact(HideBeforeFile)'!$D$61:$O$61,0)) ->  | D14: =INDEX('For Bill Impact(HideBeforeFile)'!$D$62:$O$71,MATCH(C10,'For Bill Impact(HideBeforeFile)'!$C$62:$C$71,0),MATCH($O14,'For Bill Impact(HideBeforeFile)'!$D$61:$O$61,0)) ->  | F14: =INDEX('For Bill Impact(HideBeforeFile)'!$D$6:$O$15,MATCH(C10,'For Bill Impact(HideBeforeFile)'!$C$62:$C$71,0),MATCH($O14,'For Bill Impact(HideBeforeFile)'!$D$61:$O$61,0)) ->  | H14: =INDEX('For Bill Impact(HideBeforeFile)'!$D$20:$O$29,MATCH(C10,'For Bill Impact(HideBeforeFile)'!$C$62:$C$71,0),MATCH($O14,'For Bill Impact(HideBeforeFile)'!$D$61:$O$61,0)) ->  | J14: =INDEX('For Bill Impact(HideBeforeFile)'!$D$34:$O$43,MATCH(C10,'For Bill Impact(HideBeforeFile)'!$C$62:$C$71,0),MATCH($O14,'For Bill Impact(HideBeforeFile)'!$D$61:$O$61,0)) ->  | O14: ='For Bill Impact(HideBeforeFile)'!$D$5 -> Commodity
C16: =INDEX('For Bill Impact(HideBeforeFile)'!$D$48:$O$57,MATCH(C10,'For Bill Impact(HideBeforeFile)'!$C$62:$C$71,0),MATCH($O16,'For Bill Impact(HideBeforeFile)'!$D$61:$O$61,0)) -> Customer (excl. Bill 32) | D16: =INDEX('For Bill Impact(HideBeforeFile)'!$D$62:$O$71,MATCH(C10,'For Bill Impact(HideBeforeFile)'!$C$62:$C$71,0),MATCH($O16,'For Bill Impact(HideBeforeFile)'!$D$61:$O$61,0)) -> $ / month | F16: =INDEX('For Bill Impact(HideBeforeFile)'!$D$6:$O$15,MATCH(C10,'For Bill Impact(HideBeforeFile)'!$C$62:$C$71,0),MATCH($O16,'For Bill Impact(HideBeforeFile)'!$D$61:$O$61,0)) -> 61229.92 | H16: =INDEX('For Bill Impact(HideBeforeFile)'!$D$20:$O$29,MATCH(C10,'For Bill Impact(HideBeforeFile)'!$C$62:$C$71,0),MATCH($O16,'For Bill Impact(HideBeforeFile)'!$D$61:$O$61,0)) -> 62332.05856 | J16: =INDEX('For Bill Impact(HideBeforeFile)'!$D$34:$O$43,MATCH(C10,'For Bill Impact(HideBeforeFile)'!$C$62:$C$71,0),MATCH($O16,'For Bill Impact(HideBeforeFile)'!$D$61:$O$61,0)) -> 12 | O16: ='For Bill Impact(HideBeforeFile)'!$K$5 -> Dist. Customer Rate
C17: =INDEX('For Bill Impact(HideBeforeFile)'!$D$48:$O$57,MATCH(C10,'For Bill Impact(HideBeforeFile)'!$C$62:$C$71,0),MATCH($O17,'For Bill Impact(HideBeforeFile)'!$D$61:$O$61,0)) ->  | D17: =INDEX('For Bill Impact(HideBeforeFile)'!$D$62:$O$71,MATCH(C10,'For Bill Impact(HideBeforeFile)'!$C$62:$C$71,0),MATCH($O17,'For Bill Impact(HideBeforeFile)'!$D$61:$O$61,0)) ->  | F17: =INDEX('For Bill Impact(HideBeforeFile)'!$D$6:$O$15,MATCH(C10,'For Bill Impact(HideBeforeFile)'!$C$62:$C$71,0),MATCH($O17,'For Bill Impact(HideBeforeFile)'!$D$61:$O$61,0)) ->  | H17: =INDEX('For Bill Impact(HideBeforeFile)'!$D$20:$O$29,MATCH(C10,'For Bill Impact(HideBeforeFile)'!$C$62:$C$71,0),MATCH($O17,'For Bill Impact(HideBeforeFile)'!$D$61:$O$61,0)) ->  | J17: =INDEX('For Bill Impact(HideBeforeFile)'!$D$34:$O$43,MATCH(C10,'For Bill Impact(HideBeforeFile)'!$C$62:$C$71,0),MATCH($O17,'For Bill Impact(HideBeforeFile)'!$D$61:$O$61,0)) ->  | O17: ='For Bill Impact(HideBeforeFile)'!$L$5 -> Dist. Vol. Rate Tier 1
C18: =INDEX('For Bill Impact(HideBeforeFile)'!$D$48:$O$57,MATCH(C10,'For Bill Impact(HideBeforeFile)'!$C$62:$C$71,0),MATCH($O18,'For Bill Impact(HideBeforeFile)'!$D$61:$O$61,0)) ->  | D18: =INDEX('For Bill Impact(HideBeforeFile)'!$D$62:$O$71,MATCH(C10,'For Bill Impact(HideBeforeFile)'!$C$62:$C$71,0),MATCH($O18,'For Bill Impact(HideBeforeFile)'!$D$61:$O$61,0)) ->  | F18: =INDEX('For Bill Impact(HideBeforeFile)'!$D$6:$O$15,MATCH(C10,'For Bill Impact(HideBeforeFile)'!$C$62:$C$71,0),MATCH($O18,'For Bill Impact(HideBeforeFile)'!$D$61:$O$61,0)) ->  | H18: =INDEX('For Bill Impact(HideBeforeFile)'!$D$20:$O$29,MATCH(C10,'For Bill Impact(HideBeforeFile)'!$C$62:$C$71,0),MATCH($O18,'For Bill Impact(HideBeforeFile)'!$D$61:$O$61,0)) ->  | J18: =INDEX('For Bill Impact(HideBeforeFile)'!$D$34:$O$43,MATCH(C10,'For Bill Impact(HideBeforeFile)'!$C$62:$C$71,0),MATCH($O18,'For Bill Impact(HideBeforeFile)'!$D$61:$O$61,0)) ->  | O18: ='For Bill Impact(HideBeforeFile)'!$M$5 -> Dist. Vol. Rate Tier 2
C19: =INDEX('For Bill Impact(HideBeforeFile)'!$D$48:$O$57,MATCH(C10,'For Bill Impact(HideBeforeFile)'!$C$62:$C$71,0),MATCH($O19,'For Bill Impact(HideBeforeFile)'!$D$61:$O$61,0)) ->  | D19: =INDEX('For Bill Impact(HideBeforeFile)'!$D$62:$O$71,MATCH(C10,'For Bill Impact(HideBeforeFile)'!$C$62:$C$71,0),MATCH($O19,'For Bill Impact(HideBeforeFile)'!$D$61:$O$61,0)) ->  | F19: =INDEX('For Bill Impact(HideBeforeFile)'!$D$6:$O$15,MATCH(C10,'For Bill Impact(HideBeforeFile)'!$C$62:$C$71,0),MATCH($O19,'For Bill Impact(HideBeforeFile)'!$D$61:$O$61,0)) ->  | H19: =INDEX('For Bill Impact(HideBeforeFile)'!$D$20:$O$29,MATCH(C10,'For Bill Impact(HideBeforeFile)'!$C$62:$C$71,0),MATCH($O19,'For Bill Impact(HideBeforeFile)'!$D$61:$O$61,0)) ->  | J19: =INDEX('For Bill Impact(HideBeforeFile)'!$D$34:$O$43,MATCH(C10,'For Bill Impact(HideBeforeFile)'!$C$62:$C$71,0),MATCH($O19,'For Bill Impact(HideBeforeFile)'!$D$61:$O$61,0)) ->  | O19: ='For Bill Impact(HideBeforeFile)'!$N$5 -> Dist. Vol. Rate Tier 3
C20: =INDEX('For Bill Impact(HideBeforeFile)'!$D$48:$O$57,MATCH(C10,'For Bill Impact(HideBeforeFile)'!$C$62:$C$71,0),MATCH($O20,'For Bill Impact(HideBeforeFile)'!$D$61:$O$61,0)) ->  | D20: =INDEX('For Bill Impact(HideBeforeFile)'!$D$62:$O$71,MATCH(C10,'For Bill Impact(HideBeforeFile)'!$C$62:$C$71,0),MATCH($O20,'For Bill Impact(HideBeforeFile)'!$D$61:$O$61,0)) ->  | F20: =INDEX('For Bill Impact(HideBeforeFile)'!$D$6:$O$15,MATCH(C10,'For Bill Impact(HideBeforeFile)'!$C$62:$C$71,0),MATCH($O20,'For Bill Impact(HideBeforeFile)'!$D$61:$O$61,0)) ->  | H20: =INDEX('For Bill Impact(HideBeforeFile)'!$D$20:$O$29,MATCH(C10,'For Bill Impact(HideBeforeFile)'!$C$62:$C$71,0),MATCH($O20,'For Bill Impact(HideBeforeFile)'!$D$61:$O$61,0)) ->  | J20: =INDEX('For Bill Impact(HideBeforeFile)'!$D$34:$O$43,MATCH(C10,'For Bill Impact(HideBeforeFile)'!$C$62:$C$71,0),MATCH($O20,'For Bill Impact(HideBeforeFile)'!$D$61:$O$61,0)) ->  | O20: ='For Bill Impact(HideBeforeFile)'!$O$5 -> Dist. Capacity Rate
C21: =INDEX('For Bill Impact(HideBeforeFile)'!$D$48:$O$57,MATCH(C10,'For Bill Impact(HideBeforeFile)'!$C$62:$C$71,0),MATCH($O21,'For Bill Impact(HideBeforeFile)'!$D$61:$O$61,0)) ->  | D21: =INDEX('For Bill Impact(HideBeforeFile)'!$D$62:$O$71,MATCH(C10,'For Bill Impact(HideBeforeFile)'!$C$62:$C$71,0),MATCH($O21,'For Bill Impact(HideBeforeFile)'!$D$61:$O$61,0)) ->  | F21: =INDEX('For Bill Impact(HideBeforeFile)'!$D$6:$O$15,MATCH(C10,'For Bill Impact(HideBeforeFile)'!$C$62:$C$71,0),MATCH($O21,'For Bill Impact(HideBeforeFile)'!$D$61:$O$61,0)) ->  | H21: =INDEX('For Bill Impact(HideBeforeFile)'!$D$20:$O$29,MATCH(C10,'For Bill Impact(HideBeforeFile)'!$C$62:$C$71,0),MATCH($O21,'For Bill Impact(HideBeforeFile)'!$D$61:$O$61,0)) ->  | J21: =INDEX('For Bill Impact(HideBeforeFile)'!$D$34:$O$43,MATCH(C10,'For Bill Impact(HideBeforeFile)'!$C$62:$C$71,0),MATCH($O21,'For Bill Impact(HideBeforeFile)'!$D$61:$O$61,0)) ->  | O21: ='For Bill Impact(HideBeforeFile)'!$E$5 -> System Gas
C23: =INDEX('For Bill Impact(HideBeforeFile)'!$D$48:$O$57,MATCH(C10,'For Bill Impact(HideBeforeFile)'!$C$62:$C$71,0),MATCH($O23,'For Bill Impact(HideBeforeFile)'!$D$61:$O$61,0)) -> REDA | D23: =INDEX('For Bill Impact(HideBeforeFile)'!$D$62:$O$71,MATCH(C10,'For Bill Impact(HideBeforeFile)'!$C$62:$C$71,0),MATCH($O23,'For Bill Impact(HideBeforeFile)'!$D$61:$O$61,0)) -> $ / month | F23: =INDEX('For Bill Impact(HideBeforeFile)'!$D$6:$O$15,MATCH(C10,'For Bill Impact(HideBeforeFile)'!$C$62:$C$71,0),MATCH($O23,'For Bill Impact(HideBeforeFile)'!$D$61:$O$61,0)) -> 0.56 | H23: =INDEX('For Bill Impact(HideBeforeFile)'!$D$20:$O$29,MATCH(C10,'For Bill Impact(HideBeforeFile)'!$C$62:$C$71,0),MATCH($O23,'For Bill Impact(HideBeforeFile)'!$D$61:$O$61,0)) -> 0.7389105973 | J23: =INDEX('For Bill Impact(HideBeforeFile)'!$D$34:$O$43,MATCH(C10,'For Bill Impact(HideBeforeFile)'!$C$62:$C$71,0),MATCH($O23,'For Bill Impact(HideBeforeFile)'!$D$61:$O$61,0)) -> 12 | O23: ='For Bill Impact(HideBeforeFile)'!$F$5 -> REDA
C24: =INDEX('For Bill Impact(HideBeforeFile)'!$D$48:$O$57,MATCH(C10,'For Bill Impact(HideBeforeFile)'!$C$62:$C$71,0),MATCH($O24,'For Bill Impact(HideBeforeFile)'!$D$61:$O$61,0)) -> PGTVA | D24: =INDEX('For Bill Impact(HideBeforeFile)'!$D$62:$O$71,MATCH(C10,'For Bill Impact(HideBeforeFile)'!$C$62:$C$71,0),MATCH($O24,'For Bill Impact(HideBeforeFile)'!$D$61:$O$61,0)) -> $ / month | F24: =INDEX('For Bill Impact(HideBeforeFile)'!$D$6:$O$15,MATCH(C10,'For Bill Impact(HideBeforeFile)'!$C$62:$C$71,0),MATCH($O24,'For Bill Impact(HideBeforeFile)'!$D$61:$O$61,0)) -> 15413.33 | H24: =INDEX('For Bill Impact(HideBeforeFile)'!$D$20:$O$29,MATCH(C10,'For Bill Impact(HideBeforeFile)'!$C$62:$C$71,0),MATCH($O24,'For Bill Impact(HideBeforeFile)'!$D$61:$O$61,0)) ->  | J24: =INDEX('For Bill Impact(HideBeforeFile)'!$D$34:$O$43,MATCH(C10,'For Bill Impact(HideBeforeFile)'!$C$62:$C$71,0),MATCH($O24,'For Bill Impact(HideBeforeFile)'!$D$61:$O$61,0)) -> 12 | O24: ='For Bill Impact(HideBeforeFile)'!$G$5 -> PGTVA
C25: =INDEX('For Bill Impact(HideBeforeFile)'!$D$48:$O$57,MATCH(C10,'For Bill Impact(HideBeforeFile)'!$C$62:$C$71,0),MATCH($O25,'For Bill Impact(HideBeforeFile)'!$D$61:$O$61,0)) -> ADVADA | D25: =INDEX('For Bill Impact(HideBeforeFile)'!$D$62:$O$71,MATCH(C10,'For Bill Impact(HideBeforeFile)'!$C$62:$C$71,0),MATCH($O25,'For Bill Impact(HideBeforeFile)'!$D$61:$O$61,0)) -> $ / month | F25: =INDEX('For Bill Impact(HideBeforeFile)'!$D$6:$O$15,MATCH(C10,'For Bill Impact(HideBeforeFile)'!$C$62:$C$71,0),MATCH($O25,'For Bill Impact(HideBeforeFile)'!$D$61:$O$61,0)) ->  | H25: =INDEX('For Bill Impact(HideBeforeFile)'!$D$20:$O$29,MATCH(C10,'For Bill Impact(HideBeforeFile)'!$C$62:$C$71,0),MATCH($O25,'For Bill Impact(HideBeforeFile)'!$D$61:$O$61,0)) -> 923.5833333 | J25: =INDEX('For Bill Impact(HideBeforeFile)'!$D$34:$O$43,MATCH(C10,'For Bill Impact(HideBeforeFile)'!$C$62:$C$71,0),MATCH($O25,'For Bill Impact(HideBeforeFile)'!$D$61:$O$61,0)) -> 12 | O25: ='For Bill Impact(HideBeforeFile)'!$H$5 -> ADVADA
C27: =INDEX('For Bill Impact(HideBeforeFile)'!$D$48:$O$57,MATCH(C10,'For Bill Impact(HideBeforeFile)'!$C$62:$C$71,0),MATCH($O27,'For Bill Impact(HideBeforeFile)'!$D$61:$O$61,0)) ->  | D27: =INDEX('For Bill Impact(HideBeforeFile)'!$D$62:$O$71,MATCH(C10,'For Bill Impact(HideBeforeFile)'!$C$62:$C$71,0),MATCH($O27,'For Bill Impact(HideBeforeFile)'!$D$61:$O$61,0)) ->  | F27: =INDEX('For Bill Impact(HideBeforeFile)'!$D$6:$O$15,MATCH(C10,'For Bill Impact(HideBeforeFile)'!$C$62:$C$71,0),MATCH($O27,'For Bill Impact(HideBeforeFile)'!$D$61:$O$61,0)) ->  | H27: =INDEX('For Bill Impact(HideBeforeFile)'!$D$20:$O$29,MATCH(C10,'For Bill Impact(HideBeforeFile)'!$C$62:$C$71,0),MATCH($O27,'For Bill Impact(HideBeforeFile)'!$D$61:$O$61,0)) ->  | J27: =INDEX('For Bill Impact(HideBeforeFile)'!$D$34:$O$43,MATCH(C10,'For Bill Impact(HideBeforeFile)'!$C$62:$C$71,0),MATCH($O27,'For Bill Impact(HideBeforeFile)'!$D$61:$O$61,0)) ->  | O27: ='For Bill Impact(HideBeforeFile)'!$I$5 -> Federal Carbon
C28: =INDEX('For Bill Impact(HideBeforeFile)'!$D$48:$O$57,MATCH(C10,'For Bill Impact(HideBeforeFile)'!$C$62:$C$71,0),MATCH($O28,'For Bill Impact(HideBeforeFile)'!$D$61:$O$61,0)) -> Facility Carbon | D28: =INDEX('For Bill Impact(HideBeforeFile)'!$D$62:$O$71,MATCH(C10,'For Bill Impact(HideBeforeFile)'!$C$62:$C$71,0),MATCH($O28,'For Bill Impact(HideBeforeFile)'!$D$61:$O$61,0)) -> cents / m3 | F28: =INDEX('For Bill Impact(HideBeforeFile)'!$D$6:$O$15,MATCH(C10,'For Bill Impact(HideBeforeFile)'!$C$62:$C$71,0),MATCH($O28,'For Bill Impact(HideBeforeFile)'!$D$61:$O$61,0)) -> 0.0027 | H28: =INDEX('For Bill Impact(HideBeforeFile)'!$D$20:$O$29,MATCH(C10,'For Bill Impact(HideBeforeFile)'!$C$62:$C$71,0),MATCH($O28,'For Bill Impact(HideBeforeFile)'!$D$61:$O$61,0)) -> 0.0027 | J28: =INDEX('For Bill Impact(HideBeforeFile)'!$D$34:$O$43,MATCH(C10,'For Bill Impact(HideBeforeFile)'!$C$62:$C$71,0),MATCH($O28,'For Bill Impact(HideBeforeFile)'!$D$61:$O$61,0)) -> 62382456 | O28: ='For Bill Impact(HideBeforeFile)'!$J$5 -> Facility Carbon
C31: Commodity | F31: Current | H31: Proposed | J31: Change $ | L31: Change %
F32: =IFERROR(F14*$J14/100,"") ->  | H32: =IFERROR(H14*$J14/100,"") ->  | J32: =IFERROR(H32-F32,"") ->  | L32: =IFERROR(J32/F32,"") ->  | O32: ='For Bill Impact(HideBeforeFile)'!$D$5 -> Commodity
C34: Delivery | F34: Current Rate | H34: Proposed Rate | J34: Change $ | L34: Change %
C35: =IF(C16<>"",C16,"") -> Customer (excl. Bill 32) | F35: =F16*$J16 -> 734759.04 | H35: =H16*$J16 -> 747984.7027 | J35: =IFERROR(H35-F35,"") -> 13225.66272 | L35: =IFERROR(J35/F35,"") -> 0.018 | O35: ='For Bill Impact(HideBeforeFile)'!$K$5 -> Dist. Customer Rate
C36: Bill 32 | F36: 12 | H36: 12 | J36: =IFERROR(H36-F36,"") -> 0 | L36: =IFERROR(J36/F36,"") -> 0
C37: =IF(C17<>"",C17,"") ->  | F37: =IFERROR(F17*$J17/100,"") ->  | H37: =IFERROR(H17*$J17/100,"") ->  | J37: =IFERROR(H37-F37,"") ->  | L37: =IFERROR(J37/F37,"") ->  | O37: ='For Bill Impact(HideBeforeFile)'!$L$5 -> Dist. Vol. Rate Tier 1
C38: =IF(C18<>"",C18,"") ->  | F38: =IFERROR(F18*$J18/100,"") ->  | H38: =IFERROR(H18*$J18/100,"") ->  | O38: ='For Bill Impact(HideBeforeFile)'!$M$5 -> Dist. Vol. Rate Tier 2
C39: =IF(C19<>"",C19,"") ->  | F39: =IFERROR(F19*$J19/100,"") ->  | H39: =IFERROR(H19*$J19/100,"") ->  | O39: ='For Bill Impact(HideBeforeFile)'!$N$5 -> Dist. Vol. Rate Tier 3
C40: =IF(C20<>"",C20,"") ->  | F40: =IFERROR(F20*$J20/100,"") ->  | H40: =IFERROR(H20*$J20/100,"") ->  | O40: ='For Bill Impact(HideBeforeFile)'!$O$5 -> Dist. Capacity Rate
C41: =IF(C21<>"",C21,"") ->  | F41: =IFERROR(F21*$J21/100,"") ->  | H41: =IFERROR(H21*$J21/100,"") ->  | O41: ='For Bill Impact(HideBeforeFile)'!$E$5 -> System Gas
C42: Total Delivery | F42: =SUM(F35:F41) -> 734771.04 | H42: =SUM(H35:H41) -> 747996.7027 | J42: =H42-F42 -> 13225.66272 | L42: =IF(ISERROR(J42/F42),0,J42/F42) -> 0.01799970603
C44: Rate Riders
C46: Rate Riders | F46: Current Rate | H46: Proposed Rate | J46: Change $ | L46: Change %
C47: REDA | F47: =F23*$J23 -> 6.72 | H47: =H23*$J23 -> 8.866927168 | J47: =IFERROR(H47-F47,"") -> 2.146927168 | L47: =IFERROR(J47/F47,"") -> 0.3194832095 | O47: ='For Bill Impact(HideBeforeFile)'!$F$5 -> REDA
C48: PGTVA | F48: =IFERROR(F24*$J24,"") -> 184959.96 | H48: 0 | J48: =IFERROR(H48-F48,"") -> -184959.96 | L48: -1 | O48: ='For Bill Impact(HideBeforeFile)'!$G$5 -> PGTVA
C49: ADVADA | F49: =IFERROR(F25*$J25/100,"") ->  | H49: =IFERROR(H25*$J25,"") -> 11083 | J49: =H49 -> 11083 | L49: =J49/H49 -> 1 | O49: ='For Bill Impact(HideBeforeFile)'!$H$5 -> ADVADA
C50: Total Rate Riders | F50: =SUM(F47:F49) -> 184966.68 | H50: =SUM(H47:H49) -> 11091.86693 | J50: =SUM(J47:J49) -> -173874.8131 | L50: =IF(ISERROR(J50/F50),0,J50/F50) -> -0.940033162
C52: Carbon Tax
C53: Federal Carbon | F53: =IFERROR(F27*$J27/100,"") ->  | H53: =IFERROR(H27*$J27/100,"") ->  | J53: =IFERROR(H53-F53,"") ->  | L53: =IFERROR(J53/F53,"") -> 
C54: Facility Carbon | F54: =F28*$J28/100 -> 1684.326312 | H54: =H28*$J28/100 -> 1684.326312 | J54: =IFERROR(H54-F54,"") -> 0 | L54: 0
C55: Total Carbon Tax | F55: =SUM(F53:F54) -> 1684.326312 | H55: =SUM(H53:H54) -> 1684.326312 | J55: =SUM(J53:J54) -> 0 | L55: =IF(ISERROR(J55/F55),0,J55/F55) -> 0
C57: Total Bill Impact | F57: =SUM(F32,F42,F50,F55) -> 921422.0463 | H57: =SUM(H32,H42,H50,H55) -> 760772.896 | J57: =SUM(J32,J42,J50,J55) -> -160649.1504 | L57: =IFERROR(J57/F57,"") -> -0.1743491498
C60: =MID(CELL("filename",A1),FIND("]",CELL("filename",A1))+1,255) -> G1.6 Rate 6 Bill Impact

Sheet G1.7 Summary of Bill Impacts
C2: ='A1.1 Distributor Information'!C3 -> Name of LDC: EPCOR Natural Gas Limited Partnership
C3: ='A1.1 Distributor Information'!C4 -> OEB Application Number: EB-2020-0234 Exhibit A - 2021 IRM Application
C5: Summary of Bill Impacts
C7: Rate Class | D7: Change in Delivery Charge ($ / year / customer) | E7: Change in Delivery Charge (%) | F7: Change in REDA ($ / year / customer) | G7: Change in REDA (%) | H7: Change in PGTVA ($ / year / customer) | I7: Change in PGTVA (%) | J7: Change in AVDADA ($ / year / customer) | K7: Change in AVDADA (%) | L7: Change in Total Bill ($ / year / customer) | M7: Change in Total Bill (%)
C9: ='G1.1 Rate 1 Bill Impact'!C10 -> RATE 1 - General Service Rate - Residential | D9: ='G1.1 Rate 1 Bill Impact'!J42 -> 15.98401148 | E9: ='G1.1 Rate 1 Bill Impact'!L42 -> 0.03242084369 | F9: ='G1.1 Rate 1 Bill Impact'!J47 -> 2.156553742 | G9: ='G1.1 Rate 1 Bill Impact'!L47 -> 0.3045979862 | H9: ='G1.1 Rate 1 Bill Impact'!J48 -> 3.774859148 | I9: ='G1.1 Rate 1 Bill Impact'!L48 -> 1.395657861 | J9: ='G1.1 Rate 1 Bill Impact'!J49 -> 3.136165783 | K9: ='G1.1 Rate 1 Bill Impact'!L49 -> 1 | L9: ='G1.1 Rate 1 Bill Impact'!J57 -> 25.05159015 | M9: ='G1.1 Rate 1 Bill Impact'!L57 -> 0.02761493544
C10: ='G1.1 Rate 1 Bill Impact'!C62 -> RATE 1 - General Service Rate - Commercial | D10: ='G1.1 Rate 1 Bill Impact'!J94 -> 33.72719501 | E10: ='G1.1 Rate 1 Bill Impact'!L94 -> 0.02070239936 | F10: ='G1.1 Rate 1 Bill Impact'!J99 -> 2.156553742 | G10: ='G1.1 Rate 1 Bill Impact'!L99 -> 0.3045979862 | H10: ='G1.1 Rate 1 Bill Impact'!J100 -> 21.1773347 | I10: ='G1.1 Rate 1 Bill Impact'!L100 -> 1.395657861 | J10: ='G1.1 Rate 1 Bill Impact'!J101 -> 17.5942015 | K10: ='G1.1 Rate 1 Bill Impact'!L101 -> 1 | L10: ='G1.1 Rate 1 Bill Impact'!J109 -> 74.65528496 | M10: ='G1.1 Rate 1 Bill Impact'!L109 -> 0.01904482623
C11: ='G1.1 Rate 1 Bill Impact'!C114 -> RATE 1 - General Service Rate - Industrial | D11: ='G1.1 Rate 1 Bill Impact'!J146 -> 72.67643968 | E11: ='G1.1 Rate 1 Bill Impact'!L146 -> 0.01818221092 | F11: ='G1.1 Rate 1 Bill Impact'!J151 -> 2.156553742 | G11: ='G1.1 Rate 1 Bill Impact'!L151 -> 0.3045979862 | H11: ='G1.1 Rate 1 Bill Impact'!J152 -> 59.97753026 | I11: ='G1.1 Rate 1 Bill Impact'!L152 -> 1.395657861 | J11: ='G1.1 Rate 1 Bill Impact'!J153 -> 49.82953556 | K11: ='G1.1 Rate 1 Bill Impact'!L153 -> 1 | L11: ='G1.1 Rate 1 Bill Impact'!J161 -> 184.6400593 | M11: ='G1.1 Rate 1 Bill Impact'!L161 -> 0.01763154305
C13: ='G1.2 Rate 2 Bill Impact'!C10 -> RATE 2 - Seasonal Service - Apr to Oct | D13: ='G1.2 Rate 2 Bill Impact'!J42 -> 46.53299329 | E13: ='G1.2 Rate 2 Bill Impact'!L42 -> 0.02893685522 | F13: ='G1.2 Rate 2 Bill Impact'!J47 -> 1.257989683 | G13: ='G1.2 Rate 2 Bill Impact'!L47 -> 0.3045979862 | H13: ='G1.2 Rate 2 Bill Impact'!J48 -> 28.21076025 | I13: ='G1.2 Rate 2 Bill Impact'!L48 -> 1.395657861 | J13: ='G1.2 Rate 2 Bill Impact'!J49 -> 23.43759529 | K13: ='G1.2 Rate 2 Bill Impact'!L49 -> 1 | L13: ='G1.2 Rate 2 Bill Impact'!J57 -> 99.43933851 | M13: ='G1.2 Rate 2 Bill Impact'!L57 -> 0.02136435201
C14: ='G1.2 Rate 2 Bill Impact'!C62 -> RATE 2 - Seasonal Service - Nov to Mar | D14: ='G1.2 Rate 2 Bill Impact'!J94 -> 48.70729293 | E14: ='G1.2 Rate 2 Bill Impact'!L94 -> 0.03039580962 | F14: ='G1.2 Rate 2 Bill Impact'!J99 -> 0.8985640592 | G14: ='G1.2 Rate 2 Bill Impact'!L99 -> 0.3045979862 | H14: ='G1.2 Rate 2 Bill Impact'!J100 -> 17.39414158 | I14: ='G1.2 Rate 2 Bill Impact'!L100 -> 1.395657861 | J14: ='G1.2 Rate 2 Bill Impact'!J101 -> 14.45111182 | K14: ='G1.2 Rate 2 Bill Impact'!L101 -> 1 | L14: ='G1.2 Rate 2 Bill Impact'!J109 -> 81.45111038 | M14: ='G1.2 Rate 2 Bill Impact'!L109 -> 0.02339769352
C15: ='G1.2 Rate 2 Bill Impact'!C114 -> RATE 2 - Seasonal Service - Annual | D15: ='G1.2 Rate 2 Bill Impact'!J127 -> 95.24028621 | E15: ='G1.2 Rate 2 Bill Impact'!L127 -> 0.02966504799 | F15: ='G1.2 Rate 2 Bill Impact'!J132 -> 2.156553742 | G15: ='G1.2 Rate 2 Bill Impact'!L132 -> 0.3045979862 | H15: ='G1.2 Rate 2 Bill Impact'!J133 -> 45.60490182 | I15: ='G1.2 Rate 2 Bill Impact'!L133 -> 1.395657861 | J15: ='G1.2 Rate 2 Bill Impact'!J134 -> 37.88870711 | K15: ='G1.2 Rate 2 Bill Impact'!L134 -> 1 | L15: ='G1.2 Rate 2 Bill Impact'!J142 -> 180.8904489 | M15: ='G1.2 Rate 2 Bill Impact'!L142 -> 0.02223440179
C17: ='G1.3 Rate 3 Bill Impact'!C10 -> RATE 3 - Special Large Volume Contract Rate | D17: ='G1.3 Rate 3 Bill Impact'!J42 -> 1039.780728 | E17: ='G1.3 Rate 3 Bill Impact'!L42 -> 0.04507953224 | F17: ='G1.3 Rate 3 Bill Impact'!J47 -> 2.156553742 | G17: ='G1.3 Rate 3 Bill Impact'!L47 -> 0.3045979862 | H17: ='G1.3 Rate 3 Bill Impact'!J48 -> 459.8671663 | I17: ='G1.3 Rate 3 Bill Impact'!L48 -> 1.395657861 | J17: ='G1.3 Rate 3 Bill Impact'!J49 -> 382.0592014 | K17: ='G1.3 Rate 3 Bill Impact'!L49 -> 1 | L17: ='G1.3 Rate 3 Bill Impact'!J57 -> 1883.863649 | M17: ='G1.3 Rate 3 Bill Impact'!L57 -> 0.02592554019
C19: ='G1.4 Rate 4 Bill Impact'!C10 -> RATE 4 - General Service Peaking - Apr to Dec | D19: ='G1.4 Rate 4 Bill Impact'!J42 -> 187.1371164 | E19: ='G1.4 Rate 4 Bill Impact'!L42 -> 0.03515246711 | F19: ='G1.4 Rate 4 Bill Impact'!J47 -> 1.617415307 | G19: ='G1.4 Rate 4 Bill Impact'!L47 -> 0.3045979862 | H19: ='G1.4 Rate 4 Bill Impact'!J48 -> 78.838616 | I19: ='G1.4 Rate 4 Bill Impact'!L48 -> 1.395657861 | J19: ='G1.4 Rate 4 Bill Impact'!J49 -> 65.49938957 | K19: ='G1.4 Rate 4 Bill Impact'!L49 -> 1 | L19: ='G1.4 Rate 4 Bill Impact'!J57 -> 333.0925373 | M19: ='G1.4 Rate 4 Bill Impact'!L57 -> 0.02408337122
C20: ='G1.4 Rate 4 Bill Impact'!C62 -> RATE 4 - General Service Peaking - Jan to Mar | D20: ='G1.4 Rate 4 Bill Impact'!J94 -> 36.94085449 | E20: ='G1.4 Rate 4 Bill Impact'!L94 -> 0.03436063744 | F20: ='G1.4 Rate 4 Bill Impact'!J99 -> 0.5391384355 | G20: ='G1.4 Rate 4 Bill Impact'!L99 -> 0.3045979862 | H20: ='G1.4 Rate 4 Bill Impact'!J100 -> 9.518108724 | I20: ='G1.4 Rate 4 Bill Impact'!L100 -> 1.395657861 | J20: ='G1.4 Rate 4 Bill Impact'!J101 -> 7.90767701 | K20: ='G1.4 Rate 4 Bill Impact'!L101 -> 1 | L20: ='G1.4 Rate 4 Bill Impact'!J109 -> 54.90577866 | M20: ='G1.4 Rate 4 Bill Impact'!L109 -> 0.02610470877
C21: ='G1.4 Rate 4 Bill Impact'!C114 -> RATE 4 - General Service Peaking - Annual | D21: ='G1.4 Rate 4 Bill Impact'!J127 -> 224.0779709 | E21: ='G1.4 Rate 4 Bill Impact'!L127 -> 0.03501942555 | F21: ='G1.4 Rate 4 Bill Impact'!J132 -> 2.156553742 | G21: ='G1.4 Rate 4 Bill Impact'!L132 -> 0.3045979862 | H21: ='G1.4 Rate 4 Bill Impact'!J133 -> 88.35672473 | I21: ='G1.4 Rate 4 Bill Impact'!L133 -> 1.395657861 | J21: ='G1.4 Rate 4 Bill Impact'!J134 -> 73.40706658 | K21: ='G1.4 Rate 4 Bill Impact'!L134 -> 1 | L21: ='G1.4 Rate 4 Bill Impact'!J142 -> 387.998316 | M21: ='G1.4 Rate 4 Bill Impact'!L142 -> 0.02435018638
C23: ='G1.5 Rate 5 Bill Impact'!C10 -> RATE 5 - Interruptible Peaking Contract Rate | D23: ='G1.5 Rate 5 Bill Impact'!J42 -> 577.6344669 | E23: ='G1.5 Rate 5 Bill Impact'!L42 -> 0.03335430314 | F23: ='G1.5 Rate 5 Bill Impact'!J47 -> 2.156553742 | G23: ='G1.5 Rate 5 Bill Impact'!L47 -> 0.3045979862 | H23: ='G1.5 Rate 5 Bill Impact'!J48 -> 355.2716981 | I23: ='G1.5 Rate 5 Bill Impact'!L48 -> 1.395657861 | J23: ='G1.5 Rate 5 Bill Impact'!J49 -> 295.1609317 | K23: ='G1.5 Rate 5 Bill Impact'!L49 -> 1 | L23: ='G1.5 Rate 5 Bill Impact'!J57 -> 1230.22365 | M23: ='G1.5 Rate 5 Bill Impact'!L57 -> 0.02211139635
C25: ='G1.6 Rate 6 Bill Impact'!C10 -> RATE 6 - Integrated Grain Processors Co-Operative Aylmer Ethanol Production Facility | D25: ='G1.6 Rate 6 Bill Impact'!J42 -> 13225.66272 | E25: ='G1.6 Rate 6 Bill Impact'!L42 -> 0.01799970603 | F25: ='G1.6 Rate 6 Bill Impact'!J47 -> 2.146927168 | G25: ='G1.6 Rate 6 Bill Impact'!L47 -> 0.3194832095 | H25: ='G1.6 Rate 6 Bill Impact'!J48 -> -184959.96 | I25: ='G1.6 Rate 6 Bill Impact'!L48 -> -1 | J25: ='G1.6 Rate 6 Bill Impact'!J49 -> 11083 | K25: ='G1.6 Rate 6 Bill Impact'!L49 -> 1 | L25: ='G1.6 Rate 6 Bill Impact'!J57 -> -160649.1504 | M25: ='G1.6 Rate 6 Bill Impact'!L57 -> -0.1743491498
C30: =MID(CELL("filename",A1),FIND("]",CELL("filename",A1))+1,255) -> G1.7 Summary of Bill Impacts
A49: REDA | C49: $='G1.1 Rate 1 Bill Impact'!J47 | D49: $='G1.1 Rate 1 Bill Impact'!J99 | E49: $='G1.1 Rate 1 Bill Impact'!J151 | G49: $='G1.2 Rate 2 Bill Impact'!J47 | H49: $='G1.2 Rate 2 Bill Impact'!J99 | I49: $='G1.2 Rate 2 Bill Impact'!J132 | K49: $='G1.3 Rate 3 Bill Impact'!J47 | M49: $='G1.4 Rate 4 Bill Impact'!J47 | N49: $='G1.4 Rate 4 Bill Impact'!J99 | O49: $='G1.4 Rate 4 Bill Impact'!J132 | Q49: $='G1.5 Rate 5 Bill Impact'!J47 | S49: $='G1.6 Rate 6 Bill Impact'!J47
A50: PGTVA | C50: $='G1.1 Rate 1 Bill Impact'!J48 | D50: $='G1.1 Rate 1 Bill Impact'!J100 | E50: $='G1.1 Rate 1 Bill Impact'!J152 | G50: $='G1.2 Rate 2 Bill Impact'!J48 | H50: $='G1.2 Rate 2 Bill Impact'!J100 | I50: $='G1.2 Rate 2 Bill Impact'!J133 | K50: $='G1.3 Rate 3 Bill Impact'!J48 | M50: $='G1.4 Rate 4 Bill Impact'!J48 | N50: $='G1.4 Rate 4 Bill Impact'!J100 | O50: $='G1.4 Rate 4 Bill Impact'!J133 | Q50: $='G1.5 Rate 5 Bill Impact'!J48 | S50: $='G1.6 Rate 6 Bill Impact'!J48
A51: AVDADA | C51: $='G1.1 Rate 1 Bill Impact'!J49 | D51: $='G1.1 Rate 1 Bill Impact'!J101 | E51: $='G1.1 Rate 1 Bill Impact'!J153 | G51: $='G1.2 Rate 2 Bill Impact'!J49 | H51: $='G1.2 Rate 2 Bill Impact'!J101 | I51: $='G1.2 Rate 2 Bill Impact'!J134 | K51: $='G1.3 Rate 3 Bill Impact'!J49 | M51: $='G1.4 Rate 4 Bill Impact'!J49 | N51: $='G1.4 Rate 4 Bill Impact'!J101 | O51: $='G1.4 Rate 4 Bill Impact'!J134 | Q51: $='G1.5 Rate 5 Bill Impact'!J49 | S51: $='G1.6 Rate 6 Bill Impact'!J49
A52: Total | C52: $='G1.1 Rate 1 Bill Impact'!J50 | D52: $='G1.1 Rate 1 Bill Impact'!J102 | E52: $='G1.1 Rate 1 Bill Impact'!J154 | G52: $='G1.2 Rate 2 Bill Impact'!J50 | H52: $='G1.2 Rate 2 Bill Impact'!J102 | I52: $='G1.2 Rate 2 Bill Impact'!J135 | K52: $='G1.3 Rate 3 Bill Impact'!J50 | M52: $='G1.4 Rate 4 Bill Impact'!J50 | N52: $='G1.4 Rate 4 Bill Impact'!J102 | O52: $='G1.4 Rate 4 Bill Impact'!J135 | Q52: $='G1.5 Rate 5 Bill Impact'!J50 | S52: $='G1.6 Rate 6 Bill Impact'!J50
A55: REDA | C55: $='G1.1 Rate 1 Bill Impact'!L47 | D55: $='G1.1 Rate 1 Bill Impact'!L99 | E55: $='G1.1 Rate 1 Bill Impact'!L151 | G55: $='G1.2 Rate 2 Bill Impact'!L47 | H55: $='G1.2 Rate 2 Bill Impact'!L99 | I55: $='G1.2 Rate 2 Bill Impact'!L132 | K55: $='G1.3 Rate 3 Bill Impact'!L47 | M55: $='G1.4 Rate 4 Bill Impact'!L47 | N55: $='G1.4 Rate 4 Bill Impact'!L99 | O55: $='G1.4 Rate 4 Bill Impact'!L132 | Q55: $='G1.5 Rate 5 Bill Impact'!L47 | S55: $='G1.6 Rate 6 Bill Impact'!L47
A56: PGTVA | C56: $='G1.1 Rate 1 Bill Impact'!L48 | D56: $='G1.1 Rate 1 Bill Impact'!L100 | E56: $='G1.1 Rate 1 Bill Impact'!L152 | G56: $='G1.2 Rate 2 Bill Impact'!L48 | H56: $='G1.2 Rate 2 Bill Impact'!L100 | I56: $='G1.2 Rate 2 Bill Impact'!L133 | K56: $='G1.3 Rate 3 Bill Impact'!L48 | M56: $='G1.4 Rate 4 Bill Impact'!L48 | N56: $='G1.4 Rate 4 Bill Impact'!L100 | O56: $='G1.4 Rate 4 Bill Impact'!L133 | Q56: $='G1.5 Rate 5 Bill Impact'!L48 | S56: $='G1.6 Rate 6 Bill Impact'!L48
A57: AVDADA | C57: $='G1.1 Rate 1 Bill Impact'!L49 | D57: $='G1.1 Rate 1 Bill Impact'!L101 | E57: $='G1.1 Rate 1 Bill Impact'!L153 | G57: $='G1.2 Rate 2 Bill Impact'!L49 | H57: $='G1.2 Rate 2 Bill Impact'!L101 | I57: $='G1.2 Rate 2 Bill Impact'!L134 | K57: $='G1.3 Rate 3 Bill Impact'!L49 | M57: $='G1.4 Rate 4 Bill Impact'!L49 | N57: $='G1.4 Rate 4 Bill Impact'!L101 | O57: $='G1.4 Rate 4 Bill Impact'!L134 | Q57: $='G1.5 Rate 5 Bill Impact'!L49 | S57: $='G1.6 Rate 6 Bill Impact'!L49
A58: Total | C58: $='G1.1 Rate 1 Bill Impact'!L50 | D58: $='G1.1 Rate 1 Bill Impact'!L102 | E58: $='G1.1 Rate 1 Bill Impact'!L154 | G58: $='G1.2 Rate 2 Bill Impact'!L50 | H58: $='G1.2 Rate 2 Bill Impact'!L102 | I58: $='G1.2 Rate 2 Bill Impact'!L135 | K58: $='G1.3 Rate 3 Bill Impact'!L50 | M58: $='G1.4 Rate 4 Bill Impact'!L50 | N58: $='G1.4 Rate 4 Bill Impact'!L102 | O58: $='G1.4 Rate 4 Bill Impact'!L135 | Q58: $='G1.5 Rate 5 Bill Impact'!L50 | S58: $='G1.6 Rate 6 Bill Impact'!L50
